{"text_format":"1","workbook":"xlsx","n_sheets":2,"sheets":["Pasiūlymas","Subtiekėjai"],"not_rendered":{"charts":0,"images":0,"macros":1,"external_links":0,"defined_names":0,"comments":0,"pivot_tables":0},"unopened":[],"bounds":{"document_bytes":16777216,"sheet_cells":100000,"rows_first":2000,"rows_last":500,"rows_between":2000,"halvings":0,"cell_chars":16384,"cell_head_chars":4096},"cells_cut":0,"cells_raw":0,"read":"whole","date_system":"1900"}

{"sheet":"Pasiūlymas","index":0,"n_rows":1551,"n_cols":13,"rows_kept":1551,"cut":false,"hidden":false,"merged":[[14,0,14,1],[14,2,14,4],[18,0,18,1],[18,2,18,4],[19,0,19,1],[19,2,19,4],[9,0,9,1],[9,2,9,4],[10,0,10,1],[10,2,10,4],[11,0,11,1],[11,2,11,4],[12,0,12,1],[12,2,12,4],[13,0,13,1],[13,2,13,4],[15,0,15,1],[15,2,15,4],[16,0,16,1],[16,2,16,4],[17,0,17,1],[17,2,17,4],[28,1,28,6],[34,1,34,6],[40,1,40,6],[46,1,46,6],[52,1,52,6],[148,1,148,6],[154,1,154,6],[160,1,160,6],[166,1,166,6],[88,1,88,6],[94,1,94,6],[100,1,100,6],[106,1,106,6],[112,1,112,6],[58,1,58,6],[64,1,64,6],[70,1,70,6],[76,1,76,6],[82,1,82,6],[172,1,172,6],[118,1,118,6],[124,1,124,6],[130,1,130,6],[136,1,136,6],[142,1,142,6],[208,1,208,6],[214,1,214,6],[220,1,220,6],[226,1,226,6],[232,1,232,6],[178,1,178,6],[184,1,184,6],[190,1,190,6],[196,1,196,6],[202,1,202,6],[268,1,268,6],[274,1,274,6],[280,1,280,6],[286,1,286,6],[292,1,292,6],[238,1,238,6],[244,1,244,6],[250,1,250,6],[256,1,256,6],[262,1,262,6],[328,1,328,6],[334,1,334,6],[340,1,340,6],[346,1,346,6],[352,1,352,6],[298,1,298,6],[304,1,304,6],[310,1,310,6],[316,1,316,6],[322,1,322,6],[388,1,388,6],[394,1,394,6],[400,1,400,6],[406,1,406,6],[412,1,412,6],[358,1,358,6],[364,1,364,6],[370,1,370,6],[376,1,376,6],[382,1,382,6],[448,1,448,6],[454,1,454,6],[460,1,460,6],[466,1,466,6],[472,1,472,6],[418,1,418,6],[424,1,424,6],[430,1,430,6],[436,1,436,6],[442,1,442,6],[508,1,508,6],[514,1,514,6],[520,1,520,6],[526,1,526,6],[532,1,532,6],[478,1,478,6],[484,1,484,6],[490,1,490,6],[496,1,496,6],[502,1,502,6],[568,1,568,6],[574,1,574,6],[580,1,580,6],[586,1,586,6],[592,1,592,6],[538,1,538,6],[544,1,544,6],[550,1,550,6],[556,1,556,6],[562,1,562,6],[628,1,628,6],[634,1,634,6],[640,1,640,6],[646,1,646,6],[652,1,652,6],[598,1,598,6],[604,1,604,6],[610,1,610,6],[616,1,616,6],[622,1,622,6],[688,1,688,6],[694,1,694,6],[700,1,700,6],[706,1,706,6],[712,1,712,6],[658,1,658,6],[664,1,664,6],[670,1,670,6],[676,1,676,6],[682,1,682,6],[748,1,748,6],[754,1,754,6],[760,1,760,6],[766,1,766,6],[772,1,772,6],[718,1,718,6],[724,1,724,6],[730,1,730,6],[736,1,736,6],[742,1,742,6],[808,1,808,6],[814,1,814,6],[820,1,820,6],[826,1,826,6],[832,1,832,6],[778,1,778,6],[784,1,784,6],[790,1,790,6],[796,1,796,6],[802,1,802,6],[868,1,868,6],[874,1,874,6],[880,1,880,6],[886,1,886,6],[892,1,892,6],[838,1,838,6],[844,1,844,6],[850,1,850,6],[856,1,856,6],[862,1,862,6],[928,1,928,6],[934,1,934,6],[940,1,940,6],[946,1,946,6],[952,1,952,6],[898,1,898,6],[904,1,904,6],[910,1,910,6],[916,1,916,6],[922,1,922,6],[988,1,988,6],[994,1,994,6],[1000,1,1000,6],[1006,1,1006,6],[1012,1,1012,6],[958,1,958,6],[964,1,964,6],[970,1,970,6],[976,1,976,6],[982,1,982,6],[1048,1,1048,6],[1054,1,1054,6],[1060,1,1060,6],[1066,1,1066,6],[1072,1,1072,6],[1018,1,1018,6],[1024,1,1024,6],[1030,1,1030,6],[1036,1,1036,6],[1042,1,1042,6],[1108,1,1108,6],[1114,1,1114,6],[1120,1,1120,6],[1126,1,1126,6],[1132,1,1132,6],[1078,1,1078,6],[1084,1,1084,6],[1090,1,1090,6],[1096,1,1096,6],[1102,1,1102,6],[1168,1,1168,6],[1174,1,1174,6],[1180,1,1180,6],[1186,1,1186,6],[1192,1,1192,6],[1138,1,1138,6],[1144,1,1144,6],[1150,1,1150,6],[1156,1,1156,6],[1162,1,1162,6],[1228,1,1228,6],[1234,1,1234,6],[1240,1,1240,6],[1246,1,1246,6],[1252,1,1252,6],[1198,1,1198,6],[1204,1,1204,6],[1210,1,1210,6],[1216,1,1216,6],[1222,1,1222,6],[1288,1,1288,6],[1294,1,1294,6],[1300,1,1300,6],[1306,1,1306,6],[1312,1,1312,6],[1258,1,1258,6],[1264,1,1264,6],[1270,1,1270,6],[1276,1,1276,6],[1282,1,1282,6],[1348,1,1348,6],[1354,1,1354,6],[1360,1,1360,6],[1366,1,1366,6],[1372,1,1372,6],[1318,1,1318,6],[1324,1,1324,6],[1330,1,1330,6],[1336,1,1336,6],[1342,1,1342,6],[1408,1,1408,6],[1414,1,1414,6],[1420,1,1420,6],[1426,1,1426,6],[1432,1,1432,6],[1378,1,1378,6],[1384,1,1384,6],[1390,1,1390,6],[1396,1,1396,6],[1402,1,1402,6],[1468,1,1468,6],[1474,1,1474,6],[1480,1,1480,6],[1486,1,1486,6],[1492,1,1492,6],[1438,1,1438,6],[1444,1,1444,6],[1450,1,1450,6],[1456,1,1456,6],[1462,1,1462,6],[1528,1,1528,6],[1534,1,1534,6],[1540,1,1540,6],[1546,1,1546,6],[1498,1,1498,6],[1504,1,1504,6],[1510,1,1510,6],[1516,1,1516,6],[1522,1,1522,6]]}
["Perkantysis subjektas, kuriam teikiamas pasiūlymas:",null,"VŠĮ Kauno klinikinė ligoninė"]
[]
[null,"PASIŪLYMAS"]
[null,"Medikamentai perkami Ne per CPO elektroninį katalogą"]
[]
["Data:","2020-01-02"]
["Nr.:","Nr. 02/01/20"]
["Vieta:","Širvintų r. sav."]
[]
["Tiekėjo arba tiekėjų grupės narių pavadinimas (-ai)",null,"UAB Entafarma"]
["Tiekėjo arba tiekėjo grupės narių juridinio asmens kodas (-ai) (tuo atveju, jei pasiūlymą teikia fizinis asmuo - verslo pažymėjimo Nr. ar pan.)",null,174443844]
["Tiekėjo arba tiekėjo grupės narių PVM mokėtojo kodas (-ai)",null,"LT744438415"]
["Tiekėjų grupės narys, atstovaujantis arba vadovaujantis  tiekėjų grupei (pildoma, jei pasiūlymą teikia tiekėjų grupė)"]
["Tiekėjo valdymo ar priežiūros organo narys (-iai) ar kitas asmuo (-ys), turintis (-ys) teisę atstovauti tiekėjui ar jį kontroliuoti, jo vardu priimti sprendimą, sudaryti sandorį",null,"Aurimas Kirkliauskas konkursų skyriaus vadovas"]
["Tiekėjo arba atstovaujančio tiekėjų grupės nario adresas, telefono numeris, fakso numeris, el. paštas",null,"8-382 33005, 8-382 33005, aurimas@entafarma.lt"]
["Tiekėjo arba atstovaujančio tiekėjų grupės nario banko pavadinimas, banko kodas, sąskaitos Nr.",null,"AB SEB bankas., b.k. 70440, LT447044060001506395"]
["Asmens, įgalioto pasirašyti sutartį, vardas, pavardė, pareigos",null,"Mindaugas Malinauskas vykdomasis direktorius"]
["Asmens, atsakingo už pirkimą, vardas, pavardė,  telefono numeris, el. paštas",null,"Aurimas Kirkliauskas konkursų skyriaus vadovas"]
[]
[]
[]
[]
[]
["Siūlomas pirkimo objektas visiškai atitinka pirkimo sąlygose nustatytus reikalavimus ir jo kaina yra:"]
[]
[]
[null,null,null,null,null,null,null,null,null,null,"","",""]
["Nr.","Pavadinimas","Kiekis","Mato vienetas","Kaina be PVM, Eur","Suma be PVM, Eur","Siūlomi produktai"]
["1.","1ml geriamųjų lašų yra Vaistinio valerijonų šaknų 1,2g sukatžolų žolės 1,2g, appynių spurgų 0,8g, pipirmėtės lapų 0,8g ",null,null,null,null,null,null,null,""]
["1.1.","1ml geriamųjų lašų yra Vaistinio valerijonų šaknų 1,2g sukatžolų žolės 1,2g, appynių spurgų 0,8g, pipirmėtės lapų 0,8g ",3000,"ml",null,{"$f":"IF(ISBLANK(E30),\"\", PRODUCT(C30,E30))","v":""}]
[null,null,null,null,"Suma be PVM",{"$f":"IF(F30=\"\",\"\",SUM(F30:F30))","v":""},{"$f":"IF(F30=\"\",\"Neužpildytos visos objektų kainos\",\"\")","v":"Neužpildytos visos objektų kainos"}]
[null,null,null,null,"PVM suma",null,null,null,null,""]
[null,null,null,null,"Suma su PVM",{"$f":"IF(ISBLANK(F32), \"\", SUM(F31:F32))","v":""},null,null,null,null,null,""]
[null,null,null,null,null,null,null,null,null,null,null,""]
["2.","Acetilsalicilo rūgštis 240mg + Paracetamolis 180mg+ Kofeinas 30mg tab.",null,null,null,null,null,null,null,"","",""]
["2.1.","Acetilsalicilo rūgštis 240mg + Paracetamolis 180mg+ Kofeinas 30mg tab.",100,"Tab.",null,{"$f":"IF(ISBLANK(E36),\"\", PRODUCT(C36,E36))","v":""},null,null,null,"","",""]
[null,null,null,null,"Suma be PVM",{"$f":"IF(F36=\"\",\"\",SUM(F36:F36))","v":""},{"$f":"IF(F36=\"\",\"Neužpildytos visos objektų kainos\",\"\")","v":"Neužpildytos visos objektų kainos"},null,null,"","",""]
[null,null,null,null,"PVM suma"]
[null,null,null,null,"Suma su PVM",{"$f":"IF(ISBLANK(F38), \"\", SUM(F37:F38))","v":""}]
[null,null,null,null,null,null,null,null,null,""]
["3.","Acetonum"]
["3.1.","Acetonum",12,"l",null,{"$f":"IF(ISBLANK(E42),\"\", PRODUCT(C42,E42))","v":""},null,null,null,null,null,""]
[null,null,null,null,"Suma be PVM",{"$f":"IF(F42=\"\",\"\",SUM(F42:F42))","v":""},{"$f":"IF(F42=\"\",\"Neužpildytos visos objektų kainos\",\"\")","v":"Neužpildytos visos objektų kainos"},null,null,"",null,""]
[null,null,null,null,"PVM suma",null,null,null,null,null,null,""]
[null,null,null,null,"Suma su PVM",{"$f":"IF(ISBLANK(F44), \"\", SUM(F43:F44))","v":""}]
[null,null,null,null,null,null,null,null,null,"","",""]
["4.","Acidum aceticum",null,null,null,null,null,null,null,"","",""]
["4.1.","Acidum aceticum",3,"l",null,{"$f":"IF(ISBLANK(E48),\"\", PRODUCT(C48,E48))","v":""},null,null,null,"","",""]
[null,null,null,null,"Suma be PVM",{"$f":"IF(F48=\"\",\"\",SUM(F48:F48))","v":""},{"$f":"IF(F48=\"\",\"Neužpildytos visos objektų kainos\",\"\")","v":"Neužpildytos visos objektų kainos"}]
[null,null,null,null,"PVM suma"]
[null,null,null,null,"Suma su PVM",{"$f":"IF(ISBLANK(F50), \"\", SUM(F49:F50))","v":""}]
[]
["5.","Acidum citricum"]
["5.1.","Acidum citricum",2,"kg",null,{"$f":"IF(ISBLANK(E54),\"\", PRODUCT(C54,E54))","v":""}]
[null,null,null,null,"Suma be PVM",{"$f":"IF(F54=\"\",\"\",SUM(F54:F54))","v":""},{"$f":"IF(F54=\"\",\"Neužpildytos visos objektų kainos\",\"\")","v":"Neužpildytos visos objektų kainos"}]
[null,null,null,null,"PVM suma"]
[null,null,null,null,"Suma su PVM",{"$f":"IF(ISBLANK(F56), \"\", SUM(F55:F56))","v":""}]
[]
["6.","Acidum folicum "]
["6.1.","Acidum folicum ",50,"g",null,{"$f":"IF(ISBLANK(E60),\"\", PRODUCT(C60,E60))","v":""}]
[null,null,null,null,"Suma be PVM",{"$f":"IF(F60=\"\",\"\",SUM(F60:F60))","v":""},{"$f":"IF(F60=\"\",\"Neužpildytos visos objektų kainos\",\"\")","v":"Neužpildytos visos objektų kainos"}]
[null,null,null,null,"PVM suma"]
[null,null,null,null,"Suma su PVM",{"$f":"IF(ISBLANK(F62), \"\", SUM(F61:F62))","v":""}]
[]
["7.","Acidum folicum 400mcg"]
["7.1.","Acidum folicum 400mcg",2000,"Tab.",null,{"$f":"IF(ISBLANK(E66),\"\", PRODUCT(C66,E66))","v":""}]
[null,null,null,null,"Suma be PVM",{"$f":"IF(F66=\"\",\"\",SUM(F66:F66))","v":""},{"$f":"IF(F66=\"\",\"Neužpildytos visos objektų kainos\",\"\")","v":"Neužpildytos visos objektų kainos"}]
[null,null,null,null,"PVM suma"]
[null,null,null,null,"Suma su PVM",{"$f":"IF(ISBLANK(F68), \"\", SUM(F67:F68))","v":""}]
[]
["8.","Acidum salicylicum"]
["8.1.","Acidum salicylicum",3,"kg",null,{"$f":"IF(ISBLANK(E72),\"\", PRODUCT(C72,E72))","v":""}]
[null,null,null,null,"Suma be PVM",{"$f":"IF(F72=\"\",\"\",SUM(F72:F72))","v":""},{"$f":"IF(F72=\"\",\"Neužpildytos visos objektų kainos\",\"\")","v":"Neužpildytos visos objektų kainos"}]
[null,null,null,null,"PVM suma"]
[null,null,null,null,"Suma su PVM",{"$f":"IF(ISBLANK(F74), \"\", SUM(F73:F74))","v":""}]
[]
["9.","Adatėlės penams 0,23mm 32G x 4mm"]
["9.1.","Adatėlės penams 0,23mm 32G x 4mm",1000,"Vnt.",null,{"$f":"IF(ISBLANK(E78),\"\", PRODUCT(C78,E78))","v":""}]
[null,null,null,null,"Suma be PVM",{"$f":"IF(F78=\"\",\"\",SUM(F78:F78))","v":""},{"$f":"IF(F78=\"\",\"Neužpildytos visos objektų kainos\",\"\")","v":"Neužpildytos visos objektų kainos"}]
[null,null,null,null,"PVM suma"]
[null,null,null,null,"Suma su PVM",{"$f":"IF(ISBLANK(F80), \"\", SUM(F79:F80))","v":""}]
[]
["10.","Aklinidino 340mcg+ Formoterolio 12mcg dozuoti įkvepiamieji milteliai 60doz."]
["10.1.","Aklinidino 340mcg+ Formoterolio 12mcg dozuoti įkvepiamieji milteliai 60doz.",120,"Doz.",null,{"$f":"IF(ISBLANK(E84),\"\", PRODUCT(C84,E84))","v":""}]
[null,null,null,null,"Suma be PVM",{"$f":"IF(F84=\"\",\"\",SUM(F84:F84))","v":""},{"$f":"IF(F84=\"\",\"Neužpildytos visos objektų kainos\",\"\")","v":"Neužpildytos visos objektų kainos"}]
[null,null,null,null,"PVM suma"]
[null,null,null,null,"Suma su PVM",{"$f":"IF(ISBLANK(F86), \"\", SUM(F85:F86))","v":""}]
[]
["11.","Aktyvinta anglis 200 mg"]
["11.1.","Aktyvinta anglis 200 mg",600,"Tab./Kaps",null,{"$f":"IF(ISBLANK(E90),\"\", PRODUCT(C90,E90))","v":""}]
[null,null,null,null,"Suma be PVM",{"$f":"IF(F90=\"\",\"\",SUM(F90:F90))","v":""},{"$f":"IF(F90=\"\",\"Neužpildytos visos objektų kainos\",\"\")","v":"Neužpildytos visos objektų kainos"}]
[null,null,null,null,"PVM suma"]
[null,null,null,null,"Suma su PVM",{"$f":"IF(ISBLANK(F92), \"\", SUM(F91:F92))","v":""}]
[]
["12.","Aktyvinta anglis milteliais po 61,5g"]
["12.1.","Aktyvinta anglis milteliais po 61,5g",5,"Įpak.",null,{"$f":"IF(ISBLANK(E96),\"\", PRODUCT(C96,E96))","v":""}]
[null,null,null,null,"Suma be PVM",{"$f":"IF(F96=\"\",\"\",SUM(F96:F96))","v":""},{"$f":"IF(F96=\"\",\"Neužpildytos visos objektų kainos\",\"\")","v":"Neužpildytos visos objektų kainos"}]
[null,null,null,null,"PVM suma"]
[null,null,null,null,"Suma su PVM",{"$f":"IF(ISBLANK(F98), \"\", SUM(F97:F98))","v":""}]
[]
["13.","Aktyvuotas protrombino koaguliacijos kompleksas 1000 TV"]
["13.1.","Aktyvuotas protrombino koaguliacijos kompleksas 1000 TV",3,"But./Amp.",null,{"$f":"IF(ISBLANK(E102),\"\", PRODUCT(C102,E102))","v":""}]
[null,null,null,null,"Suma be PVM",{"$f":"IF(F102=\"\",\"\",SUM(F102:F102))","v":""},{"$f":"IF(F102=\"\",\"Neužpildytos visos objektų kainos\",\"\")","v":"Neužpildytos visos objektų kainos"}]
[null,null,null,null,"PVM suma"]
[null,null,null,null,"Suma su PVM",{"$f":"IF(ISBLANK(F104), \"\", SUM(F103:F104))","v":""}]
[]
["14.","Albendazolum 400mg"]
["14.1.","Albendazolum 400mg",120,"Tab.",null,{"$f":"IF(ISBLANK(E108),\"\", PRODUCT(C108,E108))","v":""}]
[null,null,null,null,"Suma be PVM",{"$f":"IF(F108=\"\",\"\",SUM(F108:F108))","v":""},{"$f":"IF(F108=\"\",\"Neužpildytos visos objektų kainos\",\"\")","v":"Neužpildytos visos objektų kainos"}]
[null,null,null,null,"PVM suma"]
[null,null,null,null,"Suma su PVM",{"$f":"IF(ISBLANK(F110), \"\", SUM(F109:F110))","v":""}]
[]
["15.","Albuminas 200mg/ml 100 ml buteliukas"]
["15.1.","Albuminas 200mg/ml 100 ml buteliukas",60,"But.",null,{"$f":"IF(ISBLANK(E114),\"\", PRODUCT(C114,E114))","v":""}]
[null,null,null,null,"Suma be PVM",{"$f":"IF(F114=\"\",\"\",SUM(F114:F114))","v":""},{"$f":"IF(F114=\"\",\"Neužpildytos visos objektų kainos\",\"\")","v":"Neužpildytos visos objektų kainos"}]
[null,null,null,null,"PVM suma"]
[null,null,null,null,"Suma su PVM",{"$f":"IF(ISBLANK(F116), \"\", SUM(F115:F116))","v":""}]
[]
["16.","Ambroksolis 30 mg"]
["16.1.","Ambroksolis 30 mg",35000,"Tab.",4.5999999999999999E-2,{"$f":"IF(ISBLANK(E120),\"\", PRODUCT(C120,E120))","v":1610},"Ambrolan 30mg tab.N20, GL Pharma "]
[null,null,null,null,"Suma be PVM",{"$f":"IF(F120=\"\",\"\",SUM(F120:F120))","v":1610},{"$f":"IF(F120=\"\",\"Neužpildytos visos objektų kainos\",\"\")","v":""}]
[null,null,null,null,"PVM suma",80.5]
[null,null,null,null,"Suma su PVM",{"$f":"IF(ISBLANK(F122), \"\", SUM(F121:F122))","v":1690.5}]
[]
["17.","Amfotericinas B liposominis 50mg "]
["17.1.","Amfotericinas B liposominis 50mg ",5,"Amp.",339.24,{"$f":"IF(ISBLANK(E126),\"\", PRODUCT(C126,E126))","v":1696.2},"Amphonex 50mg inj N1, Bharat (Vardinis)"]
[null,null,null,null,"Suma be PVM",{"$f":"IF(F126=\"\",\"\",SUM(F126:F126))","v":1696.2},{"$f":"IF(F126=\"\",\"Neužpildytos visos objektų kainos\",\"\")","v":""}]
[null,null,null,null,"PVM suma",84.81]
[null,null,null,null,"Suma su PVM",{"$f":"IF(ISBLANK(F128), \"\", SUM(F127:F128))","v":1781.01}]
[]
["18.","Amino rūgštys + riebalinės emulsijos 1920ml (periferinis)"]
["18.1.","Amino rūgštys + riebalinės emulsijos 1920ml (periferinis)",20,"Fl.",null,{"$f":"IF(ISBLANK(E132),\"\", PRODUCT(C132,E132))","v":""}]
[null,null,null,null,"Suma be PVM",{"$f":"IF(F132=\"\",\"\",SUM(F132:F132))","v":""},{"$f":"IF(F132=\"\",\"Neužpildytos visos objektų kainos\",\"\")","v":"Neužpildytos visos objektų kainos"}]
[null,null,null,null,"PVM suma"]
[null,null,null,null,"Suma su PVM",{"$f":"IF(ISBLANK(F134), \"\", SUM(F133:F134))","v":""}]
[]
["19.","Amoksicilinas 250 mg"]
["19.1.","Amoksicilinas 250 mg",40,"kaps",null,{"$f":"IF(ISBLANK(E138),\"\", PRODUCT(C138,E138))","v":""}]
[null,null,null,null,"Suma be PVM",{"$f":"IF(F138=\"\",\"\",SUM(F138:F138))","v":""},{"$f":"IF(F138=\"\",\"Neužpildytos visos objektų kainos\",\"\")","v":"Neužpildytos visos objektų kainos"}]
[null,null,null,null,"PVM suma"]
[null,null,null,null,"Suma su PVM",{"$f":"IF(ISBLANK(F140), \"\", SUM(F139:F140))","v":""}]
[]
["20.","Ampicilinas 1000mg "]
["20.1.","Ampicilinas 1000mg ",15000,"But./Amp.",0.48499999999999999,{"$f":"IF(ISBLANK(E144),\"\", PRODUCT(C144,E144))","v":7275},"Ampitor-1000 for inj. N25, Johnlee Pharmaceuticals (Vardinis)"]
[null,null,null,null,"Suma be PVM",{"$f":"IF(F144=\"\",\"\",SUM(F144:F144))","v":7275},{"$f":"IF(F144=\"\",\"Neužpildytos visos objektų kainos\",\"\")","v":""}]
[null,null,null,null,"PVM suma",363.75]
[null,null,null,null,"Suma su PVM",{"$f":"IF(ISBLANK(F146), \"\", SUM(F145:F146))","v":7638.75}]
[]
["21.","Ampicilinas 1000mg + Sulbaktamas 500mg"]
["21.1.","Ampicilinas 1000mg + Sulbaktamas 500mg",4500,"Amp./But.",1.02,{"$f":"IF(ISBLANK(E150),\"\", PRODUCT(C150,E150))","v":4590},"Bestpen-S 1,5g inj. N1, Talent Healthcare (Vardinis)"]
[null,null,null,null,"Suma be PVM",{"$f":"IF(F150=\"\",\"\",SUM(F150:F150))","v":4590},{"$f":"IF(F150=\"\",\"Neužpildytos visos objektų kainos\",\"\")","v":""}]
[null,null,null,null,"PVM suma",229.5]
[null,null,null,null,"Suma su PVM",{"$f":"IF(ISBLANK(F152), \"\", SUM(F151:F152))","v":4819.5}]
[]
["22.","Anaesthesinum"]
["22.1.","Anaesthesinum",400,"g",null,{"$f":"IF(ISBLANK(E156),\"\", PRODUCT(C156,E156))","v":""}]
[null,null,null,null,"Suma be PVM",{"$f":"IF(F156=\"\",\"\",SUM(F156:F156))","v":""},{"$f":"IF(F156=\"\",\"Neužpildytos visos objektų kainos\",\"\")","v":"Neužpildytos visos objektų kainos"}]
[null,null,null,null,"PVM suma"]
[null,null,null,null,"Suma su PVM",{"$f":"IF(ISBLANK(F158), \"\", SUM(F157:F158))","v":""}]
[]
["23.","Argenthi nitras"]
["23.1.","Argenthi nitras",50,"g",null,{"$f":"IF(ISBLANK(E162),\"\", PRODUCT(C162,E162))","v":""}]
[null,null,null,null,"Suma be PVM",{"$f":"IF(F162=\"\",\"\",SUM(F162:F162))","v":""},{"$f":"IF(F162=\"\",\"Neužpildytos visos objektų kainos\",\"\")","v":"Neužpildytos visos objektų kainos"}]
[null,null,null,null,"PVM suma"]
[null,null,null,null,"Suma su PVM",{"$f":"IF(ISBLANK(F164), \"\", SUM(F163:F164))","v":""}]
[]
["24.","Barii sulfas pro rentgeno"]
["24.1.","Barii sulfas pro rentgeno",20,"kg",null,{"$f":"IF(ISBLANK(E168),\"\", PRODUCT(C168,E168))","v":""}]
[null,null,null,null,"Suma be PVM",{"$f":"IF(F168=\"\",\"\",SUM(F168:F168))","v":""},{"$f":"IF(F168=\"\",\"Neužpildytos visos objektų kainos\",\"\")","v":"Neužpildytos visos objektų kainos"}]
[null,null,null,null,"PVM suma"]
[null,null,null,null,"Suma su PVM",{"$f":"IF(ISBLANK(F170), \"\", SUM(F169:F170))","v":""}]
[]
["25.","Bemiparino natrio druska 2500 TV anti- Xa/0,2ml injekcijoms"]
["25.1.","Bemiparino natrio druska 2500 TV anti- Xa/0,2ml injekcijoms",18000,"Užtaisas",null,{"$f":"IF(ISBLANK(E174),\"\", PRODUCT(C174,E174))","v":""}]
[null,null,null,null,"Suma be PVM",{"$f":"IF(F174=\"\",\"\",SUM(F174:F174))","v":""},{"$f":"IF(F174=\"\",\"Neužpildytos visos objektų kainos\",\"\")","v":"Neužpildytos visos objektų kainos"}]
[null,null,null,null,"PVM suma"]
[null,null,null,null,"Suma su PVM",{"$f":"IF(ISBLANK(F176), \"\", SUM(F175:F176))","v":""}]
[]
["26.","Bemiparino natrio druska 3500 TV anti- Xa/0,2ml injekcijoms"]
["26.1.","Bemiparino natrio druska 3500 TV anti- Xa/0,2ml injekcijoms",18000,"Užtaisas",null,{"$f":"IF(ISBLANK(E180),\"\", PRODUCT(C180,E180))","v":""}]
[null,null,null,null,"Suma be PVM",{"$f":"IF(F180=\"\",\"\",SUM(F180:F180))","v":""},{"$f":"IF(F180=\"\",\"Neužpildytos visos objektų kainos\",\"\")","v":"Neužpildytos visos objektų kainos"}]
[null,null,null,null,"PVM suma"]
[null,null,null,null,"Suma su PVM",{"$f":"IF(ISBLANK(F182), \"\", SUM(F181:F182))","v":""}]
[]
["27.","Benfotiaminas 100mg + Piridoksinas (B6) 100mg + Cianokobalaminas 1000mcg amp. "]
["27.1.","Benfotiaminas 100mg + Piridoksinas (B6) 100mg + Cianokobalaminas 1000mcg amp. ",100,"Amp.",null,{"$f":"IF(ISBLANK(E186),\"\", PRODUCT(C186,E186))","v":""}]
[null,null,null,null,"Suma be PVM",{"$f":"IF(F186=\"\",\"\",SUM(F186:F186))","v":""},{"$f":"IF(F186=\"\",\"Neužpildytos visos objektų kainos\",\"\")","v":"Neužpildytos visos objektų kainos"}]
[null,null,null,null,"PVM suma"]
[null,null,null,null,"Suma su PVM",{"$f":"IF(ISBLANK(F188), \"\", SUM(F187:F188))","v":""}]
[]
["28.","Benzatino penicilinas 2400000 TV "]
["28.1.","Benzatino penicilinas 2400000 TV ",30,"But./Amp.",null,{"$f":"IF(ISBLANK(E192),\"\", PRODUCT(C192,E192))","v":""}]
[null,null,null,null,"Suma be PVM",{"$f":"IF(F192=\"\",\"\",SUM(F192:F192))","v":""},{"$f":"IF(F192=\"\",\"Neužpildytos visos objektų kainos\",\"\")","v":"Neužpildytos visos objektų kainos"}]
[null,null,null,null,"PVM suma"]
[null,null,null,null,"Suma su PVM",{"$f":"IF(ISBLANK(F194), \"\", SUM(F193:F194))","v":""}]
[]
["29.","Benzilpenicilinas 1000000 TV"]
["29.1.","Benzilpenicilinas 1000000 TV",30000,"But.",0.37,{"$f":"IF(ISBLANK(E198),\"\", PRODUCT(C198,E198))","v":11100},"Crispen-10 1.000.000 IU inj. (IM/IV) N50, Vysali Pharma (Vardinis)"]
[null,null,null,null,"Suma be PVM",{"$f":"IF(F198=\"\",\"\",SUM(F198:F198))","v":11100},{"$f":"IF(F198=\"\",\"Neužpildytos visos objektų kainos\",\"\")","v":""}]
[null,null,null,null,"PVM suma",555]
[null,null,null,null,"Suma su PVM",{"$f":"IF(ISBLANK(F200), \"\", SUM(F199:F200))","v":11655}]
[]
["30.","Betainas su poliheksanidu 350ml "]
["30.1.","Betainas su poliheksanidu 350ml ",320,"Fl.",null,{"$f":"IF(ISBLANK(E204),\"\", PRODUCT(C204,E204))","v":""}]
[null,null,null,null,"Suma be PVM",{"$f":"IF(F204=\"\",\"\",SUM(F204:F204))","v":""},{"$f":"IF(F204=\"\",\"Neužpildytos visos objektų kainos\",\"\")","v":"Neužpildytos visos objektų kainos"}]
[null,null,null,null,"PVM suma"]
[null,null,null,null,"Suma su PVM",{"$f":"IF(ISBLANK(F206), \"\", SUM(F205:F206))","v":""}]
[]
["31.","Bolus alba"]
["31.1.","Bolus alba",2,"kg",null,{"$f":"IF(ISBLANK(E210),\"\", PRODUCT(C210,E210))","v":""}]
[null,null,null,null,"Suma be PVM",{"$f":"IF(F210=\"\",\"\",SUM(F210:F210))","v":""},{"$f":"IF(F210=\"\",\"Neužpildytos visos objektų kainos\",\"\")","v":"Neužpildytos visos objektų kainos"}]
[null,null,null,null,"PVM suma"]
[null,null,null,null,"Suma su PVM",{"$f":"IF(ISBLANK(F212), \"\", SUM(F211:F212))","v":""}]
[]
["32.","Botulizmo antitoksinas infuz tirp.  250ml Fl."]
["32.1.","Botulizmo antitoksinas infuz tirp.  250ml Fl.",2,"Fl.",3300,{"$f":"IF(ISBLANK(E216),\"\", PRODUCT(C216,E216))","v":6600},"Antytoksyna botulinowa ABE 10ml N1, Biomed (Vardinis)"]
[null,null,null,null,"Suma be PVM",{"$f":"IF(F216=\"\",\"\",SUM(F216:F216))","v":6600},{"$f":"IF(F216=\"\",\"Neužpildytos visos objektų kainos\",\"\")","v":""}]
[null,null,null,null,"PVM suma",330]
[null,null,null,null,"Suma su PVM",{"$f":"IF(ISBLANK(F218), \"\", SUM(F217:F218))","v":6930}]
[]
["33.","Bupivakainas 0,5% 10ml (tinka spinalinei anestezijai)"]
["33.1.","Bupivakainas 0,5% 10ml (tinka spinalinei anestezijai)",400,"Amp.",null,{"$f":"IF(ISBLANK(E222),\"\", PRODUCT(C222,E222))","v":""}]
[null,null,null,null,"Suma be PVM",{"$f":"IF(F222=\"\",\"\",SUM(F222:F222))","v":""},{"$f":"IF(F222=\"\",\"Neužpildytos visos objektų kainos\",\"\")","v":"Neužpildytos visos objektų kainos"}]
[null,null,null,null,"PVM suma"]
[null,null,null,null,"Suma su PVM",{"$f":"IF(ISBLANK(F224), \"\", SUM(F223:F224))","v":""}]
[]
["34.","Burnos gelis 12 % nuo burnos pažeidimų. Sudėtis: ( vandens, polivinilo pirolidono (PVP), maltodekstrino, propeno glikolio, PEG-40 hidrinto ricinos aliejaus, ksantano dervos, kalio sorbato, natrio benzoato, natrio hialuronato, kvapiųjų medžiagų, benzalkonio chlorido, dinatrio EDTA, natrio sacharino, dikalio glicirizato, tikrojo alavijo (Aloe barbadensis."]
["34.1.","Burnos gelis 12 % nuo burnos pažeidimų. Sudėtis: ( vandens, polivinilo pirolidono (PVP), maltodekstrino, propeno glikolio, PEG-40 hidrinto ricinos aliejaus, ksantano dervos, kalio sorbato, natrio benzoato, natrio hialuronato, kvapiųjų medžiagų, benzalkonio chlorido, dinatrio EDTA, natrio sacharino, dikalio glicirizato, tikrojo alavijo (Aloe barbadensis.",80,"ml",null,{"$f":"IF(ISBLANK(E228),\"\", PRODUCT(C228,E228))","v":""}]
[null,null,null,null,"Suma be PVM",{"$f":"IF(F228=\"\",\"\",SUM(F228:F228))","v":""},{"$f":"IF(F228=\"\",\"Neužpildytos visos objektų kainos\",\"\")","v":"Neužpildytos visos objektų kainos"}]
[null,null,null,null,"PVM suma"]
[null,null,null,null,"Suma su PVM",{"$f":"IF(ISBLANK(F230), \"\", SUM(F229:F230))","v":""}]
[]
["35.","Butyrum cacao"]
["35.1.","Butyrum cacao",1,"kg",null,{"$f":"IF(ISBLANK(E234),\"\", PRODUCT(C234,E234))","v":""}]
[null,null,null,null,"Suma be PVM",{"$f":"IF(F234=\"\",\"\",SUM(F234:F234))","v":""},{"$f":"IF(F234=\"\",\"Neužpildytos visos objektų kainos\",\"\")","v":"Neužpildytos visos objektų kainos"}]
[null,null,null,null,"PVM suma"]
[null,null,null,null,"Suma su PVM",{"$f":"IF(ISBLANK(F236), \"\", SUM(F235:F236))","v":""}]
[]
["36.","Calcii carbonas"]
["36.1.","Calcii carbonas",4,"kg",null,{"$f":"IF(ISBLANK(E240),\"\", PRODUCT(C240,E240))","v":""}]
[null,null,null,null,"Suma be PVM",{"$f":"IF(F240=\"\",\"\",SUM(F240:F240))","v":""},{"$f":"IF(F240=\"\",\"Neužpildytos visos objektų kainos\",\"\")","v":"Neužpildytos visos objektų kainos"}]
[null,null,null,null,"PVM suma"]
[null,null,null,null,"Suma su PVM",{"$f":"IF(ISBLANK(F242), \"\", SUM(F241:F242))","v":""}]
[]
["37.","Cefoperazonas + Sulbaktamas 1000mg/1000mg injekcijoms"]
["37.1.","Cefoperazonas + Sulbaktamas 1000mg/1000mg injekcijoms",10,"But./Amp.",15,{"$f":"IF(ISBLANK(E246),\"\", PRODUCT(C246,E246))","v":150},"ZON-FH 2 powder for inj. 2g N1, Florencia Healthcare (Vardinis)"]
[null,null,null,null,"Suma be PVM",{"$f":"IF(F246=\"\",\"\",SUM(F246:F246))","v":150},{"$f":"IF(F246=\"\",\"Neužpildytos visos objektų kainos\",\"\")","v":""}]
[null,null,null,null,"PVM suma",7.5]
[null,null,null,null,"Suma su PVM",{"$f":"IF(ISBLANK(F248), \"\", SUM(F247:F248))","v":157.5}]
[]
["38.","Chlorheksidinas 0,2mg/ml 1000ml"]
["38.1.","Chlorheksidinas 0,2mg/ml 1000ml",1400,"Fl.",null,{"$f":"IF(ISBLANK(E252),\"\", PRODUCT(C252,E252))","v":""}]
[null,null,null,null,"Suma be PVM",{"$f":"IF(F252=\"\",\"\",SUM(F252:F252))","v":""},{"$f":"IF(F252=\"\",\"Neužpildytos visos objektų kainos\",\"\")","v":"Neužpildytos visos objektų kainos"}]
[null,null,null,null,"PVM suma"]
[null,null,null,null,"Suma su PVM",{"$f":"IF(ISBLANK(F254), \"\", SUM(F253:F254))","v":""}]
[]
["39.","Chlorhexidine gluconate 20%sol."]
["39.1.","Chlorhexidine gluconate 20%sol.",5,"l",null,{"$f":"IF(ISBLANK(E258),\"\", PRODUCT(C258,E258))","v":""}]
[null,null,null,null,"Suma be PVM",{"$f":"IF(F258=\"\",\"\",SUM(F258:F258))","v":""},{"$f":"IF(F258=\"\",\"Neužpildytos visos objektų kainos\",\"\")","v":"Neužpildytos visos objektų kainos"}]
[null,null,null,null,"PVM suma"]
[null,null,null,null,"Suma su PVM",{"$f":"IF(ISBLANK(F260), \"\", SUM(F259:F260))","v":""}]
[]
["40.","Cholino salicilatas 200mg/ml ausų lašai"]
["40.1.","Cholino salicilatas 200mg/ml ausų lašai",60,"ml",null,{"$f":"IF(ISBLANK(E264),\"\", PRODUCT(C264,E264))","v":""}]
[null,null,null,null,"Suma be PVM",{"$f":"IF(F264=\"\",\"\",SUM(F264:F264))","v":""},{"$f":"IF(F264=\"\",\"Neužpildytos visos objektų kainos\",\"\")","v":"Neužpildytos visos objektų kainos"}]
[null,null,null,null,"PVM suma"]
[null,null,null,null,"Suma su PVM",{"$f":"IF(ISBLANK(F266), \"\", SUM(F265:F266))","v":""}]
[]
["41.","Cinarizinas 25 mg"]
["41.1.","Cinarizinas 25 mg",300,"Tab.",null,{"$f":"IF(ISBLANK(E270),\"\", PRODUCT(C270,E270))","v":""}]
[null,null,null,null,"Suma be PVM",{"$f":"IF(F270=\"\",\"\",SUM(F270:F270))","v":""},{"$f":"IF(F270=\"\",\"Neužpildytos visos objektų kainos\",\"\")","v":"Neužpildytos visos objektų kainos"}]
[null,null,null,null,"PVM suma"]
[null,null,null,null,"Suma su PVM",{"$f":"IF(ISBLANK(F272), \"\", SUM(F271:F272))","v":""}]
[]
["42.","Citrulus colocynthis, ammonium bromatum, atropinum sulfuricum, veratrum album, magnesium phosphoricum, gelsemium sempervirens, passiflora incarnata, agaricus, chamomilla recutita, cuprum sulfuricim, aconitum napellus, laktozės, tab magnio stearato."]
["42.1.","Citrulus colocynthis, ammonium bromatum, atropinum sulfuricum, veratrum album, magnesium phosphoricum, gelsemium sempervirens, passiflora incarnata, agaricus, chamomilla recutita, cuprum sulfuricim, aconitum napellus, laktozės, tab magnio stearato.",14000,"Tab.",null,{"$f":"IF(ISBLANK(E276),\"\", PRODUCT(C276,E276))","v":""}]
[null,null,null,null,"Suma be PVM",{"$f":"IF(F276=\"\",\"\",SUM(F276:F276))","v":""},{"$f":"IF(F276=\"\",\"Neužpildytos visos objektų kainos\",\"\")","v":"Neužpildytos visos objektų kainos"}]
[null,null,null,null,"PVM suma"]
[null,null,null,null,"Suma su PVM",{"$f":"IF(ISBLANK(F278), \"\", SUM(F277:F278))","v":""}]
[]
["43.","Crystal violet (gentian violet) pulv. 10g"]
["43.1.","Crystal violet (gentian violet) pulv. 10g",200,"g",null,{"$f":"IF(ISBLANK(E282),\"\", PRODUCT(C282,E282))","v":""}]
[null,null,null,null,"Suma be PVM",{"$f":"IF(F282=\"\",\"\",SUM(F282:F282))","v":""},{"$f":"IF(F282=\"\",\"Neužpildytos visos objektų kainos\",\"\")","v":"Neužpildytos visos objektų kainos"}]
[null,null,null,null,"PVM suma"]
[null,null,null,null,"Suma su PVM",{"$f":"IF(ISBLANK(F284), \"\", SUM(F283:F284))","v":""}]
[]
["44.","Dantrolenas 20mg milt. i.v."]
["44.1.","Dantrolenas 20mg milt. i.v.",12,"But/Amp",null,{"$f":"IF(ISBLANK(E288),\"\", PRODUCT(C288,E288))","v":""}]
[null,null,null,null,"Suma be PVM",{"$f":"IF(F288=\"\",\"\",SUM(F288:F288))","v":""},{"$f":"IF(F288=\"\",\"Neužpildytos visos objektų kainos\",\"\")","v":"Neužpildytos visos objektų kainos"}]
[null,null,null,null,"PVM suma"]
[null,null,null,null,"Suma su PVM",{"$f":"IF(ISBLANK(F290), \"\", SUM(F289:F290))","v":""}]
[]
["45.","Dapsonas 50mg"]
["45.1.","Dapsonas 50mg",300,"Tab.",null,{"$f":"IF(ISBLANK(E294),\"\", PRODUCT(C294,E294))","v":""}]
[null,null,null,null,"Suma be PVM",{"$f":"IF(F294=\"\",\"\",SUM(F294:F294))","v":""},{"$f":"IF(F294=\"\",\"Neužpildytos visos objektų kainos\",\"\")","v":"Neužpildytos visos objektų kainos"}]
[null,null,null,null,"PVM suma"]
[null,null,null,null,"Suma su PVM",{"$f":"IF(ISBLANK(F296), \"\", SUM(F295:F296))","v":""}]
[]
["46.","Deksametazonas 4 mg injekcijoms"]
["46.1.","Deksametazonas 4 mg injekcijoms",50000,"Amp.",0.28999999999999998,{"$f":"IF(ISBLANK(E300),\"\", PRODUCT(C300,E300))","v":14499.999999999998},"Dexamethasone 4mg/2ml amp. IM/IV N50, Systochem (Vardinis)"]
[null,null,null,null,"Suma be PVM",{"$f":"IF(F300=\"\",\"\",SUM(F300:F300))","v":14499.999999999998},{"$f":"IF(F300=\"\",\"Neužpildytos visos objektų kainos\",\"\")","v":""}]
[null,null,null,null,"PVM suma",725]
[null,null,null,null,"Suma su PVM",{"$f":"IF(ISBLANK(F302), \"\", SUM(F301:F302))","v":15224.999999999998}]
[]
["47.","Deksketoprofenas 25mg + Tramadolis 75mg tab."]
["47.1.","Deksketoprofenas 25mg + Tramadolis 75mg tab.",4000,"Tab.",0.32200000000000001,{"$f":"IF(ISBLANK(E306),\"\", PRODUCT(C306,E306))","v":1288},"Skudexa (Skudex) 75mg+25mg plëvele dengtos tab.N15, Berlin Chemie"]
[null,null,null,null,"Suma be PVM",{"$f":"IF(F306=\"\",\"\",SUM(F306:F306))","v":1288},{"$f":"IF(F306=\"\",\"Neužpildytos visos objektų kainos\",\"\")","v":""}]
[null,null,null,null,"PVM suma",64.400000000000006]
[null,null,null,null,"Suma su PVM",{"$f":"IF(ISBLANK(F308), \"\", SUM(F307:F308))","v":1352.4}]
[]
["48.","Dekspantenolis 4,63 mg/g odos putos "]
["48.1.","Dekspantenolis 4,63 mg/g odos putos ",390,"g",null,{"$f":"IF(ISBLANK(E312),\"\", PRODUCT(C312,E312))","v":""}]
[null,null,null,null,"Suma be PVM",{"$f":"IF(F312=\"\",\"\",SUM(F312:F312))","v":""},{"$f":"IF(F312=\"\",\"Neužpildytos visos objektų kainos\",\"\")","v":"Neužpildytos visos objektų kainos"}]
[null,null,null,null,"PVM suma"]
[null,null,null,null,"Suma su PVM",{"$f":"IF(ISBLANK(F314), \"\", SUM(F313:F314))","v":""}]
[]
["49.","Dekspantenolis 50mg/g tepalas "]
["49.1.","Dekspantenolis 50mg/g tepalas ",1000,"g",null,{"$f":"IF(ISBLANK(E318),\"\", PRODUCT(C318,E318))","v":""}]
[null,null,null,null,"Suma be PVM",{"$f":"IF(F318=\"\",\"\",SUM(F318:F318))","v":""},{"$f":"IF(F318=\"\",\"Neužpildytos visos objektų kainos\",\"\")","v":"Neužpildytos visos objektų kainos"}]
[null,null,null,null,"PVM suma"]
[null,null,null,null,"Suma su PVM",{"$f":"IF(ISBLANK(F320), \"\", SUM(F319:F320))","v":""}]
[]
["50.","Desmopresinas15µg/ml amp."]
["50.1.","Desmopresinas15µg/ml amp.",10,"Amp.",null,{"$f":"IF(ISBLANK(E324),\"\", PRODUCT(C324,E324))","v":""}]
[null,null,null,null,"Suma be PVM",{"$f":"IF(F324=\"\",\"\",SUM(F324:F324))","v":""},{"$f":"IF(F324=\"\",\"Neužpildytos visos objektų kainos\",\"\")","v":"Neužpildytos visos objektų kainos"}]
[null,null,null,null,"PVM suma"]
[null,null,null,null,"Suma su PVM",{"$f":"IF(ISBLANK(F326), \"\", SUM(F325:F326))","v":""}]
[]
["51.","Diasminum/hesperidinum 500mg"]
["51.1.","Diasminum/hesperidinum 500mg",180,"Tab.",null,{"$f":"IF(ISBLANK(E330),\"\", PRODUCT(C330,E330))","v":""}]
[null,null,null,null,"Suma be PVM",{"$f":"IF(F330=\"\",\"\",SUM(F330:F330))","v":""},{"$f":"IF(F330=\"\",\"Neužpildytos visos objektų kainos\",\"\")","v":"Neužpildytos visos objektų kainos"}]
[null,null,null,null,"PVM suma"]
[null,null,null,null,"Suma su PVM",{"$f":"IF(ISBLANK(F332), \"\", SUM(F331:F332))","v":""}]
[]
["52.","Diazepamas 10mg/2,5ml rektalinis tirpalas klizmutės"]
["52.1.","Diazepamas 10mg/2,5ml rektalinis tirpalas klizmutės",20,"Kliz.",null,{"$f":"IF(ISBLANK(E336),\"\", PRODUCT(C336,E336))","v":""}]
[null,null,null,null,"Suma be PVM",{"$f":"IF(F336=\"\",\"\",SUM(F336:F336))","v":""},{"$f":"IF(F336=\"\",\"Neužpildytos visos objektų kainos\",\"\")","v":"Neužpildytos visos objektų kainos"}]
[null,null,null,null,"PVM suma"]
[null,null,null,null,"Suma su PVM",{"$f":"IF(ISBLANK(F338), \"\", SUM(F337:F338))","v":""}]
[]
["53.","Diazepamas 2mg/5ml geriamoji suspensija"]
["53.1.","Diazepamas 2mg/5ml geriamoji suspensija",500,"ml",null,{"$f":"IF(ISBLANK(E342),\"\", PRODUCT(C342,E342))","v":""}]
[null,null,null,null,"Suma be PVM",{"$f":"IF(F342=\"\",\"\",SUM(F342:F342))","v":""},{"$f":"IF(F342=\"\",\"Neužpildytos visos objektų kainos\",\"\")","v":"Neužpildytos visos objektų kainos"}]
[null,null,null,null,"PVM suma"]
[null,null,null,null,"Suma su PVM",{"$f":"IF(ISBLANK(F344), \"\", SUM(F343:F344))","v":""}]
[]
["54.","Diazepamas 5mg/2,5ml rektalinis tirpalas klizmutės"]
["54.1.","Diazepamas 5mg/2,5ml rektalinis tirpalas klizmutės",10,"Kliz.",null,{"$f":"IF(ISBLANK(E348),\"\", PRODUCT(C348,E348))","v":""}]
[null,null,null,null,"Suma be PVM",{"$f":"IF(F348=\"\",\"\",SUM(F348:F348))","v":""},{"$f":"IF(F348=\"\",\"Neužpildytos visos objektų kainos\",\"\")","v":"Neužpildytos visos objektų kainos"}]
[null,null,null,null,"PVM suma"]
[null,null,null,null,"Suma su PVM",{"$f":"IF(ISBLANK(F350), \"\", SUM(F349:F350))","v":""}]
[]
["55.","Difterijos antitoksinas 10000IU 10ml"]
["55.1.","Difterijos antitoksinas 10000IU 10ml",10,"Fl.",288,{"$f":"IF(ISBLANK(E354),\"\", PRODUCT(C354,E354))","v":2880},"Diphteria Antitoxin 10000IU 10ml N1, Premiun serums and vaccines (Vardinis)"]
[null,null,null,null,"Suma be PVM",{"$f":"IF(F354=\"\",\"\",SUM(F354:F354))","v":2880},{"$f":"IF(F354=\"\",\"Neužpildytos visos objektų kainos\",\"\")","v":""}]
[null,null,null,null,"PVM suma",144]
[null,null,null,null,"Suma su PVM",{"$f":"IF(ISBLANK(F356), \"\", SUM(F355:F356))","v":3024}]
[]
["56.","Digoksinas 0,25mg/ml amp. 2ml"]
["56.1.","Digoksinas 0,25mg/ml amp. 2ml",1200,"Amp.",0.38200000000000001,{"$f":"IF(ISBLANK(E360),\"\", PRODUCT(C360,E360))","v":458.40000000000003},"Dixin 0,5mg/2ml injekc.tirpalas N10, Samarth (Vardinis)"]
[null,null,null,null,"Suma be PVM",{"$f":"IF(F360=\"\",\"\",SUM(F360:F360))","v":458.40000000000003},{"$f":"IF(F360=\"\",\"Neužpildytos visos objektų kainos\",\"\")","v":""}]
[null,null,null,null,"PVM suma",22.92]
[null,null,null,null,"Suma su PVM",{"$f":"IF(ISBLANK(F362), \"\", SUM(F361:F362))","v":481.32000000000005}]
[]
["57.","Dikalio klozepatas 5mg "]
["57.1.","Dikalio klozepatas 5mg ",150,"Kaps./tab.",null,{"$f":"IF(ISBLANK(E366),\"\", PRODUCT(C366,E366))","v":""}]
[null,null,null,null,"Suma be PVM",{"$f":"IF(F366=\"\",\"\",SUM(F366:F366))","v":""},{"$f":"IF(F366=\"\",\"Neužpildytos visos objektų kainos\",\"\")","v":"Neužpildytos visos objektų kainos"}]
[null,null,null,null,"PVM suma"]
[null,null,null,null,"Suma su PVM",{"$f":"IF(ISBLANK(F368), \"\", SUM(F367:F368))","v":""}]
[]
["58.","Distiliuotas vanduo irigacijoms 500ml"]
["58.1.","Distiliuotas vanduo irigacijoms 500ml",100,"Fl.",null,{"$f":"IF(ISBLANK(E372),\"\", PRODUCT(C372,E372))","v":""}]
[null,null,null,null,"Suma be PVM",{"$f":"IF(F372=\"\",\"\",SUM(F372:F372))","v":""},{"$f":"IF(F372=\"\",\"Neužpildytos visos objektų kainos\",\"\")","v":"Neužpildytos visos objektų kainos"}]
[null,null,null,null,"PVM suma"]
[null,null,null,null,"Suma su PVM",{"$f":"IF(ISBLANK(F374), \"\", SUM(F373:F374))","v":""}]
[]
["59.","Donepazilas 5mg"]
["59.1.","Donepazilas 5mg",84,"Tab.",null,{"$f":"IF(ISBLANK(E378),\"\", PRODUCT(C378,E378))","v":""}]
[null,null,null,null,"Suma be PVM",{"$f":"IF(F378=\"\",\"\",SUM(F378:F378))","v":""},{"$f":"IF(F378=\"\",\"Neužpildytos visos objektų kainos\",\"\")","v":"Neužpildytos visos objektų kainos"}]
[null,null,null,null,"PVM suma"]
[null,null,null,null,"Suma su PVM",{"$f":"IF(ISBLANK(F380), \"\", SUM(F379:F380))","v":""}]
[]
["60.","Doripenemas 500mg milt. infuz. tirp. "]
["60.1.","Doripenemas 500mg milt. infuz. tirp. ",20,"But./Amp",620,{"$f":"IF(ISBLANK(E384),\"\", PRODUCT(C384,E384))","v":12400},"Doripenem for inj. 500mg N1, Gufic (Vardinis)"]
[null,null,null,null,"Suma be PVM",{"$f":"IF(F384=\"\",\"\",SUM(F384:F384))","v":12400},{"$f":"IF(F384=\"\",\"Neužpildytos visos objektų kainos\",\"\")","v":""}]
[null,null,null,null,"PVM suma",620]
[null,null,null,null,"Suma su PVM",{"$f":"IF(ISBLANK(F386), \"\", SUM(F385:F386))","v":13020}]
[]
["61.","Efedrino hidrochloridas 25mg/ml."]
["61.1.","Efedrino hidrochloridas 25mg/ml.",1000,"Amp.",null,{"$f":"IF(ISBLANK(E390),\"\", PRODUCT(C390,E390))","v":""}]
[null,null,null,null,"Suma be PVM",{"$f":"IF(F390=\"\",\"\",SUM(F390:F390))","v":""},{"$f":"IF(F390=\"\",\"Neužpildytos visos objektų kainos\",\"\")","v":"Neužpildytos visos objektų kainos"}]
[null,null,null,null,"PVM suma"]
[null,null,null,null,"Suma su PVM",{"$f":"IF(ISBLANK(F392), \"\", SUM(F391:F392))","v":""}]
[]
["62.","Infuzinė emulsija trijų kamerų maiše : Energetinė vertė 800-1000 kcal"]
["62.1.","Energetinė vertė 800-1000 kcal; Gliukozė - ne daugiau nei 90g/1000ml; Amino rūgštys  - ne mažiau nei 65g/1000ml, sudėtyje turi būti amino rūgšties taurino; Lipidai - 4 riebalų emulsija (sojų aliejus, vidutinės grandies trigliceridai, alyvuogių aliejus, žuvų taukai su emega - 3); Su ekeltrolitais",240,"fl",null,{"$f":"IF(ISBLANK(E396),\"\", PRODUCT(C396,E396))","v":""}]
[null,null,null,null,"Suma be PVM",{"$f":"IF(F396=\"\",\"\",SUM(F396:F396))","v":""},{"$f":"IF(F396=\"\",\"Neužpildytos visos objektų kainos\",\"\")","v":"Neužpildytos visos objektų kainos"}]
[null,null,null,null,"PVM suma"]
[null,null,null,null,"Suma su PVM",{"$f":"IF(ISBLANK(F398), \"\", SUM(F397:F398))","v":""}]
[]
["63.","Eritromicinas 500mg."]
["63.1.","Eritromicinas 500mg.",20,"Amp.",320,{"$f":"IF(ISBLANK(E402),\"\", PRODUCT(C402,E402))","v":6400},"Erythrocine IV vial 1g N1, Advanz Pharma (Vardinis)"]
[null,null,null,null,"Suma be PVM",{"$f":"IF(F402=\"\",\"\",SUM(F402:F402))","v":6400},{"$f":"IF(F402=\"\",\"Neužpildytos visos objektų kainos\",\"\")","v":""}]
[null,null,null,null,"PVM suma",320]
[null,null,null,null,"Suma su PVM",{"$f":"IF(ISBLANK(F404), \"\", SUM(F403:F404))","v":6720}]
[]
["64.","Ertapanemas 1000mg injekcijoms"]
["64.1.","Ertapanemas 1000mg injekcijoms",20,"Amp.",412,{"$f":"IF(ISBLANK(E408),\"\", PRODUCT(C408,E408))","v":8240},"Ertapenem Sodium for inj 1g N1, Vitapure (Vardinis)"]
[null,null,null,null,"Suma be PVM",{"$f":"IF(F408=\"\",\"\",SUM(F408:F408))","v":8240},{"$f":"IF(F408=\"\",\"Neužpildytos visos objektų kainos\",\"\")","v":""}]
[null,null,null,null,"PVM suma",412]
[null,null,null,null,"Suma su PVM",{"$f":"IF(ISBLANK(F410), \"\", SUM(F409:F410))","v":8652}]
[]
["65.","Etambutolis 1,0g "]
["65.1.","Etambutolis 1,0g ",100,"Amp./Fl.",null,{"$f":"IF(ISBLANK(E414),\"\", PRODUCT(C414,E414))","v":""}]
[null,null,null,null,"Suma be PVM",{"$f":"IF(F414=\"\",\"\",SUM(F414:F414))","v":""},{"$f":"IF(F414=\"\",\"Neužpildytos visos objektų kainos\",\"\")","v":"Neužpildytos visos objektų kainos"}]
[null,null,null,null,"PVM suma"]
[null,null,null,null,"Suma su PVM",{"$f":"IF(ISBLANK(F416), \"\", SUM(F415:F416))","v":""}]
[]
["66.","Etambutolis 400 mg "]
["66.1.","Etambutolis 400 mg ",4300,"tab.",0.19,{"$f":"IF(ISBLANK(E420),\"\", PRODUCT(C420,E420))","v":817},"Combutol 400mg tab. N120, Lupin Limited (Vardinis)"]
[null,null,null,null,"Suma be PVM",{"$f":"IF(F420=\"\",\"\",SUM(F420:F420))","v":817},{"$f":"IF(F420=\"\",\"Neužpildytos visos objektų kainos\",\"\")","v":""}]
[null,null,null,null,"PVM suma",40.85]
[null,null,null,null,"Suma su PVM",{"$f":"IF(ISBLANK(F422), \"\", SUM(F421:F422))","v":857.85}]
[]
["67.","Etilo spiritas 96%"]
["67.1.","Etilo spiritas 96%",4200,"L",null,{"$f":"IF(ISBLANK(E426),\"\", PRODUCT(C426,E426))","v":""}]
[null,null,null,null,"Suma be PVM",{"$f":"IF(F426=\"\",\"\",SUM(F426:F426))","v":""},{"$f":"IF(F426=\"\",\"Neužpildytos visos objektų kainos\",\"\")","v":"Neužpildytos visos objektų kainos"}]
[null,null,null,null,"PVM suma"]
[null,null,null,null,"Suma su PVM",{"$f":"IF(ISBLANK(F428), \"\", SUM(F427:F428))","v":""}]
[]
["68.","Europinio standarto serija"]
["68.1.","Europinio standarto serija. Alergenai švirkštuose po 5ml. 30 skirtingų alergenų rinkinys. Rinkinį sudaro:1) Kalio dichromatas, 2) Parafenilendiaminas (ppd), 3) Tiuramų mišinys, 4) Niomicino sulfatas, 5) Kobalto chloridas, 6) Benzokainas, 7) Nikelio sulfatas, 8) Kliokvinolis, 9) Kanifolija, 10) Parabenų mišinys, 11) N-Izopropil-n-fenil-4 Parafenilendiaminas, 12) Vilnos alkogoliai (lanolinas), 13) Merkaptatų mišinys, 14) Epolisinės dervos, 15) Peru Balzamas, 16) 4-butilifenol formaldehido derva, 17) Merkaptobenzotiazolis, 18) Formaldehidas, 19) Aromatų   mišinys I, 20) Seskviterpenelaktonų mišinys, 21) Kvetenijus-15, 22) Priminas, 23) (chlor)- Metilizotiazolinas MCIIMI, 24) Budesonidas, 25) Tiksokortolio privalastas, 26) Metildibromogliutaronitrilas, 27) Aromatų mišinys II, 28) Hidroksimetilpertilcikloheksen karboksaldehidas, 29) Metilizotiazolinonas c. 0,2%, 30) Tekstilė ",1,"Rinkinys",null,{"$f":"IF(ISBLANK(E432),\"\", PRODUCT(C432,E432))","v":""}]
[null,null,null,null,"Suma be PVM",{"$f":"IF(F432=\"\",\"\",SUM(F432:F432))","v":""},{"$f":"IF(F432=\"\",\"Neužpildytos visos objektų kainos\",\"\")","v":"Neužpildytos visos objektų kainos"}]
[null,null,null,null,"PVM suma"]
[null,null,null,null,"Suma su PVM",{"$f":"IF(ISBLANK(F434), \"\", SUM(F433:F434))","v":""}]
[]
["69.","Fenitoinas 250mg."]
["69.1.","Fenitoinas 250mg.",10,"Amp.",98.5,{"$f":"IF(ISBLANK(E438),\"\", PRODUCT(C438,E438))","v":985},"Phenytoinum 250mg/5ml inj. N5, Samarth (Vardinis)"]
[null,null,null,null,"Suma be PVM",{"$f":"IF(F438=\"\",\"\",SUM(F438:F438))","v":985},{"$f":"IF(F438=\"\",\"Neužpildytos visos objektų kainos\",\"\")","v":""}]
[null,null,null,null,"PVM suma",49.25]
[null,null,null,null,"Suma su PVM",{"$f":"IF(ISBLANK(F440), \"\", SUM(F439:F440))","v":1034.25}]
[]
["70.","Fenobarbitalis 100mg "]
["70.1.","Fenobarbitalis 100mg ",50,"Tab.",null,{"$f":"IF(ISBLANK(E444),\"\", PRODUCT(C444,E444))","v":""}]
[null,null,null,null,"Suma be PVM",{"$f":"IF(F444=\"\",\"\",SUM(F444:F444))","v":""},{"$f":"IF(F444=\"\",\"Neužpildytos visos objektų kainos\",\"\")","v":"Neužpildytos visos objektų kainos"}]
[null,null,null,null,"PVM suma"]
[null,null,null,null,"Suma su PVM",{"$f":"IF(ISBLANK(F446), \"\", SUM(F445:F446))","v":""}]
[]
["71.","Fenobarbitalis 200mg."]
["71.1.","Fenobarbitalis 200mg.",20,"Amp.",null,{"$f":"IF(ISBLANK(E450),\"\", PRODUCT(C450,E450))","v":""}]
[null,null,null,null,"Suma be PVM",{"$f":"IF(F450=\"\",\"\",SUM(F450:F450))","v":""},{"$f":"IF(F450=\"\",\"Neužpildytos visos objektų kainos\",\"\")","v":"Neužpildytos visos objektų kainos"}]
[null,null,null,null,"PVM suma"]
[null,null,null,null,"Suma su PVM",{"$f":"IF(ISBLANK(F452), \"\", SUM(F451:F452))","v":""}]
[]
["72.","Fitomenadionas 10mg injekcijoms "]
["72.1.","Fitomenadionas 10mg injekcijoms ",3500,"Amp.",0.39,{"$f":"IF(ISBLANK(E456),\"\", PRODUCT(C456,E456))","v":1365},"Kanavit sol. inj. 10mg/1ml N5, BB Pharma (Vardinis)"]
[null,null,null,null,"Suma be PVM",{"$f":"IF(F456=\"\",\"\",SUM(F456:F456))","v":1365},{"$f":"IF(F456=\"\",\"Neužpildytos visos objektų kainos\",\"\")","v":""}]
[null,null,null,null,"PVM suma",68.25]
[null,null,null,null,"Suma su PVM",{"$f":"IF(ISBLANK(F458), \"\", SUM(F457:F458))","v":1433.25}]
[]
["73.","Fuchsinum basic"]
["73.1.","Fuchsinum basic",100,"g",null,{"$f":"IF(ISBLANK(E462),\"\", PRODUCT(C462,E462))","v":""}]
[null,null,null,null,"Suma be PVM",{"$f":"IF(F462=\"\",\"\",SUM(F462:F462))","v":""},{"$f":"IF(F462=\"\",\"Neužpildytos visos objektų kainos\",\"\")","v":"Neužpildytos visos objektų kainos"}]
[null,null,null,null,"PVM suma"]
[null,null,null,null,"Suma su PVM",{"$f":"IF(ISBLANK(F464), \"\", SUM(F463:F464))","v":""}]
[]
["74.","Furacillinum"]
["74.1.","Furacillinum",100,"g",null,{"$f":"IF(ISBLANK(E468),\"\", PRODUCT(C468,E468))","v":""}]
[null,null,null,null,"Suma be PVM",{"$f":"IF(F468=\"\",\"\",SUM(F468:F468))","v":""},{"$f":"IF(F468=\"\",\"Neužpildytos visos objektų kainos\",\"\")","v":"Neužpildytos visos objektų kainos"}]
[null,null,null,null,"PVM suma"]
[null,null,null,null,"Suma su PVM",{"$f":"IF(ISBLANK(F470), \"\", SUM(F469:F470))","v":""}]
[]
["75.","Furozemidas 60 mg "]
["75.1.","Furozemidas 60 mg ",1680,"Kaps",null,{"$f":"IF(ISBLANK(E474),\"\", PRODUCT(C474,E474))","v":""}]
[null,null,null,null,"Suma be PVM",{"$f":"IF(F474=\"\",\"\",SUM(F474:F474))","v":""},{"$f":"IF(F474=\"\",\"Neužpildytos visos objektų kainos\",\"\")","v":"Neužpildytos visos objektų kainos"}]
[null,null,null,null,"PVM suma"]
[null,null,null,null,"Suma su PVM",{"$f":"IF(ISBLANK(F476), \"\", SUM(F475:F476))","v":""}]
[]
["76.","Fuzido rūgšties 20mg/g kremas"]
["76.1.","Fuzido rūgšties 20mg/g kremas",600,"g",null,{"$f":"IF(ISBLANK(E480),\"\", PRODUCT(C480,E480))","v":""}]
[null,null,null,null,"Suma be PVM",{"$f":"IF(F480=\"\",\"\",SUM(F480:F480))","v":""},{"$f":"IF(F480=\"\",\"Neužpildytos visos objektų kainos\",\"\")","v":"Neužpildytos visos objektų kainos"}]
[null,null,null,null,"PVM suma"]
[null,null,null,null,"Suma su PVM",{"$f":"IF(ISBLANK(F482), \"\", SUM(F481:F482))","v":""}]
[]
["77.","Fuzido rūgšties 20mg/g tepalas"]
["77.1.","Fuzido rūgšties 20mg/g tepalas",350,"g",null,{"$f":"IF(ISBLANK(E486),\"\", PRODUCT(C486,E486))","v":""}]
[null,null,null,null,"Suma be PVM",{"$f":"IF(F486=\"\",\"\",SUM(F486:F486))","v":""},{"$f":"IF(F486=\"\",\"Neužpildytos visos objektų kainos\",\"\")","v":"Neužpildytos visos objektų kainos"}]
[null,null,null,null,"PVM suma"]
[null,null,null,null,"Suma su PVM",{"$f":"IF(ISBLANK(F488), \"\", SUM(F487:F488))","v":""}]
[]
["78.","Fuzido rūgštis 10mg/g akių lašai suspensija"]
["78.1.","Fuzido rūgštis 10mg/g akių lašai suspensija",25,"g",null,{"$f":"IF(ISBLANK(E492),\"\", PRODUCT(C492,E492))","v":""}]
[null,null,null,null,"Suma be PVM",{"$f":"IF(F492=\"\",\"\",SUM(F492:F492))","v":""},{"$f":"IF(F492=\"\",\"Neužpildytos visos objektų kainos\",\"\")","v":"Neužpildytos visos objektų kainos"}]
[null,null,null,null,"PVM suma"]
[null,null,null,null,"Suma su PVM",{"$f":"IF(ISBLANK(F494), \"\", SUM(F493:F494))","v":""}]
[]
["79.","Fuzido rūgštis+Hidrokortizonas  20mg/10mg/g kremas"]
["79.1.","Fuzido rūgštis+Hidrokortizonas  20mg/10mg/g kremas",150,"g",null,{"$f":"IF(ISBLANK(E498),\"\", PRODUCT(C498,E498))","v":""}]
[null,null,null,null,"Suma be PVM",{"$f":"IF(F498=\"\",\"\",SUM(F498:F498))","v":""},{"$f":"IF(F498=\"\",\"Neužpildytos visos objektų kainos\",\"\")","v":"Neužpildytos visos objektų kainos"}]
[null,null,null,null,"PVM suma"]
[null,null,null,null,"Suma su PVM",{"$f":"IF(ISBLANK(F500), \"\", SUM(F499:F500))","v":""}]
[]
["80.","Gancikloviras 500mg injekcijoms "]
["80.1.","Gancikloviras 500mg injekcijoms ",30,"But./Amp.",35.659999999999997,{"$f":"IF(ISBLANK(E504),\"\", PRODUCT(C504,E504))","v":1069.8},"Natclovir 500mg inj. N1, Natco (Vardinis)"]
[null,null,null,null,"Suma be PVM",{"$f":"IF(F504=\"\",\"\",SUM(F504:F504))","v":1069.8},{"$f":"IF(F504=\"\",\"Neužpildytos visos objektų kainos\",\"\")","v":""}]
[null,null,null,null,"PVM suma",53.49]
[null,null,null,null,"Suma su PVM",{"$f":"IF(ISBLANK(F506), \"\", SUM(F505:F506))","v":1123.29}]
[]
["81.","Geležies (III) hidroksido – polimaltozės komplekso pavidalu 100mg/2ml injekcijoms"]
["81.1.","Geležies (III) hidroksido – polimaltozės komplekso pavidalu 100mg/2ml injekcijoms",100,"Amp.",null,{"$f":"IF(ISBLANK(E510),\"\", PRODUCT(C510,E510))","v":""}]
[null,null,null,null,"Suma be PVM",{"$f":"IF(F510=\"\",\"\",SUM(F510:F510))","v":""},{"$f":"IF(F510=\"\",\"Neužpildytos visos objektų kainos\",\"\")","v":"Neužpildytos visos objektų kainos"}]
[null,null,null,null,"PVM suma"]
[null,null,null,null,"Suma su PVM",{"$f":"IF(ISBLANK(F512), \"\", SUM(F511:F512))","v":""}]
[]
["82.","Gencijonų šaknų miltelių 2mg, Raktažolų žiedų 6mg, Rūgštynių žolės 6mg, Juodųjų šeivamedžių žiedų 6mg,Verbene herba 6 mg lašai"]
["82.1.","Gencijonų šaknų miltelių 2mg, Raktažolų žiedų 6mg, Rūgštynių žolės 6mg, Juodųjų šeivamedžių žiedų 6mg,Verbene herba 6 mg lašai",1000,"ml",null,{"$f":"IF(ISBLANK(E516),\"\", PRODUCT(C516,E516))","v":""}]
[null,null,null,null,"Suma be PVM",{"$f":"IF(F516=\"\",\"\",SUM(F516:F516))","v":""},{"$f":"IF(F516=\"\",\"Neužpildytos visos objektų kainos\",\"\")","v":"Neužpildytos visos objektų kainos"}]
[null,null,null,null,"PVM suma"]
[null,null,null,null,"Suma su PVM",{"$f":"IF(ISBLANK(F518), \"\", SUM(F517:F518))","v":""}]
[]
["83.","Gencijonų šaknų miltelių 6mg, Raktažolių žiedų miltelių 18mg, Rūgštynių žolės miltelių 18mg, Juodųjų šeivamedžių žiedų miltelių 18mg, Verbenų žolės miltelių 18 mg"]
["83.1.","Gencijonų šaknų miltelių 6mg, Raktažolių žiedų miltelių 18mg, Rūgštynių žolės miltelių 18mg, Juodųjų šeivamedžių žiedų miltelių 18mg, Verbenų žolės miltelių 18 mg",100,"Tab.",null,{"$f":"IF(ISBLANK(E522),\"\", PRODUCT(C522,E522))","v":""}]
[null,null,null,null,"Suma be PVM",{"$f":"IF(F522=\"\",\"\",SUM(F522:F522))","v":""},{"$f":"IF(F522=\"\",\"Neužpildytos visos objektų kainos\",\"\")","v":"Neužpildytos visos objektų kainos"}]
[null,null,null,null,"PVM suma"]
[null,null,null,null,"Suma su PVM",{"$f":"IF(ISBLANK(F524), \"\", SUM(F523:F524))","v":""}]
[]
["84.","Glycerinum"]
["84.1.","Glycerinum",1,"kg",null,{"$f":"IF(ISBLANK(E528),\"\", PRODUCT(C528,E528))","v":""}]
[null,null,null,null,"Suma be PVM",{"$f":"IF(F528=\"\",\"\",SUM(F528:F528))","v":""},{"$f":"IF(F528=\"\",\"Neužpildytos visos objektų kainos\",\"\")","v":"Neužpildytos visos objektų kainos"}]
[null,null,null,null,"PVM suma"]
[null,null,null,null,"Suma su PVM",{"$f":"IF(ISBLANK(F530), \"\", SUM(F529:F530))","v":""}]
[]
["85.","Glicerolio trinitratas 5mg injekcijoms "]
["85.1.","Glicerolio trinitratas 5mg injekcijoms ",900,"Amp.",null,{"$f":"IF(ISBLANK(E534),\"\", PRODUCT(C534,E534))","v":""}]
[null,null,null,null,"Suma be PVM",{"$f":"IF(F534=\"\",\"\",SUM(F534:F534))","v":""},{"$f":"IF(F534=\"\",\"Neužpildytos visos objektų kainos\",\"\")","v":"Neužpildytos visos objektų kainos"}]
[null,null,null,null,"PVM suma"]
[null,null,null,null,"Suma su PVM",{"$f":"IF(ISBLANK(F536), \"\", SUM(F535:F536))","v":""}]
[]
["86.","Gliklazidas 30 mg"]
["86.1.","Gliklazidas 30 mg",3000,"Tab.",null,{"$f":"IF(ISBLANK(E540),\"\", PRODUCT(C540,E540))","v":""}]
[null,null,null,null,"Suma be PVM",{"$f":"IF(F540=\"\",\"\",SUM(F540:F540))","v":""},{"$f":"IF(F540=\"\",\"Neužpildytos visos objektų kainos\",\"\")","v":"Neužpildytos visos objektų kainos"}]
[null,null,null,null,"PVM suma"]
[null,null,null,null,"Suma su PVM",{"$f":"IF(ISBLANK(F542), \"\", SUM(F541:F542))","v":""}]
[]
["87.","Gliukozė 40% "]
["87.1.","Gliukozė 40% ",100,"Amp.",null,{"$f":"IF(ISBLANK(E546),\"\", PRODUCT(C546,E546))","v":""}]
[null,null,null,null,"Suma be PVM",{"$f":"IF(F546=\"\",\"\",SUM(F546:F546))","v":""},{"$f":"IF(F546=\"\",\"Neužpildytos visos objektų kainos\",\"\")","v":"Neužpildytos visos objektų kainos"}]
[null,null,null,null,"PVM suma"]
[null,null,null,null,"Suma su PVM",{"$f":"IF(ISBLANK(F548), \"\", SUM(F547:F548))","v":""}]
[]
["88.","Gliukozė bevandenė + Natrio chloridas+Natrio citratas + kalio chloridas 6,75g+1,3g+1,45g+0,75g"]
["88.1.","Gliukozė bevandenė + Natrio chloridas+Natrio citratas + kalio chloridas 6,75g+1,3g+1,45g+0,75g",900,"Milt.",1.05,{"$f":"IF(ISBLANK(E552),\"\", PRODUCT(C552,E552))","v":945},"Elektrolitai Labor 4,2g N20, Labor"]
[null,null,null,null,"Suma be PVM",{"$f":"IF(F552=\"\",\"\",SUM(F552:F552))","v":945},{"$f":"IF(F552=\"\",\"Neužpildytos visos objektų kainos\",\"\")","v":""}]
[null,null,null,null,"PVM suma",47.25]
[null,null,null,null,"Suma su PVM",{"$f":"IF(ISBLANK(F554), \"\", SUM(F553:F554))","v":992.25}]
[]
["89.","Glucosum"]
["89.1.","Glucosum",3,"kg",null,{"$f":"IF(ISBLANK(E558),\"\", PRODUCT(C558,E558))","v":""}]
[null,null,null,null,"Suma be PVM",{"$f":"IF(F558=\"\",\"\",SUM(F558:F558))","v":""},{"$f":"IF(F558=\"\",\"Neužpildytos visos objektų kainos\",\"\")","v":"Neužpildytos visos objektų kainos"}]
[null,null,null,null,"PVM suma"]
[null,null,null,null,"Suma su PVM",{"$f":"IF(ISBLANK(F560), \"\", SUM(F559:F560))","v":""}]
[]
["90.","Haloperidolis 1,5 mg"]
["90.1.","Haloperidolis 1,5 mg",500,"Tab.",null,{"$f":"IF(ISBLANK(E564),\"\", PRODUCT(C564,E564))","v":""}]
[null,null,null,null,"Suma be PVM",{"$f":"IF(F564=\"\",\"\",SUM(F564:F564))","v":""},{"$f":"IF(F564=\"\",\"Neužpildytos visos objektų kainos\",\"\")","v":"Neužpildytos visos objektų kainos"}]
[null,null,null,null,"PVM suma"]
[null,null,null,null,"Suma su PVM",{"$f":"IF(ISBLANK(F566), \"\", SUM(F565:F566))","v":""}]
[]
["91.","Haloperidolis 5 mg"]
["91.1.","Haloperidolis 5 mg",1000,"Tab.",null,{"$f":"IF(ISBLANK(E570),\"\", PRODUCT(C570,E570))","v":""}]
[null,null,null,null,"Suma be PVM",{"$f":"IF(F570=\"\",\"\",SUM(F570:F570))","v":""},{"$f":"IF(F570=\"\",\"Neužpildytos visos objektų kainos\",\"\")","v":"Neužpildytos visos objektų kainos"}]
[null,null,null,null,"PVM suma"]
[null,null,null,null,"Suma su PVM",{"$f":"IF(ISBLANK(F572), \"\", SUM(F571:F572))","v":""}]
[]
["92.","Hidrokortizonas + Lidokainas 125mg/25mg"]
["92.1.","Hidrokortizonas + Lidokainas 125mg/25mg",250,"But./Amp.",null,{"$f":"IF(ISBLANK(E576),\"\", PRODUCT(C576,E576))","v":""}]
[null,null,null,null,"Suma be PVM",{"$f":"IF(F576=\"\",\"\",SUM(F576:F576))","v":""},{"$f":"IF(F576=\"\",\"Neužpildytos visos objektų kainos\",\"\")","v":"Neužpildytos visos objektų kainos"}]
[null,null,null,null,"PVM suma"]
[null,null,null,null,"Suma su PVM",{"$f":"IF(ISBLANK(F578), \"\", SUM(F577:F578))","v":""}]
[]
["93.","Hidrokortizono 10mg/g gelis "]
["93.1.","Hidrokortizono 10mg/g gelis ",450,"g",null,{"$f":"IF(ISBLANK(E582),\"\", PRODUCT(C582,E582))","v":""}]
[null,null,null,null,"Suma be PVM",{"$f":"IF(F582=\"\",\"\",SUM(F582:F582))","v":""},{"$f":"IF(F582=\"\",\"Neužpildytos visos objektų kainos\",\"\")","v":"Neužpildytos visos objektų kainos"}]
[null,null,null,null,"PVM suma"]
[null,null,null,null,"Suma su PVM",{"$f":"IF(ISBLANK(F584), \"\", SUM(F583:F584))","v":""}]
[]
["94.","Ichtyolum purum"]
["94.1.","Ichtyolum purum",1,"kg",null,{"$f":"IF(ISBLANK(E588),\"\", PRODUCT(C588,E588))","v":""}]
[null,null,null,null,"Suma be PVM",{"$f":"IF(F588=\"\",\"\",SUM(F588:F588))","v":""},{"$f":"IF(F588=\"\",\"Neužpildytos visos objektų kainos\",\"\")","v":"Neužpildytos visos objektų kainos"}]
[null,null,null,null,"PVM suma"]
[null,null,null,null,"Suma su PVM",{"$f":"IF(ISBLANK(F590), \"\", SUM(F589:F590))","v":""}]
[]
["95.","Imunoglobulinas nuo stabligės arklių (antitetaninis serumas) 1500T  injekcijoms "]
["95.1.","Imunoglobulinas nuo stabligės arklių (antitetaninis serumas) 1500T  injekcijoms ",10,"Užtaisas",22,{"$f":"IF(ISBLANK(E594),\"\", PRODUCT(C594,E594))","v":220},"Tetnus Antitoxin 1500I.U N10, VINS (Vardinis)"]
[null,null,null,null,"Suma be PVM",{"$f":"IF(F594=\"\",\"\",SUM(F594:F594))","v":220},{"$f":"IF(F594=\"\",\"Neužpildytos visos objektų kainos\",\"\")","v":""}]
[null,null,null,null,"PVM suma",11]
[null,null,null,null,"Suma su PVM",{"$f":"IF(ISBLANK(F596), \"\", SUM(F595:F596))","v":231}]
[]
["96.","Injekcinis vanduo praplovimui 1000ml"]
["96.1.","Injekcinis vanduo praplovimui 1000ml",4500,"Fl.",null,{"$f":"IF(ISBLANK(E600),\"\", PRODUCT(C600,E600))","v":""}]
[null,null,null,null,"Suma be PVM",{"$f":"IF(F600=\"\",\"\",SUM(F600:F600))","v":""},{"$f":"IF(F600=\"\",\"Neužpildytos visos objektų kainos\",\"\")","v":"Neužpildytos visos objektų kainos"}]
[null,null,null,null,"PVM suma"]
[null,null,null,null,"Suma su PVM",{"$f":"IF(ISBLANK(F602), \"\", SUM(F601:F602))","v":""}]
[]
["97.","Insulinas aspartatas (greito poveikio insulinas) 100 VV/ml 3ml užpildytas vienkartiniame švirkštiklyje"]
["97.1.","Insulinas aspartatas (greito poveikio insulinas) 100 VV/ml 3ml užpildytas vienkartiniame švirkštiklyje",30,"Užtaisas",null,{"$f":"IF(ISBLANK(E606),\"\", PRODUCT(C606,E606))","v":""}]
[null,null,null,null,"Suma be PVM",{"$f":"IF(F606=\"\",\"\",SUM(F606:F606))","v":""},{"$f":"IF(F606=\"\",\"Neužpildytos visos objektų kainos\",\"\")","v":"Neužpildytos visos objektų kainos"}]
[null,null,null,null,"PVM suma"]
[null,null,null,null,"Suma su PVM",{"$f":"IF(ISBLANK(F608), \"\", SUM(F607:F608))","v":""}]
[]
["98.","Insulinas aspartatas su aspartato protaminu (vidutinio poveikio insulinas kombinuotas su greito poveikio insulinu) 100VV/ml 3ml užpildytas vienkartiniame švirkštiklyje 30% insulino asparto kombinuota su 70% insulino asparto protamino"]
["98.1.","Insulinas aspartatas su aspartato protaminu (vidutinio poveikio insulinas kombinuotas su greito poveikio insulinu) 100VV/ml 3ml užpildytas vienkartiniame švirkštiklyje 30% insulino asparto kombinuota su 70% insulino asparto protamino",10,"Užtaisas",null,{"$f":"IF(ISBLANK(E612),\"\", PRODUCT(C612,E612))","v":""}]
[null,null,null,null,"Suma be PVM",{"$f":"IF(F612=\"\",\"\",SUM(F612:F612))","v":""},{"$f":"IF(F612=\"\",\"Neužpildytos visos objektų kainos\",\"\")","v":"Neužpildytos visos objektų kainos"}]
[null,null,null,null,"PVM suma"]
[null,null,null,null,"Suma su PVM",{"$f":"IF(ISBLANK(F614), \"\", SUM(F613:F614))","v":""}]
[]
["99.","Insulinas detemiras (ilgo poveikio insulinas) 100VV/ml 3ml užpildytas vienkartiniame švirkštiklyje."]
["99.1.","Insulinas detemiras (ilgo poveikio insulinas) 100VV/ml 3ml užpildytas vienkartiniame švirkštiklyje.",10,"Užtaisas",null,{"$f":"IF(ISBLANK(E618),\"\", PRODUCT(C618,E618))","v":""}]
[null,null,null,null,"Suma be PVM",{"$f":"IF(F618=\"\",\"\",SUM(F618:F618))","v":""},{"$f":"IF(F618=\"\",\"Neužpildytos visos objektų kainos\",\"\")","v":"Neužpildytos visos objektų kainos"}]
[null,null,null,null,"PVM suma"]
[null,null,null,null,"Suma su PVM",{"$f":"IF(ISBLANK(F620), \"\", SUM(F619:F620))","v":""}]
[]
["100.","Insulinas glarginas 300VV injekcijoms"]
["100.1.","Insulinas glarginas 300VV injekcijoms",10,"Užtaisas",null,{"$f":"IF(ISBLANK(E624),\"\", PRODUCT(C624,E624))","v":""}]
[null,null,null,null,"Suma be PVM",{"$f":"IF(F624=\"\",\"\",SUM(F624:F624))","v":""},{"$f":"IF(F624=\"\",\"Neužpildytos visos objektų kainos\",\"\")","v":"Neužpildytos visos objektų kainos"}]
[null,null,null,null,"PVM suma"]
[null,null,null,null,"Suma su PVM",{"$f":"IF(ISBLANK(F626), \"\", SUM(F625:F626))","v":""}]
[]
["101.","Insulinas ilgo poveikio 300VV injekcijoms"]
["101.1.","Insulinas ilgo poveikio 300VV injekcijoms",10,"Užtaisas",null,{"$f":"IF(ISBLANK(E630),\"\", PRODUCT(C630,E630))","v":""}]
[null,null,null,null,"Suma be PVM",{"$f":"IF(F630=\"\",\"\",SUM(F630:F630))","v":""},{"$f":"IF(F630=\"\",\"Neužpildytos visos objektų kainos\",\"\")","v":"Neužpildytos visos objektų kainos"}]
[null,null,null,null,"PVM suma"]
[null,null,null,null,"Suma su PVM",{"$f":"IF(ISBLANK(F632), \"\", SUM(F631:F632))","v":""}]
[]
["102.","Insulinas lispras (mišraus poveikio: 25% greito veikimo, 75% bazinio veikimo) 100VV/ml 3ml užpildytas vienkartiniame švirkštiklyje."]
["102.1.","Insulinas lispras (mišraus poveikio: 25% greito veikimo, 75% bazinio veikimo) 100VV/ml 3ml užpildytas vienkartiniame švirkštiklyje.",10,"Užtaisas",null,{"$f":"IF(ISBLANK(E636),\"\", PRODUCT(C636,E636))","v":""}]
[null,null,null,null,"Suma be PVM",{"$f":"IF(F636=\"\",\"\",SUM(F636:F636))","v":""},{"$f":"IF(F636=\"\",\"Neužpildytos visos objektų kainos\",\"\")","v":"Neužpildytos visos objektų kainos"}]
[null,null,null,null,"PVM suma"]
[null,null,null,null,"Suma su PVM",{"$f":"IF(ISBLANK(F638), \"\", SUM(F637:F638))","v":""}]
[]
["103.","Insulinas lispras (mišraus poveikio: 50% greito veikimo, 50% bazinio veikimo) 100VV/ml 3ml užpildytas vienkartiniame švirkštiklyje."]
["103.1.","Insulinas lispras (mišraus poveikio: 50% greito veikimo, 50% bazinio veikimo) 100VV/ml 3ml užpildytas vienkartiniame švirkštiklyje.",10,"Užtaisas",null,{"$f":"IF(ISBLANK(E642),\"\", PRODUCT(C642,E642))","v":""}]
[null,null,null,null,"Suma be PVM",{"$f":"IF(F642=\"\",\"\",SUM(F642:F642))","v":""},{"$f":"IF(F642=\"\",\"Neužpildytos visos objektų kainos\",\"\")","v":"Neužpildytos visos objektų kainos"}]
[null,null,null,null,"PVM suma"]
[null,null,null,null,"Suma su PVM",{"$f":"IF(ISBLANK(F644), \"\", SUM(F643:F644))","v":""}]
[]
["104.","Insulinas lispras (vidutinio poveikio) 100VV/ml 3ml užpildytas vienkartiniame švirkštiklyje"]
["104.1.","Insulinas lispras (vidutinio poveikio) 100VV/ml 3ml užpildytas vienkartiniame švirkštiklyje",10,"Užtaisas",null,{"$f":"IF(ISBLANK(E648),\"\", PRODUCT(C648,E648))","v":""}]
[null,null,null,null,"Suma be PVM",{"$f":"IF(F648=\"\",\"\",SUM(F648:F648))","v":""},{"$f":"IF(F648=\"\",\"Neužpildytos visos objektų kainos\",\"\")","v":"Neužpildytos visos objektų kainos"}]
[null,null,null,null,"PVM suma"]
[null,null,null,null,"Suma su PVM",{"$f":"IF(ISBLANK(F650), \"\", SUM(F649:F650))","v":""}]
[]
["105.","Insulinas lispro trumpo poveikio 300VV injekcijoms "]
["105.1.","Insulinas lispro trumpo poveikio 300VV injekcijoms ",10,"Užtaisas",null,{"$f":"IF(ISBLANK(E654),\"\", PRODUCT(C654,E654))","v":""}]
[null,null,null,null,"Suma be PVM",{"$f":"IF(F654=\"\",\"\",SUM(F654:F654))","v":""},{"$f":"IF(F654=\"\",\"Neužpildytos visos objektų kainos\",\"\")","v":"Neužpildytos visos objektų kainos"}]
[null,null,null,null,"PVM suma"]
[null,null,null,null,"Suma su PVM",{"$f":"IF(ISBLANK(F656), \"\", SUM(F655:F656))","v":""}]
[]
["106.","Iodum"]
["106.1.","Iodum",100,"g",null,{"$f":"IF(ISBLANK(E660),\"\", PRODUCT(C660,E660))","v":""}]
[null,null,null,null,"Suma be PVM",{"$f":"IF(F660=\"\",\"\",SUM(F660:F660))","v":""},{"$f":"IF(F660=\"\",\"Neužpildytos visos objektų kainos\",\"\")","v":"Neužpildytos visos objektų kainos"}]
[null,null,null,null,"PVM suma"]
[null,null,null,null,"Suma su PVM",{"$f":"IF(ISBLANK(F662), \"\", SUM(F661:F662))","v":""}]
[]
["107.","Ipratropijaus bromidas/ Fenoterolis 250mcg/ 500mcg/ml "]
["107.1.","Ipratropijaus bromidas/ Fenoterolis 250mcg/ 500mcg/ml ",1000,"ml",null,{"$f":"IF(ISBLANK(E666),\"\", PRODUCT(C666,E666))","v":""}]
[null,null,null,null,"Suma be PVM",{"$f":"IF(F666=\"\",\"\",SUM(F666:F666))","v":""},{"$f":"IF(F666=\"\",\"Neužpildytos visos objektų kainos\",\"\")","v":"Neužpildytos visos objektų kainos"}]
[null,null,null,null,"PVM suma"]
[null,null,null,null,"Suma su PVM",{"$f":"IF(ISBLANK(F668), \"\", SUM(F667:F668))","v":""}]
[]
["108.","Izoniazidas 100mg "]
["108.1.","Izoniazidas 100mg ",7500,"Tab.",4.48E-2,{"$f":"IF(ISBLANK(E672),\"\", PRODUCT(C672,E672))","v":336},"Solonex 100mg tab. N100, Macleods (Vardinis)"]
[null,null,null,null,"Suma be PVM",{"$f":"IF(F672=\"\",\"\",SUM(F672:F672))","v":336},{"$f":"IF(F672=\"\",\"Neužpildytos visos objektų kainos\",\"\")","v":""}]
[null,null,null,null,"PVM suma",16.8]
[null,null,null,null,"Suma su PVM",{"$f":"IF(ISBLANK(F674), \"\", SUM(F673:F674))","v":352.8}]
[]
["109.","Izoniazidas 300mg "]
["109.1.","Izoniazidas 300mg ",100,"Tab.",0.65,{"$f":"IF(ISBLANK(E678),\"\", PRODUCT(C678,E678))","v":65},"Solonex 300mg tab. N100, Macleods (Vardinis)"]
[null,null,null,null,"Suma be PVM",{"$f":"IF(F678=\"\",\"\",SUM(F678:F678))","v":65},{"$f":"IF(F678=\"\",\"Neužpildytos visos objektų kainos\",\"\")","v":""}]
[null,null,null,null,"PVM suma",3.25]
[null,null,null,null,"Suma su PVM",{"$f":"IF(ISBLANK(F680), \"\", SUM(F679:F680))","v":68.25}]
[]
["110.","Izoniazidas 500mg milteliai injekciniam tirpalui "]
["110.1.","Izoniazidas 500mg milteliai injekciniam tirpalui ",150,"Amp.",null,{"$f":"IF(ISBLANK(E684),\"\", PRODUCT(C684,E684))","v":""}]
[null,null,null,null,"Suma be PVM",{"$f":"IF(F684=\"\",\"\",SUM(F684:F684))","v":""},{"$f":"IF(F684=\"\",\"Neužpildytos visos objektų kainos\",\"\")","v":"Neužpildytos visos objektų kainos"}]
[null,null,null,null,"PVM suma"]
[null,null,null,null,"Suma su PVM",{"$f":"IF(ISBLANK(F686), \"\", SUM(F685:F686))","v":""}]
[]
["111.","Kalcio folinatas 25mg"]
["111.1.","Kalcio folinatas 25mg",100,"Tab.",null,{"$f":"IF(ISBLANK(E690),\"\", PRODUCT(C690,E690))","v":""}]
[null,null,null,null,"Suma be PVM",{"$f":"IF(F690=\"\",\"\",SUM(F690:F690))","v":""},{"$f":"IF(F690=\"\",\"Neužpildytos visos objektų kainos\",\"\")","v":"Neužpildytos visos objektų kainos"}]
[null,null,null,null,"PVM suma"]
[null,null,null,null,"Suma su PVM",{"$f":"IF(ISBLANK(F692), \"\", SUM(F691:F692))","v":""}]
[]
["112.","Kalcio gliukonatas 10% amp. 10ml"]
["112.1.","Kalcio gliukonatas 10% amp. 10ml",1000,"Amp.",0.35499999999999998,{"$f":"IF(ISBLANK(E696),\"\", PRODUCT(C696,E696))","v":355},"Gluconate de calcium proamp 10% 10ml N50, Laboratoire Aguettant (Vardinis)"]
[null,null,null,null,"Suma be PVM",{"$f":"IF(F696=\"\",\"\",SUM(F696:F696))","v":355},{"$f":"IF(F696=\"\",\"Neužpildytos visos objektų kainos\",\"\")","v":""}]
[null,null,null,null,"PVM suma",17.75]
[null,null,null,null,"Suma su PVM",{"$f":"IF(ISBLANK(F698), \"\", SUM(F697:F698))","v":372.75}]
[]
["113.","Kalii chloridum"]
["113.1.","Kalii chloridum",20,"kg",null,{"$f":"IF(ISBLANK(E702),\"\", PRODUCT(C702,E702))","v":""}]
[null,null,null,null,"Suma be PVM",{"$f":"IF(F702=\"\",\"\",SUM(F702:F702))","v":""},{"$f":"IF(F702=\"\",\"Neužpildytos visos objektų kainos\",\"\")","v":"Neužpildytos visos objektų kainos"}]
[null,null,null,null,"PVM suma"]
[null,null,null,null,"Suma su PVM",{"$f":"IF(ISBLANK(F704), \"\", SUM(F703:F704))","v":""}]
[]
["114.","Kalii iodidum"]
["114.1.","Kalii iodidum",200,"g",null,{"$f":"IF(ISBLANK(E708),\"\", PRODUCT(C708,E708))","v":""}]
[null,null,null,null,"Suma be PVM",{"$f":"IF(F708=\"\",\"\",SUM(F708:F708))","v":""},{"$f":"IF(F708=\"\",\"Neužpildytos visos objektų kainos\",\"\")","v":"Neužpildytos visos objektų kainos"}]
[null,null,null,null,"PVM suma"]
[null,null,null,null,"Suma su PVM",{"$f":"IF(ISBLANK(F710), \"\", SUM(F709:F710))","v":""}]
[]
["115.","Kalii permanganas"]
["115.1.","Kalii permanganas",200,"g",null,{"$f":"IF(ISBLANK(E714),\"\", PRODUCT(C714,E714))","v":""}]
[null,null,null,null,"Suma be PVM",{"$f":"IF(F714=\"\",\"\",SUM(F714:F714))","v":""},{"$f":"IF(F714=\"\",\"Neužpildytos visos objektų kainos\",\"\")","v":"Neužpildytos visos objektų kainos"}]
[null,null,null,null,"PVM suma"]
[null,null,null,null,"Suma su PVM",{"$f":"IF(ISBLANK(F716), \"\", SUM(F715:F716))","v":""}]
[]
["116.","Ketaminas 50mg/ml."]
["116.1.","Ketaminas 50mg/ml.",120,"Amp.",null,{"$f":"IF(ISBLANK(E720),\"\", PRODUCT(C720,E720))","v":""}]
[null,null,null,null,"Suma be PVM",{"$f":"IF(F720=\"\",\"\",SUM(F720:F720))","v":""},{"$f":"IF(F720=\"\",\"Neužpildytos visos objektų kainos\",\"\")","v":"Neužpildytos visos objektų kainos"}]
[null,null,null,null,"PVM suma"]
[null,null,null,null,"Suma su PVM",{"$f":"IF(ISBLANK(F722), \"\", SUM(F721:F722))","v":""}]
[]
["117.","Klopidogrelis + Acetilsalicilo rūgštis 75 mg/100mg"]
["117.1.","Klopidogrelis + Acetilsalicilo rūgštis 75 mg/100mg",60,"tab.",null,{"$f":"IF(ISBLANK(E726),\"\", PRODUCT(C726,E726))","v":""}]
[null,null,null,null,"Suma be PVM",{"$f":"IF(F726=\"\",\"\",SUM(F726:F726))","v":""},{"$f":"IF(F726=\"\",\"Neužpildytos visos objektų kainos\",\"\")","v":"Neužpildytos visos objektų kainos"}]
[null,null,null,null,"PVM suma"]
[null,null,null,null,"Suma su PVM",{"$f":"IF(ISBLANK(F728), \"\", SUM(F727:F728))","v":""}]
[]
["118.","Kolistinas 1000000 TV injekcijoms "]
["118.1.","Kolistinas 1000000 TV injekcijoms ",1800,"But./Amp.",1.97,{"$f":"IF(ISBLANK(E732),\"\", PRODUCT(C732,E732))","v":3546},"Elistin 1.000.000 IU inj. N1, Samarth (Vardinis)"]
[null,null,null,null,"Suma be PVM",{"$f":"IF(F732=\"\",\"\",SUM(F732:F732))","v":3546},{"$f":"IF(F732=\"\",\"Neužpildytos visos objektų kainos\",\"\")","v":""}]
[null,null,null,null,"PVM suma",177.3]
[null,null,null,null,"Suma su PVM",{"$f":"IF(ISBLANK(F734), \"\", SUM(F733:F734))","v":3723.3}]
[]
["119.","Kvinino dihidrochloridas 250mg/2ml "]
["119.1.","Kvinino dihidrochloridas 250mg/2ml ",50,"Amp.",null,{"$f":"IF(ISBLANK(E738),\"\", PRODUCT(C738,E738))","v":""}]
[null,null,null,null,"Suma be PVM",{"$f":"IF(F738=\"\",\"\",SUM(F738:F738))","v":""},{"$f":"IF(F738=\"\",\"Neužpildytos visos objektų kainos\",\"\")","v":"Neužpildytos visos objektų kainos"}]
[null,null,null,null,"PVM suma"]
[null,null,null,null,"Suma su PVM",{"$f":"IF(ISBLANK(F740), \"\", SUM(F739:F740))","v":""}]
[]
["120.","Kvinino dihidrochloridas 600mg/2ml"]
["120.1.","Kvinino dihidrochloridas 600mg/2ml",50,"Amp.",27.88,{"$f":"IF(ISBLANK(E744),\"\", PRODUCT(C744,E744))","v":1394},"Quinine dihydrochloride 300mg/ml amp 2ml inj. N50, Vulcan (Vardinis)"]
[null,null,null,null,"Suma be PVM",{"$f":"IF(F744=\"\",\"\",SUM(F744:F744))","v":1394},{"$f":"IF(F744=\"\",\"Neužpildytos visos objektų kainos\",\"\")","v":""}]
[null,null,null,null,"PVM suma",69.7]
[null,null,null,null,"Suma su PVM",{"$f":"IF(ISBLANK(F746), \"\", SUM(F745:F746))","v":1463.7}]
[]
["121.","Kvinino sulfatas 300mg tab."]
["121.1.","Kvinino sulfatas 300mg tab.",60,"Tab.",null,{"$f":"IF(ISBLANK(E750),\"\", PRODUCT(C750,E750))","v":""}]
[null,null,null,null,"Suma be PVM",{"$f":"IF(F750=\"\",\"\",SUM(F750:F750))","v":""},{"$f":"IF(F750=\"\",\"Neužpildytos visos objektų kainos\",\"\")","v":"Neužpildytos visos objektų kainos"}]
[null,null,null,null,"PVM suma"]
[null,null,null,null,"Suma su PVM",{"$f":"IF(ISBLANK(F752), \"\", SUM(F751:F752))","v":""}]
[]
["122.","Labetalolis 100mg "]
["122.1.","Labetalolis 100mg ",120,"Tab.",null,{"$f":"IF(ISBLANK(E756),\"\", PRODUCT(C756,E756))","v":""}]
[null,null,null,null,"Suma be PVM",{"$f":"IF(F756=\"\",\"\",SUM(F756:F756))","v":""},{"$f":"IF(F756=\"\",\"Neužpildytos visos objektų kainos\",\"\")","v":"Neužpildytos visos objektų kainos"}]
[null,null,null,null,"PVM suma"]
[null,null,null,null,"Suma su PVM",{"$f":"IF(ISBLANK(F758), \"\", SUM(F757:F758))","v":""}]
[]
["123.","Labetalolis 5mg/ml "]
["123.1.","Labetalolis 5mg/ml ",10,"Amp.",8,{"$f":"IF(ISBLANK(E762),\"\", PRODUCT(C762,E762))","v":80},"Lobet 100mg/20ml inj. N1, Samarth (Vardinis)"]
[null,null,null,null,"Suma be PVM",{"$f":"IF(F762=\"\",\"\",SUM(F762:F762))","v":80},{"$f":"IF(F762=\"\",\"Neužpildytos visos objektų kainos\",\"\")","v":""}]
[null,null,null,null,"PVM suma",4]
[null,null,null,null,"Suma su PVM",{"$f":"IF(ISBLANK(F764), \"\", SUM(F763:F764))","v":84}]
[]
["124.","Lactobacillus acidophilus + Lactobacillus bifidus + Jogurto kultūra + Streptococcus thermophilus + Lactobacillus bulgaris apie 2mlrd "]
["124.1.","Lactobacillus acidophilus + Lactobacillus bifidus + Jogurto kultūra + Streptococcus thermophilus + Lactobacillus bulgaris apie 2mlrd ",4500,"Kaps./Tab.",null,{"$f":"IF(ISBLANK(E768),\"\", PRODUCT(C768,E768))","v":""}]
[null,null,null,null,"Suma be PVM",{"$f":"IF(F768=\"\",\"\",SUM(F768:F768))","v":""},{"$f":"IF(F768=\"\",\"Neužpildytos visos objektų kainos\",\"\")","v":"Neužpildytos visos objektų kainos"}]
[null,null,null,null,"PVM suma"]
[null,null,null,null,"Suma su PVM",{"$f":"IF(ISBLANK(F770), \"\", SUM(F769:F770))","v":""}]
[]
["125.","Lactobacillus rhamnosus bifidobacterium longum, gliukozė, keratonijų pupelių lipai, magnio stearatas, oligofruktozė, želatina, metakrilo rūgšties akrilato kopolimeras 1, acetilinti kopolimerai, talkas ir dažiklis titano dioksidas"]
["125.1.","Lactobacillus rhamnosus bifidobacterium longum, gliukozė, keratonijų pupelių lipai, magnio stearatas, oligofruktozė, želatina, metakrilo rūgšties akrilato kopolimeras 1, acetilinti kopolimerai, talkas ir dažiklis titano dioksidas",100,"Milt.",null,{"$f":"IF(ISBLANK(E774),\"\", PRODUCT(C774,E774))","v":""}]
[null,null,null,null,"Suma be PVM",{"$f":"IF(F774=\"\",\"\",SUM(F774:F774))","v":""},{"$f":"IF(F774=\"\",\"Neužpildytos visos objektų kainos\",\"\")","v":"Neužpildytos visos objektų kainos"}]
[null,null,null,null,"PVM suma"]
[null,null,null,null,"Suma su PVM",{"$f":"IF(ISBLANK(F776), \"\", SUM(F775:F776))","v":""}]
[]
["126.","Lactobacillus rhamnosus GG (5 x 109)  be laktozės ir gliuteno "]
["126.1.","Lactobacillus rhamnosus GG (5 x 109)  be laktozės ir gliuteno ",400,"Kaps",null,{"$f":"IF(ISBLANK(E780),\"\", PRODUCT(C780,E780))","v":""}]
[null,null,null,null,"Suma be PVM",{"$f":"IF(F780=\"\",\"\",SUM(F780:F780))","v":""},{"$f":"IF(F780=\"\",\"Neužpildytos visos objektų kainos\",\"\")","v":"Neužpildytos visos objektų kainos"}]
[null,null,null,null,"PVM suma"]
[null,null,null,null,"Suma su PVM",{"$f":"IF(ISBLANK(F782), \"\", SUM(F781:F782))","v":""}]
[]
["127.","Lactobacillus rhamnosus GG (5 x 109)  be laktozės ir gliuteno lašai "]
["127.1.","Lactobacillus rhamnosus GG (5 x 109)  be laktozės ir gliuteno lašai ",600,"ml",null,{"$f":"IF(ISBLANK(E786),\"\", PRODUCT(C786,E786))","v":""}]
[null,null,null,null,"Suma be PVM",{"$f":"IF(F786=\"\",\"\",SUM(F786:F786))","v":""},{"$f":"IF(F786=\"\",\"Neužpildytos visos objektų kainos\",\"\")","v":"Neužpildytos visos objektų kainos"}]
[null,null,null,null,"PVM suma"]
[null,null,null,null,"Suma su PVM",{"$f":"IF(ISBLANK(F788), \"\", SUM(F787:F788))","v":""}]
[]
["128.","Lanolinum anhydricum"]
["128.1.","Lanolinum anhydricum",50,"kg",null,{"$f":"IF(ISBLANK(E792),\"\", PRODUCT(C792,E792))","v":""}]
[null,null,null,null,"Suma be PVM",{"$f":"IF(F792=\"\",\"\",SUM(F792:F792))","v":""},{"$f":"IF(F792=\"\",\"Neužpildytos visos objektų kainos\",\"\")","v":"Neužpildytos visos objektų kainos"}]
[null,null,null,null,"PVM suma"]
[null,null,null,null,"Suma su PVM",{"$f":"IF(ISBLANK(F794), \"\", SUM(F793:F794))","v":""}]
[]
["129.","Levodopa+ Benserazidas 100mg/25mg"]
["129.1.","Levodopa+ Benserazidas 100mg/25mg",500,"Tab.",null,{"$f":"IF(ISBLANK(E798),\"\", PRODUCT(C798,E798))","v":""}]
[null,null,null,null,"Suma be PVM",{"$f":"IF(F798=\"\",\"\",SUM(F798:F798))","v":""},{"$f":"IF(F798=\"\",\"Neužpildytos visos objektų kainos\",\"\")","v":"Neužpildytos visos objektų kainos"}]
[null,null,null,null,"PVM suma"]
[null,null,null,null,"Suma su PVM",{"$f":"IF(ISBLANK(F800), \"\", SUM(F799:F800))","v":""}]
[]
["130.","Liofilizuotos Saccharomyces boulardii ląstelės 250mg"]
["130.1.","Liofilizuotos Saccharomyces boulardii ląstelės 250mg",120,"Kaps.",null,{"$f":"IF(ISBLANK(E804),\"\", PRODUCT(C804,E804))","v":""}]
[null,null,null,null,"Suma be PVM",{"$f":"IF(F804=\"\",\"\",SUM(F804:F804))","v":""},{"$f":"IF(F804=\"\",\"Neužpildytos visos objektų kainos\",\"\")","v":"Neužpildytos visos objektų kainos"}]
[null,null,null,null,"PVM suma"]
[null,null,null,null,"Suma su PVM",{"$f":"IF(ISBLANK(F806), \"\", SUM(F805:F806))","v":""}]
[]
["131.","Liofilizuotos Saccharomyces boulardii ląstelės 250mg milteliai suspensijai"]
["131.1.","Liofilizuotos Saccharomyces boulardii ląstelės 250mg milteliai suspensijai",90,"Milt.",null,{"$f":"IF(ISBLANK(E810),\"\", PRODUCT(C810,E810))","v":""}]
[null,null,null,null,"Suma be PVM",{"$f":"IF(F810=\"\",\"\",SUM(F810:F810))","v":""},{"$f":"IF(F810=\"\",\"Neužpildytos visos objektų kainos\",\"\")","v":"Neužpildytos visos objektų kainos"}]
[null,null,null,null,"PVM suma"]
[null,null,null,null,"Suma su PVM",{"$f":"IF(ISBLANK(F812), \"\", SUM(F811:F812))","v":""}]
[]
["132.","Loratadinum 5mg/5ml suspensija "]
["132.1.","Loratadinum 5mg/5ml suspensija ",300,"ml",null,{"$f":"IF(ISBLANK(E816),\"\", PRODUCT(C816,E816))","v":""}]
[null,null,null,null,"Suma be PVM",{"$f":"IF(F816=\"\",\"\",SUM(F816:F816))","v":""},{"$f":"IF(F816=\"\",\"Neužpildytos visos objektų kainos\",\"\")","v":"Neužpildytos visos objektų kainos"}]
[null,null,null,null,"PVM suma"]
[null,null,null,null,"Suma su PVM",{"$f":"IF(ISBLANK(F818), \"\", SUM(F817:F818))","v":""}]
[]
["133.","L-ornitino L-aspartas 5000mg injekcijoms"]
["133.1.","L-ornitino L-aspartas 5000mg injekcijoms",20,"But./Amp.",null,{"$f":"IF(ISBLANK(E822),\"\", PRODUCT(C822,E822))","v":""}]
[null,null,null,null,"Suma be PVM",{"$f":"IF(F822=\"\",\"\",SUM(F822:F822))","v":""},{"$f":"IF(F822=\"\",\"Neužpildytos visos objektų kainos\",\"\")","v":"Neužpildytos visos objektų kainos"}]
[null,null,null,null,"PVM suma"]
[null,null,null,null,"Suma su PVM",{"$f":"IF(ISBLANK(F824), \"\", SUM(F823:F824))","v":""}]
[]
["134.","Magnesii sulfas"]
["134.1.","Magnesii sulfas",15,"kg",null,{"$f":"IF(ISBLANK(E828),\"\", PRODUCT(C828,E828))","v":""}]
[null,null,null,null,"Suma be PVM",{"$f":"IF(F828=\"\",\"\",SUM(F828:F828))","v":""},{"$f":"IF(F828=\"\",\"Neužpildytos visos objektų kainos\",\"\")","v":"Neužpildytos visos objektų kainos"}]
[null,null,null,null,"PVM suma"]
[null,null,null,null,"Suma su PVM",{"$f":"IF(ISBLANK(F830), \"\", SUM(F829:F830))","v":""}]
[]
["135.","Makrogolis/Natrio sulfatas bevandenis/natrio chloridas/kalio chloridas/askorbo rūgštis/ Natrio askorbatas 100g/7,5g/2,69g/1,015g/4,7g/5,9g"]
["135.1.","Makrogolis/Natrio sulfatas bevandenis/natrio chloridas/kalio chloridas/askorbo rūgštis/ Natrio askorbatas 100g/7,5g/2,69g/1,015g/4,7g/5,9g",60,"Milt.",null,{"$f":"IF(ISBLANK(E834),\"\", PRODUCT(C834,E834))","v":""}]
[null,null,null,null,"Suma be PVM",{"$f":"IF(F834=\"\",\"\",SUM(F834:F834))","v":""},{"$f":"IF(F834=\"\",\"Neužpildytos visos objektų kainos\",\"\")","v":"Neužpildytos visos objektų kainos"}]
[null,null,null,null,"PVM suma"]
[null,null,null,null,"Suma su PVM",{"$f":"IF(ISBLANK(F836), \"\", SUM(F835:F836))","v":""}]
[]
["136.","Melanidine 0,3% 50ml  flak"]
["136.1.","Melanidine 0,3% 50ml  flak",50,"flak",52.78,{"$f":"IF(ISBLANK(E840),\"\", PRODUCT(C840,E840))","v":2639},"Octamop Lotion (topical solution) 0.75% 30ml N1, Palsons (Vardinis)"]
[null,null,null,null,"Suma be PVM",{"$f":"IF(F840=\"\",\"\",SUM(F840:F840))","v":2639},{"$f":"IF(F840=\"\",\"Neužpildytos visos objektų kainos\",\"\")","v":""}]
[null,null,null,null,"PVM suma",131.94999999999999]
[null,null,null,null,"Suma su PVM",{"$f":"IF(ISBLANK(F842), \"\", SUM(F841:F842))","v":2770.95}]
[]
["137.","Memantinas 5mg "]
["137.1.","Memantinas 5mg ",60,"Tab.",null,{"$f":"IF(ISBLANK(E846),\"\", PRODUCT(C846,E846))","v":""}]
[null,null,null,null,"Suma be PVM",{"$f":"IF(F846=\"\",\"\",SUM(F846:F846))","v":""},{"$f":"IF(F846=\"\",\"Neužpildytos visos objektų kainos\",\"\")","v":"Neužpildytos visos objektų kainos"}]
[null,null,null,null,"PVM suma"]
[null,null,null,null,"Suma su PVM",{"$f":"IF(ISBLANK(F848), \"\", SUM(F847:F848))","v":""}]
[]
["138.","Mentolio tirpalas izovalerijono rūgšties metilo esteryje 60mg "]
["138.1.","Mentolio tirpalas izovalerijono rūgšties metilo esteryje 60mg ",800,"Tab.",4.2000000000000003E-2,{"$f":"IF(ISBLANK(E852),\"\", PRODUCT(C852,E852))","v":33.6},"Validol Farmstandart 60mg tab.N20"]
[null,null,null,null,"Suma be PVM",{"$f":"IF(F852=\"\",\"\",SUM(F852:F852))","v":33.6},{"$f":"IF(F852=\"\",\"Neužpildytos visos objektų kainos\",\"\")","v":""}]
[null,null,null,null,"PVM suma",1.68]
[null,null,null,null,"Suma su PVM",{"$f":"IF(ISBLANK(F854), \"\", SUM(F853:F854))","v":35.28}]
[]
["139.","Metamizolum natricum (Analginum)"]
["139.1.","Metamizolum natricum (Analginum)",2,"kg",null,{"$f":"IF(ISBLANK(E858),\"\", PRODUCT(C858,E858))","v":""}]
[null,null,null,null,"Suma be PVM",{"$f":"IF(F858=\"\",\"\",SUM(F858:F858))","v":""},{"$f":"IF(F858=\"\",\"Neužpildytos visos objektų kainos\",\"\")","v":"Neužpildytos visos objektų kainos"}]
[null,null,null,null,"PVM suma"]
[null,null,null,null,"Suma su PVM",{"$f":"IF(ISBLANK(F860), \"\", SUM(F859:F860))","v":""}]
[]
["140.","Methylergometrinas 2mg/ml "]
["140.1.","Methylergometrinas 2mg/ml ",30,"Amp.",null,{"$f":"IF(ISBLANK(E864),\"\", PRODUCT(C864,E864))","v":""}]
[null,null,null,null,"Suma be PVM",{"$f":"IF(F864=\"\",\"\",SUM(F864:F864))","v":""},{"$f":"IF(F864=\"\",\"Neužpildytos visos objektų kainos\",\"\")","v":"Neužpildytos visos objektų kainos"}]
[null,null,null,null,"PVM suma"]
[null,null,null,null,"Suma su PVM",{"$f":"IF(ISBLANK(F866), \"\", SUM(F865:F866))","v":""}]
[]
["141.","Metilenum Blau 10mg/ml"]
["141.1.","Metilenum Blau 10mg/ml",80,"Amp.",2.8,{"$f":"IF(ISBLANK(E870),\"\", PRODUCT(C870,E870))","v":224},"Methylene Blue inj 10mg/ml 10ml amp. N25, T.Walker's Pharmaceuticals (Vardinis)"]
[null,null,null,null,"Suma be PVM",{"$f":"IF(F870=\"\",\"\",SUM(F870:F870))","v":224},{"$f":"IF(F870=\"\",\"Neužpildytos visos objektų kainos\",\"\")","v":""}]
[null,null,null,null,"PVM suma",11.2]
[null,null,null,null,"Suma su PVM",{"$f":"IF(ISBLANK(F872), \"\", SUM(F871:F872))","v":235.2}]
[]
["142.","Metilprednizolonas 16 mg"]
["142.1.","Metilprednizolonas 16 mg",1500,"Tab.",null,{"$f":"IF(ISBLANK(E876),\"\", PRODUCT(C876,E876))","v":""}]
[null,null,null,null,"Suma be PVM",{"$f":"IF(F876=\"\",\"\",SUM(F876:F876))","v":""},{"$f":"IF(F876=\"\",\"Neužpildytos visos objektų kainos\",\"\")","v":"Neužpildytos visos objektų kainos"}]
[null,null,null,null,"PVM suma"]
[null,null,null,null,"Suma su PVM",{"$f":"IF(ISBLANK(F878), \"\", SUM(F877:F878))","v":""}]
[]
["143.","Metilprednizolonas 40mg injekcijoms "]
["143.1.","Metilprednizolonas 40mg injekcijoms ",1260,"But./Amp.",1.98,{"$f":"IF(ISBLANK(E882),\"\", PRODUCT(C882,E882))","v":2494.8000000000002},"M-Drol 40mg/ml 1ml N1, Ocean (Vardinis)"]
[null,null,null,null,"Suma be PVM",{"$f":"IF(F882=\"\",\"\",SUM(F882:F882))","v":2494.8000000000002},{"$f":"IF(F882=\"\",\"Neužpildytos visos objektų kainos\",\"\")","v":""}]
[null,null,null,null,"PVM suma",124.74]
[null,null,null,null,"Suma su PVM",{"$f":"IF(ISBLANK(F884), \"\", SUM(F883:F884))","v":2619.54}]
[]
["144.","Metilprednizolonas 500mg injekcijoms "]
["144.1.","Metilprednizolonas 500mg injekcijoms ",5,"But./Amp.",null,{"$f":"IF(ISBLANK(E888),\"\", PRODUCT(C888,E888))","v":""}]
[null,null,null,null,"Suma be PVM",{"$f":"IF(F888=\"\",\"\",SUM(F888:F888))","v":""},{"$f":"IF(F888=\"\",\"Neužpildytos visos objektų kainos\",\"\")","v":"Neužpildytos visos objektų kainos"}]
[null,null,null,null,"PVM suma"]
[null,null,null,null,"Suma su PVM",{"$f":"IF(ISBLANK(F890), \"\", SUM(F889:F890))","v":""}]
[]
["145.","Midodrino hidrochloridas 2,5mg "]
["145.1.","Midodrino hidrochloridas 2,5mg ",100,"Tab.",null,{"$f":"IF(ISBLANK(E894),\"\", PRODUCT(C894,E894))","v":""}]
[null,null,null,null,"Suma be PVM",{"$f":"IF(F894=\"\",\"\",SUM(F894:F894))","v":""},{"$f":"IF(F894=\"\",\"Neužpildytos visos objektų kainos\",\"\")","v":"Neužpildytos visos objektų kainos"}]
[null,null,null,null,"PVM suma"]
[null,null,null,null,"Suma su PVM",{"$f":"IF(ISBLANK(F896), \"\", SUM(F895:F896))","v":""}]
[]
["146.","Mizoprostolis 0,2mg "]
["146.1.","Mizoprostolis 0,2mg ",1800,"Tab.",0.55000000000000004,{"$f":"IF(ISBLANK(E900),\"\", PRODUCT(C900,E900))","v":990.00000000000011},"Cytolog tab. 200µg N80, Zydus (Vardinis)"]
[null,null,null,null,"Suma be PVM",{"$f":"IF(F900=\"\",\"\",SUM(F900:F900))","v":990.00000000000011},{"$f":"IF(F900=\"\",\"Neužpildytos visos objektų kainos\",\"\")","v":""}]
[null,null,null,null,"PVM suma",49.5]
[null,null,null,null,"Suma su PVM",{"$f":"IF(ISBLANK(F902), \"\", SUM(F901:F902))","v":1039.5}]
[]
["147.","Moksifloksacinas 400mg infuzijoms 250ml buteliukas"]
["147.1.","Moksifloksacinas 400mg infuzijoms 250ml buteliukas",10,"But.",188.5,{"$f":"IF(ISBLANK(E906),\"\", PRODUCT(C906,E906))","v":1885},"Moxiflex 400mg/250 ml I.V. sol. for inf.N1, Osel (Vardinis)"]
[null,null,null,null,"Suma be PVM",{"$f":"IF(F906=\"\",\"\",SUM(F906:F906))","v":1885},{"$f":"IF(F906=\"\",\"Neužpildytos visos objektų kainos\",\"\")","v":""}]
[null,null,null,null,"PVM suma",94.25]
[null,null,null,null,"Suma su PVM",{"$f":"IF(ISBLANK(F908), \"\", SUM(F907:F908))","v":1979.25}]
[]
["148.","Molsidominas 2 mg"]
["148.1.","Molsidominas 2 mg",30,"Tab.",null,{"$f":"IF(ISBLANK(E912),\"\", PRODUCT(C912,E912))","v":""}]
[null,null,null,null,"Suma be PVM",{"$f":"IF(F912=\"\",\"\",SUM(F912:F912))","v":""},{"$f":"IF(F912=\"\",\"Neužpildytos visos objektų kainos\",\"\")","v":"Neužpildytos visos objektų kainos"}]
[null,null,null,null,"PVM suma"]
[null,null,null,null,"Suma su PVM",{"$f":"IF(ISBLANK(F914), \"\", SUM(F913:F914))","v":""}]
[]
["149.","Molsidominas 4 mg"]
["149.1.","Molsidominas 4 mg",30,"Tab.",null,{"$f":"IF(ISBLANK(E918),\"\", PRODUCT(C918,E918))","v":""}]
[null,null,null,null,"Suma be PVM",{"$f":"IF(F918=\"\",\"\",SUM(F918:F918))","v":""},{"$f":"IF(F918=\"\",\"Neužpildytos visos objektų kainos\",\"\")","v":"Neužpildytos visos objektų kainos"}]
[null,null,null,null,"PVM suma"]
[null,null,null,null,"Suma su PVM",{"$f":"IF(ISBLANK(F920), \"\", SUM(F919:F920))","v":""}]
[]
["150.","Morfino sulfatas 1mg/ml tinkantis intratekalinėms injekcijoms"]
["150.1.","Morfino sulfatas 1mg/ml tinkantis intratekalinėms injekcijoms",150,"Amp.",null,{"$f":"IF(ISBLANK(E924),\"\", PRODUCT(C924,E924))","v":""}]
[null,null,null,null,"Suma be PVM",{"$f":"IF(F924=\"\",\"\",SUM(F924:F924))","v":""},{"$f":"IF(F924=\"\",\"Neužpildytos visos objektų kainos\",\"\")","v":"Neužpildytos visos objektų kainos"}]
[null,null,null,null,"PVM suma"]
[null,null,null,null,"Suma su PVM",{"$f":"IF(ISBLANK(F926), \"\", SUM(F925:F926))","v":""}]
[]
["151.","Natrii bromidum"]
["151.1.","Natrii bromidum",10,"kg",null,{"$f":"IF(ISBLANK(E930),\"\", PRODUCT(C930,E930))","v":""}]
[null,null,null,null,"Suma be PVM",{"$f":"IF(F930=\"\",\"\",SUM(F930:F930))","v":""},{"$f":"IF(F930=\"\",\"Neužpildytos visos objektų kainos\",\"\")","v":"Neužpildytos visos objektų kainos"}]
[null,null,null,null,"PVM suma"]
[null,null,null,null,"Suma su PVM",{"$f":"IF(ISBLANK(F932), \"\", SUM(F931:F932))","v":""}]
[]
["152.","Natrii chloridi 0.45% 500ml"]
["152.1.","Natrii chloridi 0.45% 500ml",1200,"Fl.",null,{"$f":"IF(ISBLANK(E936),\"\", PRODUCT(C936,E936))","v":""}]
[null,null,null,null,"Suma be PVM",{"$f":"IF(F936=\"\",\"\",SUM(F936:F936))","v":""},{"$f":"IF(F936=\"\",\"Neužpildytos visos objektų kainos\",\"\")","v":"Neužpildytos visos objektų kainos"}]
[null,null,null,null,"PVM suma"]
[null,null,null,null,"Suma su PVM",{"$f":"IF(ISBLANK(F938), \"\", SUM(F937:F938))","v":""}]
[]
["153.","Natrii chloridum"]
["153.1.","Natrii chloridum",40,"Kg",null,{"$f":"IF(ISBLANK(E942),\"\", PRODUCT(C942,E942))","v":""}]
[null,null,null,null,"Suma be PVM",{"$f":"IF(F942=\"\",\"\",SUM(F942:F942))","v":""},{"$f":"IF(F942=\"\",\"Neužpildytos visos objektų kainos\",\"\")","v":"Neužpildytos visos objektų kainos"}]
[null,null,null,null,"PVM suma"]
[null,null,null,null,"Suma su PVM",{"$f":"IF(ISBLANK(F944), \"\", SUM(F943:F944))","v":""}]
[]
["154.","Natrii citras"]
["154.1.","Natrii citras",100,"g",null,{"$f":"IF(ISBLANK(E948),\"\", PRODUCT(C948,E948))","v":""}]
[null,null,null,null,"Suma be PVM",{"$f":"IF(F948=\"\",\"\",SUM(F948:F948))","v":""},{"$f":"IF(F948=\"\",\"Neužpildytos visos objektų kainos\",\"\")","v":"Neužpildytos visos objektų kainos"}]
[null,null,null,null,"PVM suma"]
[null,null,null,null,"Suma su PVM",{"$f":"IF(ISBLANK(F950), \"\", SUM(F949:F950))","v":""}]
[]
["155.","Natrii hydrocarbonas"]
["155.1.","Natrii hydrocarbonas",1,"Kg",null,{"$f":"IF(ISBLANK(E954),\"\", PRODUCT(C954,E954))","v":""}]
[null,null,null,null,"Suma be PVM",{"$f":"IF(F954=\"\",\"\",SUM(F954:F954))","v":""},{"$f":"IF(F954=\"\",\"Neužpildytos visos objektų kainos\",\"\")","v":"Neužpildytos visos objektų kainos"}]
[null,null,null,null,"PVM suma"]
[null,null,null,null,"Suma su PVM",{"$f":"IF(ISBLANK(F956), \"\", SUM(F955:F956))","v":""}]
[]
["156.","Natrio chloridas 0,9% tirp. 3000ml"]
["156.1.","Natrio chloridas 0,9% tirp. 3000ml",3600,"Fl.",2.65,{"$f":"IF(ISBLANK(E960),\"\", PRODUCT(C960,E960))","v":9540},"Sodium chloride 0,9% praplovimui 3000ml N1, Polifarma"]
[null,null,null,null,"Suma be PVM",{"$f":"IF(F960=\"\",\"\",SUM(F960:F960))","v":9540},{"$f":"IF(F960=\"\",\"Neužpildytos visos objektų kainos\",\"\")","v":""}]
[null,null,null,null,"PVM suma",477]
[null,null,null,null,"Suma su PVM",{"$f":"IF(ISBLANK(F962), \"\", SUM(F961:F962))","v":10017}]
[]
["157.","Natrio chlorido 7mg/ml, kalio chlorido, magnio chlorido, paprastųjų akišviečių tinkrūra, polisorbato, natrio tetraborato, dinatrio edetato dihidroksido, benzalkonio chlorido. Akių lašai"]
["157.1.","Natrio chlorido 7mg/ml, kalio chlorido, magnio chlorido, paprastųjų akišviečių tinkrūra, polisorbato, natrio tetraborato, dinatrio edetato dihidroksido, benzalkonio chlorido. Akių lašai",1040,"ml",null,{"$f":"IF(ISBLANK(E966),\"\", PRODUCT(C966,E966))","v":""}]
[null,null,null,null,"Suma be PVM",{"$f":"IF(F966=\"\",\"\",SUM(F966:F966))","v":""},{"$f":"IF(F966=\"\",\"Neužpildytos visos objektų kainos\",\"\")","v":"Neužpildytos visos objektų kainos"}]
[null,null,null,null,"PVM suma"]
[null,null,null,null,"Suma su PVM",{"$f":"IF(ISBLANK(F968), \"\", SUM(F967:F968))","v":""}]
[]
["158.","Natrio pikosulfatas 7,5mg/ml geriamieji lašai, tirpalas"]
["158.1.","Natrio pikosulfatas 7,5mg/ml geriamieji lašai, tirpalas",3600,"ml",null,{"$f":"IF(ISBLANK(E972),\"\", PRODUCT(C972,E972))","v":""}]
[null,null,null,null,"Suma be PVM",{"$f":"IF(F972=\"\",\"\",SUM(F972:F972))","v":""},{"$f":"IF(F972=\"\",\"Neužpildytos visos objektų kainos\",\"\")","v":"Neužpildytos visos objektų kainos"}]
[null,null,null,null,"PVM suma"]
[null,null,null,null,"Suma su PVM",{"$f":"IF(ISBLANK(F974), \"\", SUM(F973:F974))","v":""}]
[]
["159.","Natrio valproatas 300 mg modifikuoto prailginimo tabletės"]
["159.1.","Natrio valproatas 300 mg modifikuoto prailginimo tabletės",100,"Tab.",null,{"$f":"IF(ISBLANK(E978),\"\", PRODUCT(C978,E978))","v":""}]
[null,null,null,null,"Suma be PVM",{"$f":"IF(F978=\"\",\"\",SUM(F978:F978))","v":""},{"$f":"IF(F978=\"\",\"Neužpildytos visos objektų kainos\",\"\")","v":"Neužpildytos visos objektų kainos"}]
[null,null,null,null,"PVM suma"]
[null,null,null,null,"Suma su PVM",{"$f":"IF(ISBLANK(F980), \"\", SUM(F979:F980))","v":""}]
[]
["160.","Nifedipinas 20 mg "]
["160.1.","Nifedipinas 20 mg ",750,"Tab.",null,{"$f":"IF(ISBLANK(E984),\"\", PRODUCT(C984,E984))","v":""}]
[null,null,null,null,"Suma be PVM",{"$f":"IF(F984=\"\",\"\",SUM(F984:F984))","v":""},{"$f":"IF(F984=\"\",\"Neužpildytos visos objektų kainos\",\"\")","v":"Neužpildytos visos objektų kainos"}]
[null,null,null,null,"PVM suma"]
[null,null,null,null,"Suma su PVM",{"$f":"IF(ISBLANK(F986), \"\", SUM(F985:F986))","v":""}]
[]
["161.","Norepinefrinas 1mg/ml "]
["161.1.","Norepinefrinas 1mg/ml ",50,"Amp.",1.56,{"$f":"IF(ISBLANK(E990),\"\", PRODUCT(C990,E990))","v":78},"Seladrenalin 4mg/4ml N10, Haver Farma (Vardinis)"]
[null,null,null,null,"Suma be PVM",{"$f":"IF(F990=\"\",\"\",SUM(F990:F990))","v":78},{"$f":"IF(F990=\"\",\"Neužpildytos visos objektų kainos\",\"\")","v":""}]
[null,null,null,null,"PVM suma",3.9]
[null,null,null,null,"Suma su PVM",{"$f":"IF(ISBLANK(F992), \"\", SUM(F991:F992))","v":81.900000000000006}]
[]
["162.","Nosies lašai su D-pantenoliu ir vitaminu A, "]
["162.1.","Nosies lašai su D-pantenoliu ir vitaminu A, ",90,"ml",null,{"$f":"IF(ISBLANK(E996),\"\", PRODUCT(C996,E996))","v":""}]
[null,null,null,null,"Suma be PVM",{"$f":"IF(F996=\"\",\"\",SUM(F996:F996))","v":""},{"$f":"IF(F996=\"\",\"Neužpildytos visos objektų kainos\",\"\")","v":"Neužpildytos visos objektų kainos"}]
[null,null,null,null,"PVM suma"]
[null,null,null,null,"Suma su PVM",{"$f":"IF(ISBLANK(F998), \"\", SUM(F997:F998))","v":""}]
[]
["163.","Oksacilinas 1000mg milteliai injekciniam tirpalui"]
["163.1.","Oksacilinas 1000mg milteliai injekciniam tirpalui",3800,"But./Amp",0.71,{"$f":"IF(ISBLANK(E1002),\"\", PRODUCT(C1002,E1002))","v":2698},"Oxacillin injekcinis tirpalas 1g N1, Swiss Exports (Vardinis)"]
[null,null,null,null,"Suma be PVM",{"$f":"IF(F1002=\"\",\"\",SUM(F1002:F1002))","v":2698},{"$f":"IF(F1002=\"\",\"Neužpildytos visos objektų kainos\",\"\")","v":""}]
[null,null,null,null,"PVM suma",134.9]
[null,null,null,null,"Suma su PVM",{"$f":"IF(ISBLANK(F1004), \"\", SUM(F1003:F1004))","v":2832.9}]
[]
["164.","Oksiteraciklinas + hidrokortizonas 9,3/3,1 mg/g"]
["164.1.","Oksiteraciklinas + hidrokortizonas 9,3/3,1 mg/g",70,"g",null,{"$f":"IF(ISBLANK(E1008),\"\", PRODUCT(C1008,E1008))","v":""}]
[null,null,null,null,"Suma be PVM",{"$f":"IF(F1008=\"\",\"\",SUM(F1008:F1008))","v":""},{"$f":"IF(F1008=\"\",\"Neužpildytos visos objektų kainos\",\"\")","v":"Neužpildytos visos objektų kainos"}]
[null,null,null,null,"PVM suma"]
[null,null,null,null,"Suma su PVM",{"$f":"IF(ISBLANK(F1010), \"\", SUM(F1009:F1010))","v":""}]
[]
["165.","Okskarbamazepinas 300 mg "]
["165.1.","Okskarbamazepinas 300 mg ",100,"Tab.",null,{"$f":"IF(ISBLANK(E1014),\"\", PRODUCT(C1014,E1014))","v":""}]
[null,null,null,null,"Suma be PVM",{"$f":"IF(F1014=\"\",\"\",SUM(F1014:F1014))","v":""},{"$f":"IF(F1014=\"\",\"Neužpildytos visos objektų kainos\",\"\")","v":"Neužpildytos visos objektų kainos"}]
[null,null,null,null,"PVM suma"]
[null,null,null,null,"Suma su PVM",{"$f":"IF(ISBLANK(F1016), \"\", SUM(F1015:F1016))","v":""}]
[]
["166.","Oleum Helianthi"]
["166.1.","Oleum Helianthi",80,"kg",null,{"$f":"IF(ISBLANK(E1020),\"\", PRODUCT(C1020,E1020))","v":""}]
[null,null,null,null,"Suma be PVM",{"$f":"IF(F1020=\"\",\"\",SUM(F1020:F1020))","v":""},{"$f":"IF(F1020=\"\",\"Neužpildytos visos objektų kainos\",\"\")","v":"Neužpildytos visos objektų kainos"}]
[null,null,null,null,"PVM suma"]
[null,null,null,null,"Suma su PVM",{"$f":"IF(ISBLANK(F1022), \"\", SUM(F1021:F1022))","v":""}]
[]
["167.","Oleum vaselini"]
["167.1.","Oleum vaselini",12,"kg",null,{"$f":"IF(ISBLANK(E1026),\"\", PRODUCT(C1026,E1026))","v":""}]
[null,null,null,null,"Suma be PVM",{"$f":"IF(F1026=\"\",\"\",SUM(F1026:F1026))","v":""},{"$f":"IF(F1026=\"\",\"Neužpildytos visos objektų kainos\",\"\")","v":"Neužpildytos visos objektų kainos"}]
[null,null,null,null,"PVM suma"]
[null,null,null,null,"Suma su PVM",{"$f":"IF(ISBLANK(F1028), \"\", SUM(F1027:F1028))","v":""}]
[]
["168.","Oleum Vaselini 50 ml steril"]
["168.1.","Oleum Vaselini 50 ml steril",40,"Fl.",null,{"$f":"IF(ISBLANK(E1032),\"\", PRODUCT(C1032,E1032))","v":""}]
[null,null,null,null,"Suma be PVM",{"$f":"IF(F1032=\"\",\"\",SUM(F1032:F1032))","v":""},{"$f":"IF(F1032=\"\",\"Neužpildytos visos objektų kainos\",\"\")","v":"Neužpildytos visos objektų kainos"}]
[null,null,null,null,"PVM suma"]
[null,null,null,null,"Suma su PVM",{"$f":"IF(ISBLANK(F1034), \"\", SUM(F1033:F1034))","v":""}]
[]
["169.","Paracetamolis 120mg/5ml geriamoji suspensija"]
["169.1.","Paracetamolis 120mg/5ml geriamoji suspensija",18000,"ml",3.27E-2,{"$f":"IF(ISBLANK(E1038),\"\", PRODUCT(C1038,E1038))","v":588.6},"Panadol 120mg/5ml susp.100ml, Glaxo CHC"]
[null,null,null,null,"Suma be PVM",{"$f":"IF(F1038=\"\",\"\",SUM(F1038:F1038))","v":588.6},{"$f":"IF(F1038=\"\",\"Neužpildytos visos objektų kainos\",\"\")","v":""}]
[null,null,null,null,"PVM suma",29.43]
[null,null,null,null,"Suma su PVM",{"$f":"IF(ISBLANK(F1040), \"\", SUM(F1039:F1040))","v":618.03}]
[]
["170.","Perhydrolum 35-38% med."]
["170.1.","Perhydrolum 35-38% med.",2,"kg",null,{"$f":"IF(ISBLANK(E1044),\"\", PRODUCT(C1044,E1044))","v":""}]
[null,null,null,null,"Suma be PVM",{"$f":"IF(F1044=\"\",\"\",SUM(F1044:F1044))","v":""},{"$f":"IF(F1044=\"\",\"Neužpildytos visos objektų kainos\",\"\")","v":"Neužpildytos visos objektų kainos"}]
[null,null,null,null,"PVM suma"]
[null,null,null,null,"Suma su PVM",{"$f":"IF(ISBLANK(F1046), \"\", SUM(F1045:F1046))","v":""}]
[]
["171.","Permetrino 40mg/g tepalas "]
["171.1.","Permetrino 40mg/g tepalas ",5000,"g",null,{"$f":"IF(ISBLANK(E1050),\"\", PRODUCT(C1050,E1050))","v":""}]
[null,null,null,null,"Suma be PVM",{"$f":"IF(F1050=\"\",\"\",SUM(F1050:F1050))","v":""},{"$f":"IF(F1050=\"\",\"Neužpildytos visos objektų kainos\",\"\")","v":"Neužpildytos visos objektų kainos"}]
[null,null,null,null,"PVM suma"]
[null,null,null,null,"Suma su PVM",{"$f":"IF(ISBLANK(F1052), \"\", SUM(F1051:F1052))","v":""}]
[]
["172.","Pipekuronio bromidas 4 mg injekcijoms "]
["172.1.","Pipekuronio bromidas 4 mg injekcijoms ",70,"But./Amp.",17,{"$f":"IF(ISBLANK(E1056),\"\", PRODUCT(C1056,E1056))","v":1190},"Arduan 4mg 2ml sol N25, Gedeon Richter"]
[null,null,null,null,"Suma be PVM",{"$f":"IF(F1056=\"\",\"\",SUM(F1056:F1056))","v":1190},{"$f":"IF(F1056=\"\",\"Neužpildytos visos objektų kainos\",\"\")","v":""}]
[null,null,null,null,"PVM suma",59.5]
[null,null,null,null,"Suma su PVM",{"$f":"IF(ISBLANK(F1058), \"\", SUM(F1057:F1058))","v":1249.5}]
[]
["173.","Pirazinamidas 500 mg"]
["173.1.","Pirazinamidas 500 mg",3000,"Tab.",null,{"$f":"IF(ISBLANK(E1062),\"\", PRODUCT(C1062,E1062))","v":""}]
[null,null,null,null,"Suma be PVM",{"$f":"IF(F1062=\"\",\"\",SUM(F1062:F1062))","v":""},{"$f":"IF(F1062=\"\",\"Neužpildytos visos objektų kainos\",\"\")","v":"Neužpildytos visos objektų kainos"}]
[null,null,null,null,"PVM suma"]
[null,null,null,null,"Suma su PVM",{"$f":"IF(ISBLANK(F1064), \"\", SUM(F1063:F1064))","v":""}]
[]
["174.","Piridoksino hidrochloridas 50mg "]
["174.1.","Piridoksino hidrochloridas 50mg ",200,"Tab.",null,{"$f":"IF(ISBLANK(E1068),\"\", PRODUCT(C1068,E1068))","v":""}]
[null,null,null,null,"Suma be PVM",{"$f":"IF(F1068=\"\",\"\",SUM(F1068:F1068))","v":""},{"$f":"IF(F1068=\"\",\"Neužpildytos visos objektų kainos\",\"\")","v":"Neužpildytos visos objektų kainos"}]
[null,null,null,null,"PVM suma"]
[null,null,null,null,"Suma su PVM",{"$f":"IF(ISBLANK(F1070), \"\", SUM(F1069:F1070))","v":""}]
[]
["175.","Piridostigminas 60mg "]
["175.1.","Piridostigminas 60mg ",300,"Tab.",null,{"$f":"IF(ISBLANK(E1074),\"\", PRODUCT(C1074,E1074))","v":""}]
[null,null,null,null,"Suma be PVM",{"$f":"IF(F1074=\"\",\"\",SUM(F1074:F1074))","v":""},{"$f":"IF(F1074=\"\",\"Neužpildytos visos objektų kainos\",\"\")","v":"Neužpildytos visos objektų kainos"}]
[null,null,null,null,"PVM suma"]
[null,null,null,null,"Suma su PVM",{"$f":"IF(ISBLANK(F1076), \"\", SUM(F1075:F1076))","v":""}]
[]
["176.","Pirimetaminas 25mg "]
["176.1.","Pirimetaminas 25mg ",100,"Tab.",null,{"$f":"IF(ISBLANK(E1080),\"\", PRODUCT(C1080,E1080))","v":""}]
[null,null,null,null,"Suma be PVM",{"$f":"IF(F1080=\"\",\"\",SUM(F1080:F1080))","v":""},{"$f":"IF(F1080=\"\",\"Neužpildytos visos objektų kainos\",\"\")","v":"Neužpildytos visos objektų kainos"}]
[null,null,null,null,"PVM suma"]
[null,null,null,null,"Suma su PVM",{"$f":"IF(ISBLANK(F1082), \"\", SUM(F1081:F1082))","v":""}]
[]
["177.","Pix liquida"]
["177.1.","Pix liquida",1,"kg",null,{"$f":"IF(ISBLANK(E1086),\"\", PRODUCT(C1086,E1086))","v":""}]
[null,null,null,null,"Suma be PVM",{"$f":"IF(F1086=\"\",\"\",SUM(F1086:F1086))","v":""},{"$f":"IF(F1086=\"\",\"Neužpildytos visos objektų kainos\",\"\")","v":"Neužpildytos visos objektų kainos"}]
[null,null,null,null,"PVM suma"]
[null,null,null,null,"Suma su PVM",{"$f":"IF(ISBLANK(F1088), \"\", SUM(F1087:F1088))","v":""}]
[]
["178.","Polydocanolum 3% 2ml"]
["178.1.","Polydocanolum 3% 2ml",60,"Amp.",null,{"$f":"IF(ISBLANK(E1092),\"\", PRODUCT(C1092,E1092))","v":""}]
[null,null,null,null,"Suma be PVM",{"$f":"IF(F1092=\"\",\"\",SUM(F1092:F1092))","v":""},{"$f":"IF(F1092=\"\",\"Neužpildytos visos objektų kainos\",\"\")","v":"Neužpildytos visos objektų kainos"}]
[null,null,null,null,"PVM suma"]
[null,null,null,null,"Suma su PVM",{"$f":"IF(ISBLANK(F1094), \"\", SUM(F1093:F1094))","v":""}]
[]
["179.","Protionamidas 250mg "]
["179.1.","Protionamidas 250mg ",100,"Tab.",null,{"$f":"IF(ISBLANK(E1098),\"\", PRODUCT(C1098,E1098))","v":""}]
[null,null,null,null,"Suma be PVM",{"$f":"IF(F1098=\"\",\"\",SUM(F1098:F1098))","v":""},{"$f":"IF(F1098=\"\",\"Neužpildytos visos objektų kainos\",\"\")","v":"Neužpildytos visos objektų kainos"}]
[null,null,null,null,"PVM suma"]
[null,null,null,null,"Suma su PVM",{"$f":"IF(ISBLANK(F1100), \"\", SUM(F1099:F1100))","v":""}]
[]
["180.","Procaine Hydrochloridum pulv. 1kg (GMP)"]
["180.1.","Procaine Hydrochloridum pulv. 1kg (GMP)",300,"g",null,{"$f":"IF(ISBLANK(E1104),\"\", PRODUCT(C1104,E1104))","v":""}]
[null,null,null,null,"Suma be PVM",{"$f":"IF(F1104=\"\",\"\",SUM(F1104:F1104))","v":""},{"$f":"IF(F1104=\"\",\"Neužpildytos visos objektų kainos\",\"\")","v":"Neužpildytos visos objektų kainos"}]
[null,null,null,null,"PVM suma"]
[null,null,null,null,"Suma su PVM",{"$f":"IF(ISBLANK(F1106), \"\", SUM(F1105:F1106))","v":""}]
[]
["181.","Propranololas 40 mg "]
["181.1.","Propranololas 40 mg ",60,"Tab.",null,{"$f":"IF(ISBLANK(E1110),\"\", PRODUCT(C1110,E1110))","v":""}]
[null,null,null,null,"Suma be PVM",{"$f":"IF(F1110=\"\",\"\",SUM(F1110:F1110))","v":""},{"$f":"IF(F1110=\"\",\"Neužpildytos visos objektų kainos\",\"\")","v":"Neužpildytos visos objektų kainos"}]
[null,null,null,null,"PVM suma"]
[null,null,null,null,"Suma su PVM",{"$f":"IF(ISBLANK(F1112), \"\", SUM(F1111:F1112))","v":""}]
[]
["182.","Protamino sulfatas 7000 antiheparino TV"]
["182.1.","Protamino sulfatas 7000 antiheparino TV",50,"Amp.",15.56,{"$f":"IF(ISBLANK(E1116),\"\", PRODUCT(C1116,E1116))","v":778},"Prota 50mg/5ml amp. N25, Samarth (Vardinis)"]
[null,null,null,null,"Suma be PVM",{"$f":"IF(F1116=\"\",\"\",SUM(F1116:F1116))","v":778},{"$f":"IF(F1116=\"\",\"Neužpildytos visos objektų kainos\",\"\")","v":""}]
[null,null,null,null,"PVM suma",38.9]
[null,null,null,null,"Suma su PVM",{"$f":"IF(ISBLANK(F1118), \"\", SUM(F1117:F1118))","v":816.9}]
[]
["183.","Protargolum"]
["183.1.","Protargolum",100,"g",null,{"$f":"IF(ISBLANK(E1122),\"\", PRODUCT(C1122,E1122))","v":""}]
[null,null,null,null,"Suma be PVM",{"$f":"IF(F1122=\"\",\"\",SUM(F1122:F1122))","v":""},{"$f":"IF(F1122=\"\",\"Neužpildytos visos objektų kainos\",\"\")","v":"Neužpildytos visos objektų kainos"}]
[null,null,null,null,"PVM suma"]
[null,null,null,null,"Suma su PVM",{"$f":"IF(ISBLANK(F1124), \"\", SUM(F1123:F1124))","v":""}]
[]
["184.","Resorcinum"]
["184.1.","Resorcinum",1,"kg",null,{"$f":"IF(ISBLANK(E1128),\"\", PRODUCT(C1128,E1128))","v":""}]
[null,null,null,null,"Suma be PVM",{"$f":"IF(F1128=\"\",\"\",SUM(F1128:F1128))","v":""},{"$f":"IF(F1128=\"\",\"Neužpildytos visos objektų kainos\",\"\")","v":"Neužpildytos visos objektų kainos"}]
[null,null,null,null,"PVM suma"]
[null,null,null,null,"Suma su PVM",{"$f":"IF(ISBLANK(F1130), \"\", SUM(F1129:F1130))","v":""}]
[]
["185.","Rifampicinas + Izoniazidas 150mg/100mg"]
["185.1.","Rifampicinas + Izoniazidas 150mg/100mg",100,"Kaps/Tab.",null,{"$f":"IF(ISBLANK(E1134),\"\", PRODUCT(C1134,E1134))","v":""}]
[null,null,null,null,"Suma be PVM",{"$f":"IF(F1134=\"\",\"\",SUM(F1134:F1134))","v":""},{"$f":"IF(F1134=\"\",\"Neužpildytos visos objektų kainos\",\"\")","v":"Neužpildytos visos objektų kainos"}]
[null,null,null,null,"PVM suma"]
[null,null,null,null,"Suma su PVM",{"$f":"IF(ISBLANK(F1136), \"\", SUM(F1135:F1136))","v":""}]
[]
["186.","Rifampicinas 150 mg "]
["186.1.","Rifampicinas 150 mg ",1400,"Kaps/Tab.",null,{"$f":"IF(ISBLANK(E1140),\"\", PRODUCT(C1140,E1140))","v":""}]
[null,null,null,null,"Suma be PVM",{"$f":"IF(F1140=\"\",\"\",SUM(F1140:F1140))","v":""},{"$f":"IF(F1140=\"\",\"Neužpildytos visos objektų kainos\",\"\")","v":"Neužpildytos visos objektų kainos"}]
[null,null,null,null,"PVM suma"]
[null,null,null,null,"Suma su PVM",{"$f":"IF(ISBLANK(F1142), \"\", SUM(F1141:F1142))","v":""}]
[]
["187.","Rifampicino 600mg milteliai injekciniam tirpalui "]
["187.1.","Rifampicino 600mg milteliai injekciniam tirpalui ",150,"But./Amp.",null,{"$f":"IF(ISBLANK(E1146),\"\", PRODUCT(C1146,E1146))","v":""}]
[null,null,null,null,"Suma be PVM",{"$f":"IF(F1146=\"\",\"\",SUM(F1146:F1146))","v":""},{"$f":"IF(F1146=\"\",\"Neužpildytos visos objektų kainos\",\"\")","v":"Neužpildytos visos objektų kainos"}]
[null,null,null,null,"PVM suma"]
[null,null,null,null,"Suma su PVM",{"$f":"IF(ISBLANK(F1148), \"\", SUM(F1147:F1148))","v":""}]
[]
["188.","Ringerio acetato malatas 500ml (1000ml šio vaistinio preparato yra: Natrio chlorido 6,8 g; Kalio chlorido 0,3g; Magnio chlorido heksahidrato 0,2g; Kalcio chlorido dihidrato 0,37g; Natrio acetato trihidrato 3,27g; obuolių rūgšties 0,67g)"]
["188.1.","Ringerio acetato malatas 500ml (1000ml šio vaistinio preparato yra: Natrio chlorido 6,8 g; Kalio chlorido 0,3g; Magnio chlorido heksahidrato 0,2g; Kalcio chlorido dihidrato 0,37g; Natrio acetato trihidrato 3,27g; obuolių rūgšties 0,67g)",100,"Fl.",null,{"$f":"IF(ISBLANK(E1152),\"\", PRODUCT(C1152,E1152))","v":""}]
[null,null,null,null,"Suma be PVM",{"$f":"IF(F1152=\"\",\"\",SUM(F1152:F1152))","v":""},{"$f":"IF(F1152=\"\",\"Neužpildytos visos objektų kainos\",\"\")","v":"Neužpildytos visos objektų kainos"}]
[null,null,null,null,"PVM suma"]
[null,null,null,null,"Suma su PVM",{"$f":"IF(ISBLANK(F1154), \"\", SUM(F1153:F1154))","v":""}]
[]
["189.","Ropivakainas 5mg/ml "]
["189.1.","Ropivakainas 5mg/ml ",500,"Amp.",null,{"$f":"IF(ISBLANK(E1158),\"\", PRODUCT(C1158,E1158))","v":""}]
[null,null,null,null,"Suma be PVM",{"$f":"IF(F1158=\"\",\"\",SUM(F1158:F1158))","v":""},{"$f":"IF(F1158=\"\",\"Neužpildytos visos objektų kainos\",\"\")","v":"Neužpildytos visos objektų kainos"}]
[null,null,null,null,"PVM suma"]
[null,null,null,null,"Suma su PVM",{"$f":"IF(ISBLANK(F1160), \"\", SUM(F1159:F1160))","v":""}]
[]
["190.","Sakubitrilas / Valsartanas 49mg/51mg"]
["190.1.","Sakubitrilas / Valsartanas 49mg/51mg",2800,"Tab.",null,{"$f":"IF(ISBLANK(E1164),\"\", PRODUCT(C1164,E1164))","v":""}]
[null,null,null,null,"Suma be PVM",{"$f":"IF(F1164=\"\",\"\",SUM(F1164:F1164))","v":""},{"$f":"IF(F1164=\"\",\"Neužpildytos visos objektų kainos\",\"\")","v":"Neužpildytos visos objektų kainos"}]
[null,null,null,null,"PVM suma"]
[null,null,null,null,"Suma su PVM",{"$f":"IF(ISBLANK(F1166), \"\", SUM(F1165:F1166))","v":""}]
[]
["191.","Sakubitrilas/ Valsartanas 24mg/26mg"]
["191.1.","Sakubitrilas/ Valsartanas 24mg/26mg",2800,"Tab.",null,{"$f":"IF(ISBLANK(E1170),\"\", PRODUCT(C1170,E1170))","v":""}]
[null,null,null,null,"Suma be PVM",{"$f":"IF(F1170=\"\",\"\",SUM(F1170:F1170))","v":""},{"$f":"IF(F1170=\"\",\"Neužpildytos visos objektų kainos\",\"\")","v":"Neužpildytos visos objektų kainos"}]
[null,null,null,null,"PVM suma"]
[null,null,null,null,"Suma su PVM",{"$f":"IF(ISBLANK(F1172), \"\", SUM(F1171:F1172))","v":""}]
[]
["192.","Serumas nuo europinių gyvačių įkandimo 500UI užpild. švirkštas"]
["192.1.","Serumas nuo europinių gyvačių įkandimo 500UI užpild. švirkštas",6,"Švirkšt.",null,{"$f":"IF(ISBLANK(E1176),\"\", PRODUCT(C1176,E1176))","v":""}]
[null,null,null,null,"Suma be PVM",{"$f":"IF(F1176=\"\",\"\",SUM(F1176:F1176))","v":""},{"$f":"IF(F1176=\"\",\"Neužpildytos visos objektų kainos\",\"\")","v":"Neužpildytos visos objektų kainos"}]
[null,null,null,null,"PVM suma"]
[null,null,null,null,"Suma su PVM",{"$f":"IF(ISBLANK(F1178), \"\", SUM(F1177:F1178))","v":""}]
[]
["193.","Simetikonas 40mg/ml geriamoji emulsija"]
["193.1.","Simetikonas 40mg/ml geriamoji emulsija",8000,"ml",null,{"$f":"IF(ISBLANK(E1182),\"\", PRODUCT(C1182,E1182))","v":""}]
[null,null,null,null,"Suma be PVM",{"$f":"IF(F1182=\"\",\"\",SUM(F1182:F1182))","v":""},{"$f":"IF(F1182=\"\",\"Neužpildytos visos objektų kainos\",\"\")","v":"Neužpildytos visos objektų kainos"}]
[null,null,null,null,"PVM suma"]
[null,null,null,null,"Suma su PVM",{"$f":"IF(ISBLANK(F1184), \"\", SUM(F1183:F1184))","v":""}]
[]
["194.","Sorbitolis 27g + Manitolis 5,4g 1l, flakonai po 3000ml"]
["194.1.","Sorbitolis 27g + Manitolis 5,4g 1l, flakonai po 3000ml",60,"Fl.",null,{"$f":"IF(ISBLANK(E1188),\"\", PRODUCT(C1188,E1188))","v":""}]
[null,null,null,null,"Suma be PVM",{"$f":"IF(F1188=\"\",\"\",SUM(F1188:F1188))","v":""},{"$f":"IF(F1188=\"\",\"Neužpildytos visos objektų kainos\",\"\")","v":"Neužpildytos visos objektų kainos"}]
[null,null,null,null,"PVM suma"]
[null,null,null,null,"Suma su PVM",{"$f":"IF(ISBLANK(F1190), \"\", SUM(F1189:F1190))","v":""}]
[]
["195.","Specialios medicininės paskirties maitinimo mišinys. Hipoalerginis pilnavertis maisto mišinys kūdikiams"]
["195.1.","Specialios medicininės paskirties maitinimo mišinys. Hipoalerginis pilnavertis maisto mišinys kūdikiams, pagamintas aminorūgščių pagrindu. Savo sudėtyje turintis ilgos grandinės polinesočiųjų rūgščių (LCPs) ir nukleotidų. Maisto mišinys skirtas kūdikiams nuo gimimo. Sudėtyje nėra karvės pieno baltymų, todėl tinka mitybos reguliavimui esant alergijai karvės pienui, sudėtiniam baltymų netoleravimui",4000,"g",null,{"$f":"IF(ISBLANK(E1194),\"\", PRODUCT(C1194,E1194))","v":""}]
[null,null,null,null,"Suma be PVM",{"$f":"IF(F1194=\"\",\"\",SUM(F1194:F1194))","v":""},{"$f":"IF(F1194=\"\",\"Neužpildytos visos objektų kainos\",\"\")","v":"Neužpildytos visos objektų kainos"}]
[null,null,null,null,"PVM suma"]
[null,null,null,null,"Suma su PVM",{"$f":"IF(ISBLANK(F1196), \"\", SUM(F1195:F1196))","v":""}]
[]
["196.","Sulfadiazinas 500mg "]
["196.1.","Sulfadiazinas 500mg ",200,"Tab.",null,{"$f":"IF(ISBLANK(E1200),\"\", PRODUCT(C1200,E1200))","v":""}]
[null,null,null,null,"Suma be PVM",{"$f":"IF(F1200=\"\",\"\",SUM(F1200:F1200))","v":""},{"$f":"IF(F1200=\"\",\"Neužpildytos visos objektų kainos\",\"\")","v":"Neužpildytos visos objektų kainos"}]
[null,null,null,null,"PVM suma"]
[null,null,null,null,"Suma su PVM",{"$f":"IF(ISBLANK(F1202), \"\", SUM(F1201:F1202))","v":""}]
[]
["197.","Sulfametoksazolas + Trimetoprimas 400mg/80mg "]
["197.1.","Sulfametoksazolas + Trimetoprimas 400mg/80mg ",900,"Amp.",null,{"$f":"IF(ISBLANK(E1206),\"\", PRODUCT(C1206,E1206))","v":""}]
[null,null,null,null,"Suma be PVM",{"$f":"IF(F1206=\"\",\"\",SUM(F1206:F1206))","v":""},{"$f":"IF(F1206=\"\",\"Neužpildytos visos objektų kainos\",\"\")","v":"Neužpildytos visos objektų kainos"}]
[null,null,null,null,"PVM suma"]
[null,null,null,null,"Suma su PVM",{"$f":"IF(ISBLANK(F1208), \"\", SUM(F1207:F1208))","v":""}]
[]
["198.","Sulfametoksazolas + Trimetoprimas 800mg/160mg "]
["198.1.","Sulfametoksazolas + Trimetoprimas 800mg/160mg ",4000,"Tab.",0.44,{"$f":"IF(ISBLANK(E1212),\"\", PRODUCT(C1212,E1212))","v":1760},"Bactrim ds 800/160 tablet N200, Abbott (Vardinis)"]
[null,null,null,null,"Suma be PVM",{"$f":"IF(F1212=\"\",\"\",SUM(F1212:F1212))","v":1760},{"$f":"IF(F1212=\"\",\"Neužpildytos visos objektų kainos\",\"\")","v":""}]
[null,null,null,null,"PVM suma",88]
[null,null,null,null,"Suma su PVM",{"$f":"IF(ISBLANK(F1214), \"\", SUM(F1213:F1214))","v":1848}]
[]
["199.","Sulfasalazinas 500mg "]
["199.1.","Sulfasalazinas 500mg ",100,"Tab.",null,{"$f":"IF(ISBLANK(E1218),\"\", PRODUCT(C1218,E1218))","v":""}]
[null,null,null,null,"Suma be PVM",{"$f":"IF(F1218=\"\",\"\",SUM(F1218:F1218))","v":""},{"$f":"IF(F1218=\"\",\"Neužpildytos visos objektų kainos\",\"\")","v":"Neužpildytos visos objektų kainos"}]
[null,null,null,null,"PVM suma"]
[null,null,null,null,"Suma su PVM",{"$f":"IF(ISBLANK(F1220), \"\", SUM(F1219:F1220))","v":""}]
[]
["200.","Sulfur praecipitarum"]
["200.1.","Sulfur praecipitarum",2,"kg",null,{"$f":"IF(ISBLANK(E1224),\"\", PRODUCT(C1224,E1224))","v":""}]
[null,null,null,null,"Suma be PVM",{"$f":"IF(F1224=\"\",\"\",SUM(F1224:F1224))","v":""},{"$f":"IF(F1224=\"\",\"Neužpildytos visos objektų kainos\",\"\")","v":"Neužpildytos visos objektų kainos"}]
[null,null,null,null,"PVM suma"]
[null,null,null,null,"Suma su PVM",{"$f":"IF(ISBLANK(F1226), \"\", SUM(F1225:F1226))","v":""}]
[]
["201.","Talcum"]
["201.1.","Talcum",1,"kg",null,{"$f":"IF(ISBLANK(E1230),\"\", PRODUCT(C1230,E1230))","v":""}]
[null,null,null,null,"Suma be PVM",{"$f":"IF(F1230=\"\",\"\",SUM(F1230:F1230))","v":""},{"$f":"IF(F1230=\"\",\"Neužpildytos visos objektų kainos\",\"\")","v":"Neužpildytos visos objektų kainos"}]
[null,null,null,null,"PVM suma"]
[null,null,null,null,"Suma su PVM",{"$f":"IF(ISBLANK(F1232), \"\", SUM(F1231:F1232))","v":""}]
[]
["202.","Tetagam P 250 VV/ml"]
["202.1.","Tetagam P 250 VV/ml",24,"Fl.",168.5,{"$f":"IF(ISBLANK(E1236),\"\", PRODUCT(C1236,E1236))","v":4044},"Tetglob Human antitetanus immunoglobulin 250 IU inj. N1, Bharat Biotech (Vardinis)"]
[null,null,null,null,"Suma be PVM",{"$f":"IF(F1236=\"\",\"\",SUM(F1236:F1236))","v":4044},{"$f":"IF(F1236=\"\",\"Neužpildytos visos objektų kainos\",\"\")","v":""}]
[null,null,null,null,"PVM suma",202.2]
[null,null,null,null,"Suma su PVM",{"$f":"IF(ISBLANK(F1238), \"\", SUM(F1237:F1238))","v":4246.2}]
[]
["203.","Tigeciklinas 50mg "]
["203.1.","Tigeciklinas 50mg ",50,"Amp.",44.2,{"$f":"IF(ISBLANK(E1242),\"\", PRODUCT(C1242,E1242))","v":2210},"Tigimak 50mg milteliai infuziniam tirpalui N1, Oscar (Vardinis)"]
[null,null,null,null,"Suma be PVM",{"$f":"IF(F1242=\"\",\"\",SUM(F1242:F1242))","v":2210},{"$f":"IF(F1242=\"\",\"Neužpildytos visos objektų kainos\",\"\")","v":""}]
[null,null,null,null,"PVM suma",110.5]
[null,null,null,null,"Suma su PVM",{"$f":"IF(ISBLANK(F1244), \"\", SUM(F1243:F1244))","v":2320.5}]
[]
["204.","Timololum et Brinzolamidum 5mg/10mg akių lašai"]
["204.1.","Timololum et Brinzolamidum 5mg/10mg akių lašai",10,"ml",null,{"$f":"IF(ISBLANK(E1248),\"\", PRODUCT(C1248,E1248))","v":""}]
[null,null,null,null,"Suma be PVM",{"$f":"IF(F1248=\"\",\"\",SUM(F1248:F1248))","v":""},{"$f":"IF(F1248=\"\",\"Neužpildytos visos objektų kainos\",\"\")","v":"Neužpildytos visos objektų kainos"}]
[null,null,null,null,"PVM suma"]
[null,null,null,null,"Suma su PVM",{"$f":"IF(ISBLANK(F1250), \"\", SUM(F1249:F1250))","v":""}]
[]
["205.","Tiopentalio natrio druska 1000mg"]
["205.1.","Tiopentalio natrio druska 1000mg",300,"But./Amp.",null,{"$f":"IF(ISBLANK(E1254),\"\", PRODUCT(C1254,E1254))","v":""}]
[null,null,null,null,"Suma be PVM",{"$f":"IF(F1254=\"\",\"\",SUM(F1254:F1254))","v":""},{"$f":"IF(F1254=\"\",\"Neužpildytos visos objektų kainos\",\"\")","v":"Neužpildytos visos objektų kainos"}]
[null,null,null,null,"PVM suma"]
[null,null,null,null,"Suma su PVM",{"$f":"IF(ISBLANK(F1256), \"\", SUM(F1255:F1256))","v":""}]
[]
["206.","Tirpalas (infuzijoms) 1000ml: 40g Želatinos + 5,55g Natrio chlorido + 3,27g natrio acetato trihidrato + 0,3g Kalio chlorido + 0,15g Kalcio chlorido dihidrato + 0,2g magnio chlorido heksahidrato. 500 ml flakonai"]
["206.1.","Tirpalas (infuzijoms) 1000ml: 40g Želatinos + 5,55g Natrio chlorido + 3,27g natrio acetato trihidrato + 0,3g Kalio chlorido + 0,15g Kalcio chlorido dihidrato + 0,2g magnio chlorido heksahidrato. 500 ml flakonai",130,"Fl.",null,{"$f":"IF(ISBLANK(E1260),\"\", PRODUCT(C1260,E1260))","v":""}]
[null,null,null,null,"Suma be PVM",{"$f":"IF(F1260=\"\",\"\",SUM(F1260:F1260))","v":""},{"$f":"IF(F1260=\"\",\"Neužpildytos visos objektų kainos\",\"\")","v":"Neužpildytos visos objektų kainos"}]
[null,null,null,null,"PVM suma"]
[null,null,null,null,"Suma su PVM",{"$f":"IF(ISBLANK(F1262), \"\", SUM(F1261:F1262))","v":""}]
[]
["207.","Tirpalas odos dūrimo testui  3ml ±  0,5ml – Fenolinis glicerolis"]
["207.1.","Tirpalas odos dūrimo testui  3ml ±  0,5ml – Fenolinis glicerolis",6,"Fl.",28,{"$f":"IF(ISBLANK(E1266),\"\", PRODUCT(C1266,E1266))","v":168},"Skin Prick Test bottle x 2,5ml, Inmunotek (Vardinis) K100"]
[null,null,null,null,"Suma be PVM",{"$f":"IF(F1266=\"\",\"\",SUM(F1266:F1266))","v":168},{"$f":"IF(F1266=\"\",\"Neužpildytos visos objektų kainos\",\"\")","v":""}]
[null,null,null,null,"PVM suma",8.4]
[null,null,null,null,"Suma su PVM",{"$f":"IF(ISBLANK(F1268), \"\", SUM(F1267:F1268))","v":176.4}]
[]
["208.","Tirpalas odos dūrimo testui  3ml ± 0,5ml - 7-nių grūdų mišinys "]
["208.1.","Tirpalas odos dūrimo testui  3ml ± 0,5ml - 7-nių grūdų mišinys ",1,"Fl.",null,{"$f":"IF(ISBLANK(E1272),\"\", PRODUCT(C1272,E1272))","v":""}]
[null,null,null,null,"Suma be PVM",{"$f":"IF(F1272=\"\",\"\",SUM(F1272:F1272))","v":""},{"$f":"IF(F1272=\"\",\"Neužpildytos visos objektų kainos\",\"\")","v":"Neužpildytos visos objektų kainos"}]
[null,null,null,null,"PVM suma"]
[null,null,null,null,"Suma su PVM",{"$f":"IF(ISBLANK(F1274), \"\", SUM(F1273:F1274))","v":""}]
[]
["209.","Tirpalas odos dūrimo testui  3ml ± 0,5ml - Cladosporium "]
["209.1.","Tirpalas odos dūrimo testui  3ml ± 0,5ml - Cladosporium ",4,"Fl.",28,{"$f":"IF(ISBLANK(E1278),\"\", PRODUCT(C1278,E1278))","v":112},"Skin Prick Test bottle x 2,5ml, Inmunotek (Vardinis) P905"]
[null,null,null,null,"Suma be PVM",{"$f":"IF(F1278=\"\",\"\",SUM(F1278:F1278))","v":112},{"$f":"IF(F1278=\"\",\"Neužpildytos visos objektų kainos\",\"\")","v":""}]
[null,null,null,null,"PVM suma",5.6]
[null,null,null,null,"Suma su PVM",{"$f":"IF(ISBLANK(F1280), \"\", SUM(F1279:F1280))","v":117.6}]
[]
["210.","Tirpalas odos dūrimo testui  3ml ± 0,5ml - Įvairūs javai 4 "]
["210.1.","Tirpalas odos dūrimo testui  3ml ± 0,5ml - Įvairūs javai 4 ",1,"Fl.",28,{"$f":"IF(ISBLANK(E1284),\"\", PRODUCT(C1284,E1284))","v":28},"Skin Prick Test bottle x 2,5ml, Inmunotek (Vardinis) MG02"]
[null,null,null,null,"Suma be PVM",{"$f":"IF(F1284=\"\",\"\",SUM(F1284:F1284))","v":28},{"$f":"IF(F1284=\"\",\"Neužpildytos visos objektų kainos\",\"\")","v":""}]
[null,null,null,null,"PVM suma",1.4]
[null,null,null,null,"Suma su PVM",{"$f":"IF(ISBLANK(F1286), \"\", SUM(F1285:F1286))","v":29.4}]
[]
["211.","Tirpalas odos dūrimo testui  3ml ± 0,5ml - Jautiena "]
["211.1.","Tirpalas odos dūrimo testui  3ml ± 0,5ml - Jautiena ",1,"Fl.",28,{"$f":"IF(ISBLANK(E1290),\"\", PRODUCT(C1290,E1290))","v":28},"Skin Prick Test bottle x 2,5ml, Inmunotek (Vardinis) F027"]
[null,null,null,null,"Suma be PVM",{"$f":"IF(F1290=\"\",\"\",SUM(F1290:F1290))","v":28},{"$f":"IF(F1290=\"\",\"Neužpildytos visos objektų kainos\",\"\")","v":""}]
[null,null,null,null,"PVM suma",1.4]
[null,null,null,null,"Suma su PVM",{"$f":"IF(ISBLANK(F1292), \"\", SUM(F1291:F1292))","v":29.4}]
[]
["212.","Tirpalas odos dūrimo testui  3ml ± 0,5ml - Kiaušinis visas "]
["212.1.","Tirpalas odos dūrimo testui  3ml ± 0,5ml - Kiaušinis visas ",1,"Fl.",28,{"$f":"IF(ISBLANK(E1296),\"\", PRODUCT(C1296,E1296))","v":28},"Skin Prick Test bottle x 2,5ml, Inmunotek (Vardinis) F245"]
[null,null,null,null,"Suma be PVM",{"$f":"IF(F1296=\"\",\"\",SUM(F1296:F1296))","v":28},{"$f":"IF(F1296=\"\",\"Neužpildytos visos objektų kainos\",\"\")","v":""}]
[null,null,null,null,"PVM suma",1.4]
[null,null,null,null,"Suma su PVM",{"$f":"IF(ISBLANK(F1298), \"\", SUM(F1297:F1298))","v":29.4}]
[]
["213.","Tirpalas odos dūrimo testui  3ml ± 0,5ml - Kviečių miltai"]
["213.1.","Tirpalas odos dūrimo testui  3ml ± 0,5ml - Kviečių miltai",1,"Fl.",28,{"$f":"IF(ISBLANK(E1302),\"\", PRODUCT(C1302,E1302))","v":28},"Skin Prick Test bottle x 2,5ml, Inmunotek (Vardinis) F004"]
[null,null,null,null,"Suma be PVM",{"$f":"IF(F1302=\"\",\"\",SUM(F1302:F1302))","v":28},{"$f":"IF(F1302=\"\",\"Neužpildytos visos objektų kainos\",\"\")","v":""}]
[null,null,null,null,"PVM suma",1.4]
[null,null,null,null,"Suma su PVM",{"$f":"IF(ISBLANK(F1304), \"\", SUM(F1303:F1304))","v":29.4}]
[]
["214.","Tirpalas odos dūrimo testui  3ml ± 0,5ml - Motiejukas"]
["214.1.","Tirpalas odos dūrimo testui  3ml ± 0,5ml - Motiejukas",1,"Fl.",28,{"$f":"IF(ISBLANK(E1308),\"\", PRODUCT(C1308,E1308))","v":28},"Skin Prick Test bottle x 2,5ml, Inmunotek (Vardinis) G110"]
[null,null,null,null,"Suma be PVM",{"$f":"IF(F1308=\"\",\"\",SUM(F1308:F1308))","v":28},{"$f":"IF(F1308=\"\",\"Neužpildytos visos objektų kainos\",\"\")","v":""}]
[null,null,null,null,"PVM suma",1.4]
[null,null,null,null,"Suma su PVM",{"$f":"IF(ISBLANK(F1310), \"\", SUM(F1309:F1310))","v":29.4}]
[]
["215.","Tirpalas odos dūrimo testui  3ml ± 0,5ml - Sezamas "]
["215.1.","Tirpalas odos dūrimo testui  3ml ± 0,5ml - Sezamas ",1,"Fl.",null,{"$f":"IF(ISBLANK(E1314),\"\", PRODUCT(C1314,E1314))","v":""}]
[null,null,null,null,"Suma be PVM",{"$f":"IF(F1314=\"\",\"\",SUM(F1314:F1314))","v":""},{"$f":"IF(F1314=\"\",\"Neužpildytos visos objektų kainos\",\"\")","v":"Neužpildytos visos objektų kainos"}]
[null,null,null,null,"PVM suma"]
[null,null,null,null,"Suma su PVM",{"$f":"IF(ISBLANK(F1316), \"\", SUM(F1315:F1316))","v":""}]
[]
["216.","Tirpalas odos dūrimo testui  3ml ± 0,5ml - Topolis "]
["216.1.","Tirpalas odos dūrimo testui  3ml ± 0,5ml - Topolis ",2,"Fl.",28,{"$f":"IF(ISBLANK(E1320),\"\", PRODUCT(C1320,E1320))","v":56},"Skin Prick Test bottle x 2,5ml, Inmunotek (Vardinis) T518"]
[null,null,null,null,"Suma be PVM",{"$f":"IF(F1320=\"\",\"\",SUM(F1320:F1320))","v":56},{"$f":"IF(F1320=\"\",\"Neužpildytos visos objektų kainos\",\"\")","v":""}]
[null,null,null,null,"PVM suma",2.8]
[null,null,null,null,"Suma su PVM",{"$f":"IF(ISBLANK(F1322), \"\", SUM(F1321:F1322))","v":58.8}]
[]
["217.","Tirpalas odos dūrimo testui 3ml ± 0,5ml - Česnakas "]
["217.1.","Tirpalas odos dūrimo testui 3ml ± 0,5ml - Česnakas ",1,"Fl.",null,{"$f":"IF(ISBLANK(E1326),\"\", PRODUCT(C1326,E1326))","v":""}]
[null,null,null,null,"Suma be PVM",{"$f":"IF(F1326=\"\",\"\",SUM(F1326:F1326))","v":""},{"$f":"IF(F1326=\"\",\"Neužpildytos visos objektų kainos\",\"\")","v":"Neužpildytos visos objektų kainos"}]
[null,null,null,null,"PVM suma"]
[null,null,null,null,"Suma su PVM",{"$f":"IF(ISBLANK(F1328), \"\", SUM(F1327:F1328))","v":""}]
[]
["218.","Tirpalas odos dūrimo testui 3ml ± 0,5ml - Gėlų vandenų žuvys "]
["218.1.","Tirpalas odos dūrimo testui 3ml ± 0,5ml - Gėlų vandenų žuvys ",1,"Fl.",null,{"$f":"IF(ISBLANK(E1332),\"\", PRODUCT(C1332,E1332))","v":""}]
[null,null,null,null,"Suma be PVM",{"$f":"IF(F1332=\"\",\"\",SUM(F1332:F1332))","v":""},{"$f":"IF(F1332=\"\",\"Neužpildytos visos objektų kainos\",\"\")","v":"Neužpildytos visos objektų kainos"}]
[null,null,null,null,"PVM suma"]
[null,null,null,null,"Suma su PVM",{"$f":"IF(ISBLANK(F1334), \"\", SUM(F1333:F1334))","v":""}]
[]
["219.","Tirpalas odos dūrimo testui 3ml ± 0,5ml - Krabai "]
["219.1.","Tirpalas odos dūrimo testui 3ml ± 0,5ml - Krabai ",1,"Fl.",null,{"$f":"IF(ISBLANK(E1338),\"\", PRODUCT(C1338,E1338))","v":""}]
[null,null,null,null,"Suma be PVM",{"$f":"IF(F1338=\"\",\"\",SUM(F1338:F1338))","v":""},{"$f":"IF(F1338=\"\",\"Neužpildytos visos objektų kainos\",\"\")","v":"Neužpildytos visos objektų kainos"}]
[null,null,null,null,"PVM suma"]
[null,null,null,null,"Suma su PVM",{"$f":"IF(ISBLANK(F1340), \"\", SUM(F1339:F1340))","v":""}]
[]
["220.","Tirpalas odos dūrimo testui 3ml ± 0,5ml - Krevetės "]
["220.1.","Tirpalas odos dūrimo testui 3ml ± 0,5ml - Krevetės ",1,"Fl.",28,{"$f":"IF(ISBLANK(E1344),\"\", PRODUCT(C1344,E1344))","v":28},"Skin Prick Test bottle x 2,5ml, Inmunotek (Vardinis) F024"]
[null,null,null,null,"Suma be PVM",{"$f":"IF(F1344=\"\",\"\",SUM(F1344:F1344))","v":28},{"$f":"IF(F1344=\"\",\"Neužpildytos visos objektų kainos\",\"\")","v":""}]
[null,null,null,null,"PVM suma",1.4]
[null,null,null,null,"Suma su PVM",{"$f":"IF(ISBLANK(F1346), \"\", SUM(F1345:F1346))","v":29.4}]
[]
["221.","Tirpalas odos dūrimo testui 3ml ± 0,5ml - Pelynas"]
["221.1.","Tirpalas odos dūrimo testui 3ml ± 0,5ml - Pelynas",1,"Fl.",28,{"$f":"IF(ISBLANK(E1350),\"\", PRODUCT(C1350,E1350))","v":28},"Skin Prick Test bottle x 2,5ml, Inmunotek (Vardinis) F024"]
[null,null,null,null,"Suma be PVM",{"$f":"IF(F1350=\"\",\"\",SUM(F1350:F1350))","v":28},{"$f":"IF(F1350=\"\",\"Neužpildytos visos objektų kainos\",\"\")","v":""}]
[null,null,null,null,"PVM suma",1.4]
[null,null,null,null,"Suma su PVM",{"$f":"IF(ISBLANK(F1352), \"\", SUM(F1351:F1352))","v":29.4}]
[]
["222.","Tirpalas odos dūrimo testui 3ml ±0,5ml – 12-os žolių mišinys"]
["222.1.","Tirpalas odos dūrimo testui 3ml ±0,5ml – 12-os žolių mišinys",5,"Fl.",null,{"$f":"IF(ISBLANK(E1356),\"\", PRODUCT(C1356,E1356))","v":""}]
[null,null,null,null,"Suma be PVM",{"$f":"IF(F1356=\"\",\"\",SUM(F1356:F1356))","v":""},{"$f":"IF(F1356=\"\",\"Neužpildytos visos objektų kainos\",\"\")","v":"Neužpildytos visos objektų kainos"}]
[null,null,null,null,"PVM suma"]
[null,null,null,null,"Suma su PVM",{"$f":"IF(ISBLANK(F1358), \"\", SUM(F1357:F1358))","v":""}]
[]
["223.","Tirpalas odos dūrimo testui 3ml ±0,5ml – 5 - 6 ių žolių mišinys"]
["223.1.","Tirpalas odos dūrimo testui 3ml ±0,5ml – 5 - 6 ių žolių mišinys",3,"Fl.",28,{"$f":"IF(ISBLANK(E1362),\"\", PRODUCT(C1362,E1362))","v":84},"Skin Prick Test bottle x 2,5ml, Inmunotek (Vardinis) MG01"]
[null,null,null,null,"Suma be PVM",{"$f":"IF(F1362=\"\",\"\",SUM(F1362:F1362))","v":84},{"$f":"IF(F1362=\"\",\"Neužpildytos visos objektų kainos\",\"\")","v":""}]
[null,null,null,null,"PVM suma",4.2]
[null,null,null,null,"Suma su PVM",{"$f":"IF(ISBLANK(F1364), \"\", SUM(F1363:F1364))","v":88.2}]
[]
["224.","Tirpalas odos dūrimo testui 3ml ±0,5ml - Alternaria"]
["224.1.","Tirpalas odos dūrimo testui 3ml ±0,5ml - Alternaria",4,"Fl.",28,{"$f":"IF(ISBLANK(E1368),\"\", PRODUCT(C1368,E1368))","v":112},"Skin Prick Test bottle x 2,5ml, Inmunotek (Vardinis) P901"]
[null,null,null,null,"Suma be PVM",{"$f":"IF(F1368=\"\",\"\",SUM(F1368:F1368))","v":112},{"$f":"IF(F1368=\"\",\"Neužpildytos visos objektų kainos\",\"\")","v":""}]
[null,null,null,null,"PVM suma",5.6]
[null,null,null,null,"Suma su PVM",{"$f":"IF(ISBLANK(F1370), \"\", SUM(F1369:F1370))","v":117.6}]
[]
["225.","Tirpalas odos dūrimo testui 3ml ±0,5ml – Aspergillus mix"]
["225.1.","Tirpalas odos dūrimo testui 3ml ±0,5ml – Aspergillus mix",4,"Fl.",null,{"$f":"IF(ISBLANK(E1374),\"\", PRODUCT(C1374,E1374))","v":""}]
[null,null,null,null,"Suma be PVM",{"$f":"IF(F1374=\"\",\"\",SUM(F1374:F1374))","v":""},{"$f":"IF(F1374=\"\",\"Neužpildytos visos objektų kainos\",\"\")","v":"Neužpildytos visos objektų kainos"}]
[null,null,null,null,"PVM suma"]
[null,null,null,null,"Suma su PVM",{"$f":"IF(ISBLANK(F1376), \"\", SUM(F1375:F1376))","v":""}]
[]
["226.","Tirpalas odos dūrimo testui 3ml ±0,5ml - Betulaceae"]
["226.1.","Tirpalas odos dūrimo testui 3ml ±0,5ml - Betulaceae",2,"Fl.",null,{"$f":"IF(ISBLANK(E1380),\"\", PRODUCT(C1380,E1380))","v":""}]
[null,null,null,null,"Suma be PVM",{"$f":"IF(F1380=\"\",\"\",SUM(F1380:F1380))","v":""},{"$f":"IF(F1380=\"\",\"Neužpildytos visos objektų kainos\",\"\")","v":"Neužpildytos visos objektų kainos"}]
[null,null,null,null,"PVM suma"]
[null,null,null,null,"Suma su PVM",{"$f":"IF(ISBLANK(F1382), \"\", SUM(F1381:F1382))","v":""}]
[]
["227.","Tirpalas odos dūrimo testui 3ml ±0,5ml - Chenopodiaceae"]
["227.1.","Tirpalas odos dūrimo testui 3ml ±0,5ml - Chenopodiaceae",1,"Fl.",null,{"$f":"IF(ISBLANK(E1386),\"\", PRODUCT(C1386,E1386))","v":""}]
[null,null,null,null,"Suma be PVM",{"$f":"IF(F1386=\"\",\"\",SUM(F1386:F1386))","v":""},{"$f":"IF(F1386=\"\",\"Neužpildytos visos objektų kainos\",\"\")","v":"Neužpildytos visos objektų kainos"}]
[null,null,null,null,"PVM suma"]
[null,null,null,null,"Suma su PVM",{"$f":"IF(ISBLANK(F1388), \"\", SUM(F1387:F1388))","v":""}]
[]
["228.","Tirpalas odos dūrimo testui 3ml ±0,5ml - Composite"]
["228.1.","Tirpalas odos dūrimo testui 3ml ±0,5ml - Composite",1,"Fl.",null,{"$f":"IF(ISBLANK(E1392),\"\", PRODUCT(C1392,E1392))","v":""}]
[null,null,null,null,"Suma be PVM",{"$f":"IF(F1392=\"\",\"\",SUM(F1392:F1392))","v":""},{"$f":"IF(F1392=\"\",\"Neužpildytos visos objektų kainos\",\"\")","v":"Neužpildytos visos objektų kainos"}]
[null,null,null,null,"PVM suma"]
[null,null,null,null,"Suma su PVM",{"$f":"IF(ISBLANK(F1394), \"\", SUM(F1393:F1394))","v":""}]
[]
["229.","Tirpalas odos dūrimo testui 3ml ±0,5ml – Derm Pteronyssinus (namų erkė)"]
["229.1.","Tirpalas odos dūrimo testui 3ml ±0,5ml – Derm Pteronyssinus (namų erkė)",5,"Fl.",28,{"$f":"IF(ISBLANK(E1398),\"\", PRODUCT(C1398,E1398))","v":140},"Skin Prick Test bottle x 2,5ml, Inmunotek (Vardinis) M601"]
[null,null,null,null,"Suma be PVM",{"$f":"IF(F1398=\"\",\"\",SUM(F1398:F1398))","v":140},{"$f":"IF(F1398=\"\",\"Neužpildytos visos objektų kainos\",\"\")","v":""}]
[null,null,null,null,"PVM suma",7]
[null,null,null,null,"Suma su PVM",{"$f":"IF(ISBLANK(F1400), \"\", SUM(F1399:F1400))","v":147}]
[]
["230.","Tirpalas odos dūrimo testui 3ml ±0,5ml – Derm. Farinae (namų erkė)"]
["230.1.","Tirpalas odos dūrimo testui 3ml ±0,5ml – Derm. Farinae (namų erkė)",5,"Fl.",28,{"$f":"IF(ISBLANK(E1404),\"\", PRODUCT(C1404,E1404))","v":140},"Skin Prick Test bottle x 2,5ml, Inmunotek (Vardinis) M602"]
[null,null,null,null,"Suma be PVM",{"$f":"IF(F1404=\"\",\"\",SUM(F1404:F1404))","v":140},{"$f":"IF(F1404=\"\",\"Neužpildytos visos objektų kainos\",\"\")","v":""}]
[null,null,null,null,"PVM suma",7]
[null,null,null,null,"Suma su PVM",{"$f":"IF(ISBLANK(F1406), \"\", SUM(F1405:F1406))","v":147}]
[]
["231.","Tirpalas odos dūrimo testui 3ml ±0,5ml - Fagaceae"]
["231.1.","Tirpalas odos dūrimo testui 3ml ±0,5ml - Fagaceae",1,"Fl.",null,{"$f":"IF(ISBLANK(E1410),\"\", PRODUCT(C1410,E1410))","v":""}]
[null,null,null,null,"Suma be PVM",{"$f":"IF(F1410=\"\",\"\",SUM(F1410:F1410))","v":""},{"$f":"IF(F1410=\"\",\"Neužpildytos visos objektų kainos\",\"\")","v":"Neužpildytos visos objektų kainos"}]
[null,null,null,null,"PVM suma"]
[null,null,null,null,"Suma su PVM",{"$f":"IF(ISBLANK(F1412), \"\", SUM(F1411:F1412))","v":""}]
[]
["232.","Tirpalas odos dūrimo testui 3ml ±0,5ml – Medžių mišinys"]
["232.1.","Tirpalas odos dūrimo testui 3ml ±0,5ml – Medžių mišinys",5,"Fl.",null,{"$f":"IF(ISBLANK(E1416),\"\", PRODUCT(C1416,E1416))","v":""}]
[null,null,null,null,"Suma be PVM",{"$f":"IF(F1416=\"\",\"\",SUM(F1416:F1416))","v":""},{"$f":"IF(F1416=\"\",\"Neužpildytos visos objektų kainos\",\"\")","v":"Neužpildytos visos objektų kainos"}]
[null,null,null,null,"PVM suma"]
[null,null,null,null,"Suma su PVM",{"$f":"IF(ISBLANK(F1418), \"\", SUM(F1417:F1418))","v":""}]
[]
["233.","Tirpalas odos dūrimo testui 3ml ±0,5ml - Plunksnos"]
["233.1.","Tirpalas odos dūrimo testui 3ml ±0,5ml - Plunksnos",2,"Fl.",null,{"$f":"IF(ISBLANK(E1422),\"\", PRODUCT(C1422,E1422))","v":""}]
[null,null,null,null,"Suma be PVM",{"$f":"IF(F1422=\"\",\"\",SUM(F1422:F1422))","v":""},{"$f":"IF(F1422=\"\",\"Neužpildytos visos objektų kainos\",\"\")","v":"Neužpildytos visos objektų kainos"}]
[null,null,null,null,"PVM suma"]
[null,null,null,null,"Suma su PVM",{"$f":"IF(ISBLANK(F1424), \"\", SUM(F1423:F1424))","v":""}]
[]
["234.","Tirpalas odos dūrimo testui 3ml ±0,5ml - Pušis"]
["234.1.","Tirpalas odos dūrimo testui 3ml ±0,5ml - Pušis",2,"Fl.",28,{"$f":"IF(ISBLANK(E1428),\"\", PRODUCT(C1428,E1428))","v":56},"Skin Prick Test bottle x 2,5ml, Inmunotek (Vardinis) T543"]
[null,null,null,null,"Suma be PVM",{"$f":"IF(F1428=\"\",\"\",SUM(F1428:F1428))","v":56},{"$f":"IF(F1428=\"\",\"Neužpildytos visos objektų kainos\",\"\")","v":""}]
[null,null,null,null,"PVM suma",2.8]
[null,null,null,null,"Suma su PVM",{"$f":"IF(ISBLANK(F1430), \"\", SUM(F1429:F1430))","v":58.8}]
[]
["235.","Tirpalas odos dūrimo testui 3ml ±0,5ml – Šuns plaukai"]
["235.1.","Tirpalas odos dūrimo testui 3ml ±0,5ml – Šuns plaukai",4,"Fl.",28,{"$f":"IF(ISBLANK(E1434),\"\", PRODUCT(C1434,E1434))","v":112},"Skin Prick Test bottle x 2,5ml, Inmunotek (Vardinis) E802"]
[null,null,null,null,"Suma be PVM",{"$f":"IF(F1434=\"\",\"\",SUM(F1434:F1434))","v":112},{"$f":"IF(F1434=\"\",\"Neužpildytos visos objektų kainos\",\"\")","v":""}]
[null,null,null,null,"PVM suma",5.6]
[null,null,null,null,"Suma su PVM",{"$f":"IF(ISBLANK(F1436), \"\", SUM(F1435:F1436))","v":117.6}]
[]
["236.","Tirpalas odos dūrimo testui 3ml ±0,5ml -, Katės plaukai"]
["236.1.","Tirpalas odos dūrimo testui 3ml ±0,5ml -, Katės plaukai",4,"Fl.",28,{"$f":"IF(ISBLANK(E1440),\"\", PRODUCT(C1440,E1440))","v":112},"Skin Prick Test bottle x 2,5ml, Inmunotek (Vardinis) E801"]
[null,null,null,null,"Suma be PVM",{"$f":"IF(F1440=\"\",\"\",SUM(F1440:F1440))","v":112},{"$f":"IF(F1440=\"\",\"Neužpildytos visos objektų kainos\",\"\")","v":""}]
[null,null,null,null,"PVM suma",5.6]
[null,null,null,null,"Suma su PVM",{"$f":"IF(ISBLANK(F1442), \"\", SUM(F1441:F1442))","v":117.6}]
[]
["237.","Tirpalas odos dūrimo testui 3ml ±0,5ml  – Histamino HCL"]
["237.1.","Tirpalas odos dūrimo testui 3ml ±0,5ml  – Histamino HCL",6,"Fl.",28,{"$f":"IF(ISBLANK(E1446),\"\", PRODUCT(C1446,E1446))","v":168},"Skin Prick Test bottle x 2,5ml, Inmunotek (Vardinis) K200"]
[null,null,null,null,"Suma be PVM",{"$f":"IF(F1446=\"\",\"\",SUM(F1446:F1446))","v":168},{"$f":"IF(F1446=\"\",\"Neužpildytos visos objektų kainos\",\"\")","v":""}]
[null,null,null,null,"PVM suma",8.4]
[null,null,null,null,"Suma su PVM",{"$f":"IF(ISBLANK(F1448), \"\", SUM(F1447:F1448))","v":176.4}]
[]
["238.","Tirpalas odos dūrimo testui 3ml ±0,5ml  – 3-jų žolių mišinio"]
["238.1.","Tirpalas odos dūrimo testui 3ml ±0,5ml  – 3-jų žolių mišinio",1,"Fl.",null,{"$f":"IF(ISBLANK(E1452),\"\", PRODUCT(C1452,E1452))","v":""}]
[null,null,null,null,"Suma be PVM",{"$f":"IF(F1452=\"\",\"\",SUM(F1452:F1452))","v":""},{"$f":"IF(F1452=\"\",\"Neužpildytos visos objektų kainos\",\"\")","v":"Neužpildytos visos objektų kainos"}]
[null,null,null,null,"PVM suma"]
[null,null,null,null,"Suma su PVM",{"$f":"IF(ISBLANK(F1454), \"\", SUM(F1453:F1454))","v":""}]
[]
["239.","Tolterodinas 2mg tab."]
["239.1.","Tolterodinas 2mg tab.",168,"Tab.",null,{"$f":"IF(ISBLANK(E1458),\"\", PRODUCT(C1458,E1458))","v":""}]
[null,null,null,null,"Suma be PVM",{"$f":"IF(F1458=\"\",\"\",SUM(F1458:F1458))","v":""},{"$f":"IF(F1458=\"\",\"Neužpildytos visos objektų kainos\",\"\")","v":"Neužpildytos visos objektų kainos"}]
[null,null,null,null,"PVM suma"]
[null,null,null,null,"Suma su PVM",{"$f":"IF(ISBLANK(F1460), \"\", SUM(F1459:F1460))","v":""}]
[]
["240.","Topiramatas  100 mg "]
["240.1.","Topiramatas  100 mg ",60,"Tab.",null,{"$f":"IF(ISBLANK(E1464),\"\", PRODUCT(C1464,E1464))","v":""}]
[null,null,null,null,"Suma be PVM",{"$f":"IF(F1464=\"\",\"\",SUM(F1464:F1464))","v":""},{"$f":"IF(F1464=\"\",\"Neužpildytos visos objektų kainos\",\"\")","v":"Neužpildytos visos objektų kainos"}]
[null,null,null,null,"PVM suma"]
[null,null,null,null,"Suma su PVM",{"$f":"IF(ISBLANK(F1466), \"\", SUM(F1465:F1466))","v":""}]
[]
["241.","Trandalaprilis 2 mg "]
["241.1.","Trandalaprilis 2 mg ",60,"Tab./Kaps",null,{"$f":"IF(ISBLANK(E1470),\"\", PRODUCT(C1470,E1470))","v":""}]
[null,null,null,null,"Suma be PVM",{"$f":"IF(F1470=\"\",\"\",SUM(F1470:F1470))","v":""},{"$f":"IF(F1470=\"\",\"Neužpildytos visos objektų kainos\",\"\")","v":"Neužpildytos visos objektų kainos"}]
[null,null,null,null,"PVM suma"]
[null,null,null,null,"Suma su PVM",{"$f":"IF(ISBLANK(F1472), \"\", SUM(F1471:F1472))","v":""}]
[]
["242.","Traneksamo rūgštis 500mg "]
["242.1.","Traneksamo rūgštis 500mg ",2500,"Amp.",0.61,{"$f":"IF(ISBLANK(E1476),\"\", PRODUCT(C1476,E1476))","v":1525},"D-Nexamic 100mg/ml 5ml amp. N5, Dr. Edwin Lab. (Vardinis)"]
[null,null,null,null,"Suma be PVM",{"$f":"IF(F1476=\"\",\"\",SUM(F1476:F1476))","v":1525},{"$f":"IF(F1476=\"\",\"Neužpildytos visos objektų kainos\",\"\")","v":""}]
[null,null,null,null,"PVM suma",76.25]
[null,null,null,null,"Suma su PVM",{"$f":"IF(ISBLANK(F1478), \"\", SUM(F1477:F1478))","v":1601.25}]
[]
["243.","Tuberculin 5TU/0,1ml amp. 1ml"]
["243.1.","Tuberculin 5TU/0,1ml amp. 1ml",300,"Amp./Fl.",6.22,{"$f":"IF(ISBLANK(E1482),\"\", PRODUCT(C1482,E1482))","v":1866},"Tuberculin PPD IP 5TU/0,1ml inj. 5ml N1, Acray (Vardinis)"]
[null,null,null,null,"Suma be PVM",{"$f":"IF(F1482=\"\",\"\",SUM(F1482:F1482))","v":1866},{"$f":"IF(F1482=\"\",\"Neužpildytos visos objektų kainos\",\"\")","v":""}]
[null,null,null,null,"PVM suma",93.3]
[null,null,null,null,"Suma su PVM",{"$f":"IF(ISBLANK(F1484), \"\", SUM(F1483:F1484))","v":1959.3}]
[]
["244.","Umeklidino 55mcg + Vilanterolio 22mcg įkvepiamieji milteliai "]
["244.1.","Umeklidino 55mcg + Vilanterolio 22mcg įkvepiamieji milteliai ",60,"Doz.",null,{"$f":"IF(ISBLANK(E1488),\"\", PRODUCT(C1488,E1488))","v":""}]
[null,null,null,null,"Suma be PVM",{"$f":"IF(F1488=\"\",\"\",SUM(F1488:F1488))","v":""},{"$f":"IF(F1488=\"\",\"Neužpildytos visos objektų kainos\",\"\")","v":"Neužpildytos visos objektų kainos"}]
[null,null,null,null,"PVM suma"]
[null,null,null,null,"Suma su PVM",{"$f":"IF(ISBLANK(F1490), \"\", SUM(F1489:F1490))","v":""}]
[]
["245.","Urea "]
["245.1.","Urea ",2,"kg",null,{"$f":"IF(ISBLANK(E1494),\"\", PRODUCT(C1494,E1494))","v":""}]
[null,null,null,null,"Suma be PVM",{"$f":"IF(F1494=\"\",\"\",SUM(F1494:F1494))","v":""},{"$f":"IF(F1494=\"\",\"Neužpildytos visos objektų kainos\",\"\")","v":"Neužpildytos visos objektų kainos"}]
[null,null,null,null,"PVM suma"]
[null,null,null,null,"Suma su PVM",{"$f":"IF(ISBLANK(F1496), \"\", SUM(F1495:F1496))","v":""}]
[]
["246.","Valerijonų šaknų + Sukatžolės žolės + Gudobelės vaisių spiritinė ištrauka 0,34ml/0,33ml/0,33ml/ml "]
["246.1.","Valerijonų šaknų + Sukatžolės žolės + Gudobelės vaisių spiritinė ištrauka 0,34ml/0,33ml/0,33ml/ml ",6900,"ml",null,{"$f":"IF(ISBLANK(E1500),\"\", PRODUCT(C1500,E1500))","v":""}]
[null,null,null,null,"Suma be PVM",{"$f":"IF(F1500=\"\",\"\",SUM(F1500:F1500))","v":""},{"$f":"IF(F1500=\"\",\"Neužpildytos visos objektų kainos\",\"\")","v":"Neužpildytos visos objektų kainos"}]
[null,null,null,null,"PVM suma"]
[null,null,null,null,"Suma su PVM",{"$f":"IF(ISBLANK(F1502), \"\", SUM(F1501:F1502))","v":""}]
[]
["247.","Vaselinum flavum"]
["247.1.","Vaselinum flavum",100,"kg",null,{"$f":"IF(ISBLANK(E1506),\"\", PRODUCT(C1506,E1506))","v":""}]
[null,null,null,null,"Suma be PVM",{"$f":"IF(F1506=\"\",\"\",SUM(F1506:F1506))","v":""},{"$f":"IF(F1506=\"\",\"Neužpildytos visos objektų kainos\",\"\")","v":"Neužpildytos visos objektų kainos"}]
[null,null,null,null,"PVM suma"]
[null,null,null,null,"Suma su PVM",{"$f":"IF(ISBLANK(F1508), \"\", SUM(F1507:F1508))","v":""}]
[]
["248.","Verapamilio hidrochloridas 40mg"]
["248.1.","Verapamilio hidrochloridas 40mg",2500,"Tab.",null,{"$f":"IF(ISBLANK(E1512),\"\", PRODUCT(C1512,E1512))","v":""}]
[null,null,null,null,"Suma be PVM",{"$f":"IF(F1512=\"\",\"\",SUM(F1512:F1512))","v":""},{"$f":"IF(F1512=\"\",\"Neužpildytos visos objektų kainos\",\"\")","v":"Neužpildytos visos objektų kainos"}]
[null,null,null,null,"PVM suma"]
[null,null,null,null,"Suma su PVM",{"$f":"IF(ISBLANK(F1514), \"\", SUM(F1513:F1514))","v":""}]
[]
["249.","Verapamilio hidrochloridas 5mg/2ml "]
["249.1.","Verapamilio hidrochloridas 5mg/2ml ",140,"Amp.",null,{"$f":"IF(ISBLANK(E1518),\"\", PRODUCT(C1518,E1518))","v":""}]
[null,null,null,null,"Suma be PVM",{"$f":"IF(F1518=\"\",\"\",SUM(F1518:F1518))","v":""},{"$f":"IF(F1518=\"\",\"Neužpildytos visos objektų kainos\",\"\")","v":"Neužpildytos visos objektų kainos"}]
[null,null,null,null,"PVM suma"]
[null,null,null,null,"Suma su PVM",{"$f":"IF(ISBLANK(F1520), \"\", SUM(F1519:F1520))","v":""}]
[]
["250.","Vitaminas D3 aliejinis tirpalas "]
["250.1.","Vitaminas D3 aliejinis tirpalas ",300,"ml",null,{"$f":"IF(ISBLANK(E1524),\"\", PRODUCT(C1524,E1524))","v":""}]
[null,null,null,null,"Suma be PVM",{"$f":"IF(F1524=\"\",\"\",SUM(F1524:F1524))","v":""},{"$f":"IF(F1524=\"\",\"Neužpildytos visos objektų kainos\",\"\")","v":"Neužpildytos visos objektų kainos"}]
[null,null,null,null,"PVM suma"]
[null,null,null,null,"Suma su PVM",{"$f":"IF(ISBLANK(F1526), \"\", SUM(F1525:F1526))","v":""}]
[]
["251.","Zinci oxydum"]
["251.1.","Zinci oxydum",2,"kg",null,{"$f":"IF(ISBLANK(E1530),\"\", PRODUCT(C1530,E1530))","v":""}]
[null,null,null,null,"Suma be PVM",{"$f":"IF(F1530=\"\",\"\",SUM(F1530:F1530))","v":""},{"$f":"IF(F1530=\"\",\"Neužpildytos visos objektų kainos\",\"\")","v":"Neužpildytos visos objektų kainos"}]
[null,null,null,null,"PVM suma"]
[null,null,null,null,"Suma su PVM",{"$f":"IF(ISBLANK(F1532), \"\", SUM(F1531:F1532))","v":""}]
[]
["252.","Zofenoprilis 30 mg"]
["252.1.","Zofenoprilis 30 mg",13000,"tab",null,{"$f":"IF(ISBLANK(E1536),\"\", PRODUCT(C1536,E1536))","v":""}]
[null,null,null,null,"Suma be PVM",{"$f":"IF(F1536=\"\",\"\",SUM(F1536:F1536))","v":""},{"$f":"IF(F1536=\"\",\"Neužpildytos visos objektų kainos\",\"\")","v":"Neužpildytos visos objektų kainos"}]
[null,null,null,null,"PVM suma"]
[null,null,null,null,"Suma su PVM",{"$f":"IF(ISBLANK(F1538), \"\", SUM(F1537:F1538))","v":""}]
[]
["253.","Želatinos polisukcinatas 40mg/ml 500ml"]
["253.1.","Želatinos polisukcinatas 40mg/ml 500ml",30,"Fl.",null,{"$f":"IF(ISBLANK(E1542),\"\", PRODUCT(C1542,E1542))","v":""}]
[null,null,null,null,"Suma be PVM",{"$f":"IF(F1542=\"\",\"\",SUM(F1542:F1542))","v":""},{"$f":"IF(F1542=\"\",\"Neužpildytos visos objektų kainos\",\"\")","v":"Neužpildytos visos objektų kainos"}]
[null,null,null,null,"PVM suma"]
[null,null,null,null,"Suma su PVM",{"$f":"IF(ISBLANK(F1544), \"\", SUM(F1543:F1544))","v":""}]
[]
["254.","Infuzinė emulsija (riebalų emulsija) keturių skirtingų lipidų (riebalų) 20% 100ml "]
["254.1.","Infuzinė emulsija keturių skirtingų  lipidų (riebalų) 20% 100ml ",6,"vnt",null,{"$f":"IF(ISBLANK(E1548),\"\", PRODUCT(C1548,E1548))","v":""}]
[null,null,null,null,"Suma be PVM",{"$f":"IF(F1548=\"\",\"\",SUM(F1548:F1548))","v":""},{"$f":"IF(F1548=\"\",\"Neužpildytos visos objektų kainos\",\"\")","v":"Neužpildytos visos objektų kainos"}]
[null,null,null,null,"PVM suma"]
[null,null,null,null,"Suma su PVM",{"$f":"IF(ISBLANK(F1550), \"\", SUM(F1549:F1550))","v":""}]

{"sheet":"Subtiekėjai","index":1,"n_rows":100,"n_cols":9,"rows_kept":100,"cut":false,"hidden":false,"merged":[[32,0,32,3],[32,4,32,9],[19,0,19,10],[16,1,16,3],[15,1,15,3],[22,0,22,9],[23,0,23,9],[25,0,25,9],[29,0,29,3],[29,4,29,9],[17,1,17,3],[17,4,17,5],[17,6,17,7],[17,8,17,9],[21,0,21,3],[21,4,21,9],[14,1,14,3],[15,4,15,5],[16,4,16,5],[8,0,8,1],[8,2,8,4],[8,5,8,7],[12,6,12,7],[13,6,13,7],[14,6,14,7],[15,6,15,7],[16,6,16,7],[13,1,13,3],[12,1,12,3],[12,4,12,5],[13,4,13,5],[14,4,14,5],[8,8,8,9],[10,0,10,9],[6,0,6,1],[6,2,6,4],[6,5,6,7],[6,8,6,9],[7,0,7,1],[7,2,7,4],[7,5,7,7],[7,8,7,9],[1,0,1,10],[5,0,5,1],[5,2,5,4],[5,5,5,7],[5,8,5,9],[4,0,4,1],[4,2,4,4],[4,5,4,7],[4,8,4,9],[3,0,3,1],[3,2,3,4],[3,5,3,7],[3,8,3,9],[12,8,12,9],[13,8,13,9],[14,8,14,9],[15,8,15,9],[16,8,16,9]]}
[]
["Subtiekėjai ir jiems perduodama vykdyti pirkimo sutarties dalis:"]
[]
["Eil. Nr",null,"Subtiekėjo pavadinimas",null,null,"Pirkimo objekto dalies, perduodamos vykdyti subtiekėjui, aprašymas",null,null,"Procentas perduodamos vykdyti pirkimo objekto dalies nuo pasiūlymo kainos su PVM (pildoma, jei ūkio subjektas vykdys sutartį)"]
[]
[]
[]
[]
[]
[]
["Kartu su pasiūlymu pateikiami šie dokumentai:"]
[]
["Eil.Nr.","Dokumentas",null,null,"Ar dokumnetas konfidencialus? (Taip/Ne)",null,"Prisegtos bylos (failo) pavadinimas ",null,"Paaiškinimas, kokia konkreti informacija dokumente yra konfidenciali"]
[1,"EBVPD",null,null,"Taip"]
[2,"Įgaliojimas",null,null,"Taip"]
[]
[]
[]
[]
["Pasirašydamas šį pasiūlymą, tvirtintu, kad:\n1) pasiūlymo dokumentuose pateikti duomenys yra tikri;\n2) siūlomas Pirkimo objektas visiškai atitinka Pirkimo dokumentuose nustatytus reikalavimus;\n3) sutinku su visomis Pirkimo dokumentuose nustatytomis sąlygomis;\n4) pasiūlymas galioja iki termino, nustatyto Pirkimo dokumentuose; \n5) mes esame / nesame (nereikalingą išbraukti) laikomi asocijuotais (susijusiais) su Perkančiuoju subjektu pagal Lietuvos Respublikoje galiojančių teisės aktų (Lietuvos Respublikos pelno mokesčio, Lietuvos Respublikos pridėtinės vertės mokesčio ir Lietuvos Respublikos gyventojų pajamų mokesčio įstatymų) nuostatas; \n6) savo pasiūlymo galiojimą užtikrinsiu pagal Specialiųjų sąlygų 6.1 punktą (jei taikoma)."]
[]
["Pasiūlymo galiojimo užtikrinimui pateikiame :"]
[]
["(Nurodyti užtikrinimo būdą, dydį, dokumentus)"]
[]
["\nPasiūlymas galioja iki termino, nustatyto pirkimo dokumentuose.\n\nPasiūlymo neatskiriama dalis yra (rašoma, jeigu buvo reikalauta prie pasiūlymo pridėti atitinkamą dokumentą)"]
[]
[]
[]
["Tiekėjo arba jo įgalioto asmens pareigų pavadinimas",null,null,null,"Konkursų skyriaus vadovas"]
[]
[]
["Pasirašančio asmens vardas ir pavardė",null,null,null,"Aurimas Kirkliauskas"]
[]
[]
[]
[]
[]
[]
[]
[]
[]
[]
[]
[]
[]
[]
[]
[]
[]
[]
[]
[]
[]
[]
[]
[]
[]
[]
[]
[]
[]
[]
[]
[]
[]
[]
[]
[]
[]
[]
[]
[]
[]
[]
[]
[]
[]
[]
[]
[]
[]
[]
[]
[]
[]
[]
[]
[]
[]
[]
[]
[]
[]
[]
[]
[]
[]
[]
["2932 2019-11-25 11:11:09"]